Workbook

Sheet الرابع
A1: إدارة قويسنا التعليمية0 الصف الرابع
A2: مدرسة عرب الرمل الإبتدائية سكة حديد | F2: نتيجة نصف العام 2019/2018
A3: م | B3: جلوس | C3: الاســــــــــــــم | D3: لغة عربية | E3: رياضيات | F3: لغة إنجليزية | G3: دراسات | H3: علوم | I3: فنى | J3: رياضى | K3: حاسب آلى | L3: نشاط1 | M3: نشاط2 | N3: دين
D4: 30 | E4: 30 | F4: 30 | G4: 30 | H4: 30 | I4: 100 | J4: 100 | K4: 100 | L4: 100 | M4: 100 | N4: 30
A5: =IF(C5="","",SUBTOTAL(3,$C$5:C5)) -> 1 | B5: 1 | C5: احمد ابراهيم احمد عزت محمد خضير | D5: 29 | E5: 30 | F5: 30 | G5: 30 | H5: 30 | I5: 98 | J5: 98 | K5: 98 | L5: 97 | M5: 98 | N5: 29
A6: =IF(C6="","",SUBTOTAL(3,$C$5:C6)) -> 2 | B6: 2 | C6: احمد احمد سيداحمد سعيد | D6: 28 | E6: 29 | F6: 29 | G6: 30 | H6: 30 | I6: 99 | J6: 98 | K6: 99 | L6: 97 | M6: 98 | N6: 28
A7: =IF(C7="","",SUBTOTAL(3,$C$5:C7)) -> 3 | B7: 3 | C7: احمد انور عبد الرازق يوسف | D7: 29 | E7: 22 | F7: 29 | G7: 28 | H7: 30 | I7: 97 | J7: 98 | K7: 97 | L7: 97 | M7: 98 | N7: 29
A8: =IF(C8="","",SUBTOTAL(3,$C$5:C8)) -> 4 | B8: 4 | C8: احمد محمد امام المرادى | D8: 29 | E8: 29 | F8: 25 | G8: 30 | H8: 29 | I8: 99 | J8: 98 | K8: 99 | L8: 99 | M8: 98 | N8: 26
A9: =IF(C9="","",SUBTOTAL(3,$C$5:C9)) -> 5 | B9: 5 | C9: احمد هانى احمد محمد سالم | D9: 22 | E9: 29 | F9: 28 | G9: 22 | H9: 29 | I9: 99 | J9: 98 | K9: 99 | L9: 99 | M9: 98 | N9: 23
A10: =IF(C10="","",SUBTOTAL(3,$C$5:C10)) -> 6 | B10: 6 | C10: ادهم محمد محمد الشحات محمود المرادى | D10: 24 | E10: 29 | F10: 24 | G10: 22 | H10: 29 | I10: 99 | J10: 98 | K10: 99 | L10: 99 | M10: 97 | N10: 26
A11: =IF(C11="","",SUBTOTAL(3,$C$5:C11)) -> 7 | B11: 7 | C11: ادهم يحيى ابراهيم محمد ابراهيم | D11: 22 | E11: 19 | F11: 15 | G11: 22 | H11: 26 | I11: 99 | J11: 98 | K11: 99 | L11: 99 | M11: 98 | N11: 27
A12: =IF(C12="","",SUBTOTAL(3,$C$5:C12)) -> 8 | B12: 8 | C12: إياد محمود عبد الحفيظ المرسى المرادى | D12: 30 | E12: 27 | F12: 30 | G12: 27 | H12: 30 | I12: 99 | J12: 98 | K12: 99 | L12: 97 | M12: 98 | N12: 29
A13: =IF(C13="","",SUBTOTAL(3,$C$5:C13)) -> 9 | B13: 9 | C13: ايمن فوزى محروس احمد جبر | D13: 19 | E13: 24 | F13: 27 | G13: 29 | H13: 28 | I13: 99 | J13: 98 | K13: 99 | L13: 99 | M13: 98 | N13: 25
A14: =IF(C14="","",SUBTOTAL(3,$C$5:C14)) -> 10 | B14: 10 | C14: جمال عمرو الصادق محمد الصادق | D14: 23 | E14: 19 | F14: 28 | G14: 22 | H14: 27 | I14: 99 | J14: 98 | K14: 99 | L14: 99 | M14: 98 | N14: 30
A15: =IF(C15="","",SUBTOTAL(3,$C$5:C15)) -> 11 | B15: 11 | C15: جمال وليد جمال السيد احمد النجار | D15: 22 | E15: 23 | F15: 21 | G15: 26 | H15: 27 | I15: 98 | J15: 99 | K15: 98 | L15: 97 | M15: 96 | N15: 25
A16: =IF(C16="","",SUBTOTAL(3,$C$5:C16)) -> 12 | B16: 12 | C16: حسام محمد عبدالعاطى عبدالعزيز محمد | D16: 30 | E16: 30 | F16: 30 | G16: 30 | H16: 30 | I16: 99 | J16: 98 | K16: 99 | L16: 97 | M16: 98 | N16: 28
A17: =IF(C17="","",SUBTOTAL(3,$C$5:C17)) -> 13 | B17: 13 | C17: عبد الرحمن محمد سيد احمد ابراهيم محمد عبد الله | D17: 29 | E17: 28 | F17: 30 | G17: 24 | H17: 30 | I17: 97 | J17: 96 | K17: 97 | L17: 95 | M17: 98 | N17: 25
A18: =IF(C18="","",SUBTOTAL(3,$C$5:C18)) -> 14 | B18: 14 | C18: عبد الرحمن هانى البيومى السيد سيد أحمد | D18: 30 | E18: 25 | F18: 28 | G18: 29 | H18: 30 | I18: 99 | J18: 98 | K18: 99 | L18: 99 | M18: 98 | N18: 30
A19: =IF(C19="","",SUBTOTAL(3,$C$5:C19)) -> 15 | B19: 15 | C19: عبدالرحمن ابراهيم ابراهيم امام نصر | D19: 29 | E19: 17 | F19: 26 | G19: 29 | H19: 29 | I19: 98 | J19: 97 | K19: 98 | L19: 99 | M19: 97 | N19: 27
A20: =IF(C20="","",SUBTOTAL(3,$C$5:C20)) -> 16 | B20: 16 | C20: عمار ياسر محمود موسى عفيفي | D20: 19 | E20: 20 | F20: 21 | G20: 17 | H20: 23 | I20: 99 | J20: 98 | K20: 99 | L20: 99 | M20: 98 | N20: 22
A21: =IF(C21="","",SUBTOTAL(3,$C$5:C21)) -> 17 | B21: 17 | C21: عمر وليد السيد عبد المنعم | D21: 27 | E21: 27 | F21: 26 | G21: 25 | H21: 29 | I21: 99 | J21: 99 | K21: 99 | L21: 98 | M21: 98 | N21: 28
A22: =IF(C22="","",SUBTOTAL(3,$C$5:C22)) -> 18 | B22: 18 | C22: كرم هانى كرم عبد الرشيد عقل | D22: 29 | E22: 29 | F22: 30 | G22: 29 | H22: 30 | I22: 100 | J22: 98 | K22: 100 | L22: 100 | M22: 98 | N22: 28
A23: =IF(C23="","",SUBTOTAL(3,$C$5:C23)) -> 19 | B23: 19 | C23: كريم سامح محمد عطية | D23: 25 | E23: 25 | F23: 28 | G23: 29 | H23: 30 | I23: 99 | J23: 98 | K23: 99 | L23: 97 | M23: 98 | N23: 23
A24: =IF(C24="","",SUBTOTAL(3,$C$5:C24)) -> 20 | B24: 20 | C24: محمد ابراهيم ابراهيم امام نصر | D24: 24 | E24: 15 | F24: 27 | G24: 24 | H24: 26 | I24: 99 | J24: 98 | K24: 99 | L24: 99 | M24: 97 | N24: 26
A25: =IF(C25="","",SUBTOTAL(3,$C$5:C25)) -> 21 | B25: 21 | C25: محمد أحمد جمال عبد الحليم السيد | D25: 29 | E25: 25 | F25: 29 | G25: 26 | H25: 30 | I25: 99 | J25: 98 | K25: 99 | L25: 99 | M25: 98 | N25: 29
A26: =IF(C26="","",SUBTOTAL(3,$C$5:C26)) -> 22 | B26: 22 | C26: محمد احمد عبدالعزيز محمد عبد الغنى | D26: 30 | E26: 28 | F26: 30 | G26: 30 | H26: 30 | I26: 99 | J26: 98 | K26: 99 | L26: 97 | M26: 98 | N26: 27
A27: =IF(C27="","",SUBTOTAL(3,$C$5:C27)) -> 23 | B27: 23 | C27: محمد احمد محمد عبد العليم فرج | D27: 30 | E27: 30 | F27: 30 | G27: 30 | H27: 30 | I27: 99 | J27: 98 | K27: 99 | L27: 99 | M27: 98 | N27: 29
A28: =IF(C28="","",SUBTOTAL(3,$C$5:C28)) -> 24 | B28: 24 | C28: محمد السيد محمد الهادى عثمان | D28: 30 | E28: 30 | F28: 30 | G28: 29 | H28: 28 | I28: 99 | J28: 98 | K28: 99 | L28: 97 | M28: 98 | N28: 28
A29: =IF(C29="","",SUBTOTAL(3,$C$5:C29)) -> 25 | B29: 25 | C29: محمد امير سامى عبدالمطلب درغام | D29: 27 | E29: 24 | F29: 28 | G29: 28 | H29: 30 | I29: 99 | J29: 98 | K29: 99 | L29: 99 | M29: 97 | N29: 24
A30: =IF(C30="","",SUBTOTAL(3,$C$5:C30)) -> 26 | B30: 26 | C30: محمد رامى مسعد عبد المطلب على الاشقر | D30: 25 | E30: 23 | F30: 26 | G30: 26 | H30: 28 | I30: 99 | J30: 98 | K30: 99 | L30: 97 | M30: 98 | N30: 25
A31: =IF(C31="","",SUBTOTAL(3,$C$5:C31)) -> 27 | B31: 27 | C31: محمد سعيد محمد مصلحى عوض | D31: 27 | E31: 25 | F31: 25 | G31: 29 | H31: 27 | I31: 99 | J31: 99 | K31: 99 | L31: 99 | M31: 99 | N31: 28
A32: =IF(C32="","",SUBTOTAL(3,$C$5:C32)) -> 28 | B32: 28 | C32: محمد عمرو محمد فرج عمارة | D32: 24 | E32: 27 | F32: 26 | G32: 30 | H32: 30 | I32: 99 | J32: 99 | K32: 99 | L32: 99 | M32: 99 | N32: 23
A33: =IF(C33="","",SUBTOTAL(3,$C$5:C33)) -> 29 | B33: 29 | C33: محمد كرم مسعد الزيات | D33: 30 | E33: 28 | F33: 28 | G33: 30 | H33: 30 | I33: 99 | J33: 98 | K33: 99 | L33: 97 | M33: 98 | N33: 29
A34: =IF(C34="","",SUBTOTAL(3,$C$5:C34)) -> 30 | B34: 30 | C34: محمد نهاد محمد يوسف | D34: 30 | E34: 30 | F34: 28 | G34: 29 | H34: 29 | I34: 99 | J34: 98 | K34: 99 | L34: 97 | M34: 98 | N34: 28
A35: =IF(C35="","",SUBTOTAL(3,$C$5:C35)) -> 31 | B35: 31 | C35: محمد وائل ابوالفتوح عبدالسلام | D35: 23 | E35: 26 | F35: 29 | G35: 26 | H35: 29 | I35: 99 | J35: 98 | K35: 99 | L35: 97 | M35: 98 | N35: 26
A36: =IF(C36="","",SUBTOTAL(3,$C$5:C36)) -> 32 | B36: 32 | C36: محمد وائل محمد رشاد الجزار | D36: 27 | E36: 30 | F36: 25 | G36: 23 | H36: 30 | I36: 99 | J36: 98 | K36: 99 | L36: 97 | M36: 98 | N36: 27
A37: =IF(C37="","",SUBTOTAL(3,$C$5:C37)) -> 33 | B37: 33 | C37: محمد وليد سلامة محمد الخضصرى | D37: 28 | E37: 27 | F37: 30 | G37: 26 | H37: 30 | I37: 99 | J37: 98 | K37: 99 | L37: 97 | M37: 98 | N37: 29
A38: =IF(C38="","",SUBTOTAL(3,$C$5:C38)) -> 34 | B38: 34 | C38: محمود العشرى عبد المنعم عبدالكريم العشرى | D38: 29 | E38: 24 | F38: 29 | G38: 29 | H38: 28 | I38: 99 | J38: 98 | K38: 99 | L38: 97 | M38: 98 | N38: 27
A39: =IF(C39="","",SUBTOTAL(3,$C$5:C39)) -> 35 | B39: 35 | C39: محمود ماهر محمودعبد العاطى محمد عبد الهادي | D39: 26 | E39: 25 | F39: 28 | G39: 18 | H39: 30 | I39: 99 | J39: 98 | K39: 99 | L39: 99 | M39: 98 | N39: 23
A40: =IF(C40="","",SUBTOTAL(3,$C$5:C40)) -> 36 | B40: 36 | C40: محمود محمد محمود حسين السعودى | D40: 29 | E40: 19 | F40: 28 | G40: 29 | H40: 30 | I40: 97 | J40: 96 | K40: 97 | L40: 95 | M40: 98 | N40: 29
A41: =IF(C41="","",SUBTOTAL(3,$C$5:C41)) -> 37 | B41: 37 | C41: محمود نادر عقل محمد عقل | D41: 22 | E41: 18 | F41: 25 | G41: 15 | H41: 27 | I41: 99 | J41: 98 | K41: 99 | L41: 99 | M41: 98 | N41: 26
A42: =IF(C42="","",SUBTOTAL(3,$C$5:C42)) -> 38 | B42: 38 | C42: مصطفى محمود السعيد مصطفى المرادى | D42: 29 | E42: 30 | F42: 30 | G42: 28 | H42: 30 | I42: 99 | J42: 98 | K42: 99 | L42: 99 | M42: 98 | N42: 25
A43: =IF(C43="","",SUBTOTAL(3,$C$5:C43)) -> 39 | B43: 39 | C43: يحيى أحمد محمد فتوح أحمد العوني | D43: 27 | E43: 29 | F43: 29 | G43: 26 | H43: 30 | I43: 97 | J43: 98 | K43: 97 | L43: 97 | M43: 98 | N43: 27
A44: =IF(C44="","",SUBTOTAL(3,$C$5:C44)) -> 40 | B44: 40 | C44: يوسف احمد عبد المعطى محمد العليمى | D44: 27 | E44: 22 | F44: 29 | G44: 24 | H44: 30 | I44: 99 | J44: 98 | K44: 99 | L44: 99 | M44: 98 | N44: 28
A45: =IF(C45="","",SUBTOTAL(3,$C$5:C45)) -> 41 | B45: 41 | C45: يوسف خالد ابراهيم الدسوقى النادى | D45: 24 | E45: 24 | F45: 28 | G45: 17 | H45: 29 | I45: 100 | J45: 100 | K45: 100 | L45: 100 | M45: 100 | N45: 26
A46: =IF(C46="","",SUBTOTAL(3,$C$5:C46)) -> 42 | B46: 42 | C46: يوسف سامح شندى عبد العليم شندى | D46: 28 | E46: 24 | F46: 26 | G46: 27 | H46: 30 | I46: 99 | J46: 99 | K46: 99 | L46: 100 | M46: 98 | N46: 28
A47: =IF(C47="","",SUBTOTAL(3,$C$5:C47)) -> 43 | B47: 43 | C47: يوسف محمد عبد الخالق محمد حسن | D47: 25 | E47: 15 | F47: 29 | G47: 25 | H47: 30 | I47: 99 | J47: 98 | K47: 99 | L47: 99 | M47: 98 | N47: 27
A48: =IF(C48="","",SUBTOTAL(3,$C$5:C48)) -> 44 | B48: 44 | C48: يوسف محمد عبدالخالق المهدى | D48: 30 | E48: 25 | F48: 28 | G48: 28 | H48: 26 | I48: 99 | J48: 98 | K48: 99 | L48: 99 | M48: 98 | N48: 28
A49: =IF(C49="","",SUBTOTAL(3,$C$5:C49)) -> 45 | B49: 45 | C49: يوسف محمود احمد محمد داود | D49: 22 | E49: 27 | F49: 29 | G49: 16 | H49: 28 | I49: 98 | J49: 98 | K49: 98 | L49: 99 | M49: 98 | N49: 30
A50: =IF(C50="","",SUBTOTAL(3,$C$5:C50)) -> 46 | B50: 46 | C50: اروى محمد عبد السميع بكر | D50: 28 | E50: 30 | F50: 30 | G50: 29 | H50: 29 | I50: 99 | J50: 98 | K50: 99 | L50: 97 | M50: 98 | N50: 28
A51: =IF(C51="","",SUBTOTAL(3,$C$5:C51)) -> 47 | B51: 47 | C51: اميرة عبد الناصر عبد الخالق ابو الفتوح | D51: 30 | E51: 30 | F51: 30 | G51: 30 | H51: 30 | I51: 99 | J51: 98 | K51: 99 | L51: 99 | M51: 87 | N51: 28
A52: =IF(C52="","",SUBTOTAL(3,$C$5:C52)) -> 48 | B52: 48 | C52: ايسل طارق محمد السيد | D52: 28 | E52: 30 | F52: 30 | G52: 30 | H52: 30 | I52: 97 | J52: 96 | K52: 97 | L52: 95 | M52: 98 | N52: 29
A53: =IF(C53="","",SUBTOTAL(3,$C$5:C53)) -> 49 | B53: 49 | C53: ايمان احمد الشناوى الحسينى محمد | D53: 28 | E53: 28 | F53: 30 | G53: 27 | H53: 30 | I53: 97 | J53: 98 | K53: 97 | L53: 97 | M53: 98 | N53: 28
A54: =IF(C54="","",SUBTOTAL(3,$C$5:C54)) -> 50 | B54: 50 | C54: ايه ابراهيم ابراهيم امام نصر | D54: 30 | E54: 23 | F54: 29 | G54: 27 | H54: 30 | I54: 99 | J54: 98 | K54: 99 | L54: 97 | M54: 98 | N54: 28
A55: =IF(C55="","",SUBTOTAL(3,$C$5:C55)) -> 51 | B55: 51 | C55: بسملة ايهاب عبد المنعم عابدين | D55: 30 | E55: 29 | F55: 28 | G55: 30 | H55: 30 | I55: 99 | J55: 98 | K55: 99 | L55: 99 | M55: 98 | N55: 24
A56: =IF(C56="","",SUBTOTAL(3,$C$5:C56)) -> 52 | B56: 52 | C56: بسنت وائل احمد محمد المرادى | D56: 25 | E56: 22 | F56: 25 | G56: 26 | H56: 30 | I56: 97 | J56: 96 | K56: 97 | L56: 95 | M56: 98 | N56: 26
A57: =IF(C57="","",SUBTOTAL(3,$C$5:C57)) -> 53 | B57: 53 | C57: جنى السيد احمد السيد النجار | D57: 29 | E57: 30 | F57: 30 | G57: 30 | H57: 30 | I57: 96 | J57: 97 | K57: 96 | L57: 98 | M57: 98 | N57: 29
A58: =IF(C58="","",SUBTOTAL(3,$C$5:C58)) -> 54 | B58: 54 | C58: جنى زكريا عبد اللطيف السيد عطوة | D58: 30 | E58: 30 | F58: 30 | G58: 30 | H58: 30 | I58: 99 | J58: 98 | K58: 99 | L58: 97 | M58: 98 | N58: 29
A59: =IF(C59="","",SUBTOTAL(3,$C$5:C59)) -> 55 | B59: 55 | C59: جومانة خالد احمد عبد الحميد | D59: 28 | E59: 29 | F59: 27 | G59: 25 | H59: 30 | I59: 99 | J59: 98 | K59: 99 | L59: 97 | M59: 98 | N59: 28
A60: =IF(C60="","",SUBTOTAL(3,$C$5:C60)) -> 56 | B60: 56 | C60: جومانه جلال ابراهيم متولى المرادى | D60: 29 | E60: 30 | F60: 30 | G60: 28 | H60: 30 | I60: 98 | J60: 97 | K60: 98 | L60: 95 | M60: 96 | N60: 28
A61: =IF(C61="","",SUBTOTAL(3,$C$5:C61)) -> 57 | B61: 57 | C61: حبيبة احمد عبد الغنى امام محمد | D61: 30 | E61: 30 | F61: 30 | G61: 29 | H61: 30 | I61: 96 | J61: 95 | K61: 96 | L61: 95 | M61: 96 | N61: 29
A62: =IF(C62="","",SUBTOTAL(3,$C$5:C62)) -> 58 | B62: 58 | C62: حبيبه أحمد جمال عبد الحليم السيد | D62: 30 | E62: 21 | F62: 25 | G62: 26 | H62: 30 | I62: 99 | J62: 98 | K62: 99 | L62: 97 | M62: 98 | N62: 29
A63: =IF(C63="","",SUBTOTAL(3,$C$5:C63)) -> 59 | B63: 59 | C63: حبيبه بلال عبدالسميع بكر | D63: 29 | E63: 30 | F63: 25 | G63: 28 | H63: 29 | I63: 97 | J63: 96 | K63: 97 | L63: 95 | M63: 97 | N63: 29
A64: =IF(C64="","",SUBTOTAL(3,$C$5:C64)) -> 60 | B64: 60 | C64: خلود محمد على فهيم مصطفى الحاج | D64: 30 | E64: 30 | F64: 30 | G64: 30 | H64: 30 | I64: 97 | J64: 96 | K64: 97 | L64: 95 | M64: 96 | N64: 29
A65: =IF(C65="","",SUBTOTAL(3,$C$5:C65)) -> 61 | B65: 61 | C65: دعاء عمرو الصادق محمد الصادق | D65: 26 | E65: 30 | F65: 30 | G65: 30 | H65: 30 | I65: 99 | J65: 98 | K65: 99 | L65: 97 | M65: 98 | N65: 29
A66: =IF(C66="","",SUBTOTAL(3,$C$5:C66)) -> 62 | B66: 62 | C66: رفيدة احمد السيد الشاذلى الشحرى | D66: 30 | E66: 29 | F66: 30 | G66: 30 | H66: 30 | I66: 99 | J66: 98 | K66: 99 | L66: 97 | M66: 98 | N66: 28
A67: =IF(C67="","",SUBTOTAL(3,$C$5:C67)) -> 63 | B67: 63 | C67: رقيه مصطفى عفيفى عفيفى عيسى | D67: 27 | E67: 27 | F67: 28 | G67: 30 | H67: 30 | I67: 99 | J67: 98 | K67: 99 | L67: 99 | M67: 98 | N67: 30
A68: =IF(C68="","",SUBTOTAL(3,$C$5:C68)) -> 64 | B68: 64 | C68: رميساء ايمن عفيفى محمد دياب | D68: 15 | E68: 25 | F68: 24 | G68: 20 | H68: 21 | I68: 99 | J68: 98 | K68: 99 | L68: 97 | M68: 98 | N68: 18
A69: =IF(C69="","",SUBTOTAL(3,$C$5:C69)) -> 65 | B69: 65 | C69: رودينة عبد الله عبد الفتاح نصار | D69: 27 | E69: 30 | F69: 28 | G69: 29 | H69: 29 | I69: 99 | J69: 98 | K69: 99 | L69: 99 | M69: 98 | N69: 27
A70: =IF(C70="","",SUBTOTAL(3,$C$5:C70)) -> 66 | B70: 66 | C70: روضة احمد يوسف احمد النساج | D70: 30 | E70: 25 | F70: 28 | G70: 29 | H70: 30 | I70: 99 | J70: 98 | K70: 99 | L70: 97 | M70: 98 | N70: 28
A71: =IF(C71="","",SUBTOTAL(3,$C$5:C71)) -> 67 | B71: 67 | C71: ريناد ايمن محمد على حسنين عطوة | D71: 28 | E71: 28 | F71: 29 | G71: 26 | H71: 30 | I71: 97 | J71: 98 | K71: 97 | L71: 97 | M71: 98 | N71: 26
A72: =IF(C72="","",SUBTOTAL(3,$C$5:C72)) -> 68 | B72: 68 | C72: سارة حاتم عبد السميع سلطان | D72: 27 | E72: 18 | F72: 24 | G72: 26 | H72: 29 | I72: 99 | J72: 98 | K72: 99 | L72: 99 | M72: 98 | N72: 28
A73: =IF(C73="","",SUBTOTAL(3,$C$5:C73)) -> 69 | B73: 69 | C73: سارة علاء على الليثى | D73: 30 | E73: 30 | F73: 30 | G73: 30 | H73: 30 | I73: 99 | J73: 98 | K73: 99 | L73: 97 | M73: 98 | N73: 30
A74: =IF(C74="","",SUBTOTAL(3,$C$5:C74)) -> 70 | B74: 70 | C74: سعاد سعيد عبد المنعم ابراهيم | D74: 30 | E74: 30 | F74: 29 | G74: 30 | H74: 30 | I74: 99 | J74: 98 | K74: 99 | L74: 97 | M74: 98 | N74: 29
A75: =IF(C75="","",SUBTOTAL(3,$C$5:C75)) -> 71 | B75: 71 | C75: سلمى محمد سامى فتحى يونس | D75: 27 | E75: 26 | F75: 27 | G75: 28 | H75: 28 | I75: 99 | J75: 98 | K75: 99 | L75: 97 | M75: 98 | N75: 29
A76: =IF(C76="","",SUBTOTAL(3,$C$5:C76)) -> 72 | B76: 72 | C76: سلوى فرج عبدالله جبر العيسوى | D76: 21 | E76: 15 | F76: 23 | G76: 24 | H76: 26 | I76: 99 | J76: 98 | K76: 99 | L76: 99 | M76: 97 | N76: 23
A77: =IF(C77="","",SUBTOTAL(3,$C$5:C77)) -> 73 | B77: 73 | C77: سما احمد عبد الخالق بكر | D77: 30 | E77: 27 | F77: 29 | G77: 28 | H77: 28 | I77: 99 | J77: 98 | K77: 99 | L77: 99 | M77: 98 | N77: 24
A78: =IF(C78="","",SUBTOTAL(3,$C$5:C78)) -> 74 | B78: 74 | C78: سما حسين عبد الله مرسى المرادى | D78: 27 | E78: 26 | F78: 26 | G78: 28 | H78: 26 | I78: 99 | J78: 98 | K78: 99 | L78: 97 | M78: 98 | N78: 25
A79: =IF(C79="","",SUBTOTAL(3,$C$5:C79)) -> 75 | B79: 75 | C79: سندس اسامة محمود السيد داود | D79: 28 | E79: 25 | F79: 27 | G79: 27 | H79: 30 | I79: 97 | J79: 98 | K79: 97 | L79: 97 | M79: 97 | N79: 25
A80: =IF(C80="","",SUBTOTAL(3,$C$5:C80)) -> 76 | B80: 76 | C80: شروق احمد موسى الصادق | D80: 30 | E80: 25 | F80: 28 | G80: 28 | H80: 29 | I80: 99 | J80: 98 | K80: 99 | L80: 97 | M80: 98 | N80: 29
A81: =IF(C81="","",SUBTOTAL(3,$C$5:C81)) -> 77 | B81: 77 | C81: صفا هشام محروس احمد جبر | D81: 29 | E81: 27 | F81: 28 | G81: 29 | H81: 30 | I81: 99 | J81: 98 | K81: 99 | L81: 97 | M81: 98 | N81: 26
A82: =IF(C82="","",SUBTOTAL(3,$C$5:C82)) -> 78 | B82: 78 | C82: مريم ابراهيم عبد الله إبراهيم عامر | D82: 27 | E82: 25 | F82: 23 | G82: 23 | H82: 29 | I82: 99 | J82: 98 | K82: 99 | L82: 97 | M82: 98 | N82: 23
A83: =IF(C83="","",SUBTOTAL(3,$C$5:C83)) -> 79 | B83: 79 | C83: مريم احمد صلاح الدين احمد حسن | D83: 28 | E83: 29 | F83: 30 | G83: 30 | H83: 30 | I83: 97 | J83: 98 | K83: 97 | L83: 97 | M83: 98 | N83: 27
A84: =IF(C84="","",SUBTOTAL(3,$C$5:C84)) -> 80 | B84: 80 | C84: مريم سامح الدسوقى احمد ابو المجد | D84: 30 | E84: 25 | F84: 30 | G84: 28 | H84: 30 | I84: 99 | J84: 98 | K84: 99 | L84: 97 | M84: 98 | N84: 30
A85: =IF(C85="","",SUBTOTAL(3,$C$5:C85)) -> 81 | B85: 81 | C85: مريم شوفى محمد حلمى عبد العزيز | D85: 30 | E85: 26 | F85: 29 | G85: 27 | H85: 30 | I85: 99 | J85: 98 | K85: 99 | L85: 97 | M85: 98 | N85: 30
A86: =IF(C86="","",SUBTOTAL(3,$C$5:C86)) -> 82 | B86: 82 | C86: مريم محمد فوزى المهدى | D86: 29 | E86: 30 | F86: 30 | G86: 28 | H86: 30 | I86: 99 | J86: 98 | K86: 99 | L86: 97 | M86: 98 | N86: 28
A87: =IF(C87="","",SUBTOTAL(3,$C$5:C87)) -> 83 | B87: 83 | C87: مريم وليد مسعد سلطان | D87: 30 | E87: 29 | F87: 30 | G87: 28 | H87: 30 | I87: 99 | J87: 98 | K87: 99 | L87: 97 | M87: 98 | N87: 29
A88: =IF(C88="","",SUBTOTAL(3,$C$5:C88)) -> 84 | B88: 84 | C88: ملك محمد أحمد السعيد محمد | D88: 30 | E88: 30 | F88: 30 | G88: 29 | H88: 30 | I88: 99 | J88: 98 | K88: 99 | L88: 97 | M88: 98 | N88: 29
A89: =IF(C89="","",SUBTOTAL(3,$C$5:C89)) -> 85 | B89: 85 | C89: ملك محمد محمود حسنين محمد حسن | D89: 29 | E89: 29 | F89: 27 | G89: 30 | H89: 30 | I89: 99 | J89: 98 | K89: 99 | L89: 97 | M89: 98 | N89: 28
A90: =IF(C90="","",SUBTOTAL(3,$C$5:C90)) -> 86 | B90: 86 | C90: ملك محمود جبر احمد جبر | D90: 27 | E90: 16 | F90: 17 | G90: 20 | H90: 30 | I90: 99 | J90: 97 | K90: 99 | L90: 97 | M90: 98 | N90: 26
A91: =IF(C91="","",SUBTOTAL(3,$C$5:C91)) -> 87 | B91: 87 | C91: منة الله محمد الشحات حامد محمد | D91: 19 | E91: 26 | F91: 25 | G91: 15 | H91: 29 | I91: 99 | J91: 98 | K91: 99 | L91: 99 | M91: 98 | N91: 25
A92: =IF(C92="","",SUBTOTAL(3,$C$5:C92)) -> 88 | B92: 88 | C92: منه الله عمرو فتحى الحنفى | D92: 30 | E92: 30 | F92: 30 | G92: 30 | H92: 30 | I92: 99 | J92: 98 | K92: 99 | L92: 97 | M92: 98 | N92: 27
A93: =IF(C93="","",SUBTOTAL(3,$C$5:C93)) -> 89 | B93: 89 | C93: منه محمد عبداللا مراسى | D93: 29 | E93: 25 | F93: 30 | G93: 28 | H93: 30 | I93: 99 | J93: 98 | K93: 99 | L93: 97 | M93: 97 | N93: 27
A94: =IF(C94="","",SUBTOTAL(3,$C$5:C94)) -> 90 | B94: 90 | C94: مى محمد فتحى عبد الستار البرويشى | D94: 30 | E94: 29 | F94: 30 | G94: 29 | H94: 30 | I94: 99 | J94: 98 | K94: 99 | L94: 97 | M94: 98 | N94: 30
A95: =IF(C95="","",SUBTOTAL(3,$C$5:C95)) -> 91 | B95: 91 | C95: ميار محمد مصطفى عزيزالدين مصطفى الحاج | D95: 30 | E95: 29 | F95: 30 | G95: 29 | H95: 30 | I95: 99 | J95: 97 | K95: 99 | L95: 99 | M95: 98 | N95: 28
A96: =IF(C96="","",SUBTOTAL(3,$C$5:C96)) -> 92 | B96: 92 | C96: ميار محمود زكى حماد | D96: 30 | E96: 30 | F96: 30 | G96: 30 | H96: 30 | I96: 99 | J96: 98 | K96: 99 | L96: 97 | M96: 98 | N96: 29
A97: =IF(C97="","",SUBTOTAL(3,$C$5:C97)) -> 93 | B97: 93 | C97: نجوى السيد ابراهيم عابدين | D97: 29 | E97: 26 | F97: 30 | G97: 28 | H97: 30 | I97: 99 | J97: 98 | K97: 99 | L97: 97 | M97: 98 | N97: 30
A98: =IF(C98="","",SUBTOTAL(3,$C$5:C98)) -> 94 | B98: 94 | C98: نعمة احمد مجاهد معوض محمد | D98: 30 | E98: 29 | F98: 30 | G98: 30 | H98: 30 | I98: 99 | J98: 98 | K98: 99 | L98: 97 | M98: 98 | N98: 29
A99: =IF(C99="","",SUBTOTAL(3,$C$5:C99)) -> 95 | B99: 95 | C99: هاجر مصطفى طه محمود | D99: 30 | E99: 30 | F99: 30 | G99: 30 | H99: 30 | I99: 99 | J99: 98 | K99: 99 | L99: 97 | M99: 98 | N99: 30
A100: =IF(C100="","",SUBTOTAL(3,$C$5:C100)) -> 96 | B100: 96 | C100: هدي عادل محمد مصيلحي | D100: 30 | E100: 30 | F100: 30 | G100: 29 | H100: 30 | I100: 99 | J100: 98 | K100: 99 | L100: 97 | M100: 98 | N100: 30
A101: =IF(C101="","",SUBTOTAL(3,$C$5:C101)) -> 97 | B101: 97 | C101: هنا فؤاد محمد حلمى عبد العزيز | D101: 30 | E101: 29 | F101: 30 | G101: 29 | H101: 30 | I101: 99 | J101: 98 | K101: 99 | L101: 97 | M101: 98 | N101: 29
A102: =IF(C102="","",SUBTOTAL(3,$C$5:C102)) -> 98 | B102: 98 | C102: يارا ايمن حسن باز الشريف | D102: 26 | E102: 22 | F102: 27 | G102: 23 | H102: 30 | I102: 99 | J102: 98 | K102: 99 | L102: 97 | M102: 98 | N102: 28
A103: =IF(C103="","",SUBTOTAL(3,$C$5:C103)) -> 99 | B103: 99 | C103: ياسمين خالد اابراهيم الدسوقى النادى | D103: 28 | E103: 23 | F103: 29 | G103: 29 | H103: 30 | I103: 99 | J103: 98 | K103: 99 | L103: 97 | M103: 98 | N103: 30
A104: =IF(C104="","",SUBTOTAL(3,$C$5:C104)) -> 100 | B104: 100 | C104: ابراهيم سامح ابراهيم مصيلحى | D104: 11 | E104: 27 | F104: 29 | G104: 17 | H104: 29 | I104: 95 | J104: 98 | K104: 95 | L104: 97 | M104: 98 | N104: 13
A105: =IF(C105="","",SUBTOTAL(3,$C$5:C105)) -> 101 | B105: 101 | C105: أحمد رشدى وهبه حسن متولى | D105: صفر | E105: 19 | F105: 29 | G105: 23 | H105: 30 | I105: 98 | J105: 99 | K105: 98 | L105: 97 | M105: 98 | N105: 6
A106: =IF(C106="","",SUBTOTAL(3,$C$5:C106)) -> 102 | B106: 102 | C106: احمد محمد محمد عبد العزيز حماد | D106: 7 | E106: 26 | F106: 27 | G106: 21 | H106: 30 | I106: 99 | J106: 98 | K106: 99 | L106: 99 | M106: 98 | N106: 25
A107: =IF(C107="","",SUBTOTAL(3,$C$5:C107)) -> 103 | B107: 103 | C107: السيد مصطفى السيد مصطفى | D107: صفر | E107: 18 | F107: 12 | G107: 1 | H107: 9 | I107: 100 | J107: 100 | K107: 100 | L107: 99 | M107: 99 | N107: صفر
A108: =IF(C108="","",SUBTOTAL(3,$C$5:C108)) -> 104 | B108: 104 | C108: حسن محمود حسن حسن متولى | D108: 18 | E108: 14 | F108: 24 | G108: 10 | H108: 20 | I108: 99 | J108: 98 | K108: 99 | L108: 97 | M108: 98 | N108: 24
A109: =IF(C109="","",SUBTOTAL(3,$C$5:C109)) -> 105 | B109: 105 | C109: رشاد محمود أحمد محمد المرادى | D109: صفر | E109: 16 | F109: 14 | G109: 6 | H109: 11 | I109: 100 | J109: 100 | K109: 100 | L109: 100 | M109: 100 | N109: 4
A110: =IF(C110="","",SUBTOTAL(3,$C$5:C110)) -> 106 | B110: 106 | C110: على محمد على عبد العزيز حماد | D110: 24 | E110: 9 | F110: 24 | G110: 23 | H110: 22 | I110: 99 | J110: 99 | K110: 99 | L110: 99 | M110: 97 | N110: 27
A111: =IF(C111="","",SUBTOTAL(3,$C$5:C111)) -> 107 | B111: 107 | C111: محمد ابراهيم زكى احمد البحيرى | D111: 26 | E111: 11 | F111: 24 | G111: 13 | H111: 22 | I111: 99 | J111: 98 | K111: 99 | L111: 97 | M111: 98 | N111: 24
A112: =IF(C112="","",SUBTOTAL(3,$C$5:C112)) -> 108 | B112: 108 | C112: محمود محمد إبراهيم متولى المرادى | D112: 16 | E112: 17 | F112: 28 | G112: 12 | H112: 24 | I112: 97 | J112: 96 | K112: 97 | L112: 95 | M112: 98 | N112: 27
A113: =IF(C113="","",SUBTOTAL(3,$C$5:C113)) -> 109 | B113: 109 | C113: جنى محمود عبد الراضى حسنين احمد | D113: 19 | E113: 24 | F113: 16 | G113: 7 | H113: 28 | I113: 97 | J113: 96 | K113: 97 | L113: 95 | M113: 98 | N113: 18
A114: =IF(C114="","",SUBTOTAL(3,$C$5:C114)) -> 110 | B114: 110 | C114: شهد مصطفى صبحى عبد العزيز حماد | D114: 12 | E114: 22 | F114: 28 | G114: 23 | H114: 29 | I114: 99 | J114: 98 | K114: 99 | L114: 97 | M114: 98 | N114: 24
A115: =IF(C115="","",SUBTOTAL(3,$C$5:C115)) -> 111 | B115: 111 | C115: ملك محمد كمال الصادق فرج | D115: 15 | E115: 7 | F115: 12 | G115: 7 | H115: 16 | I115: 99 | J115: 98 | K115: 99 | L115: 97 | M115: 98 | N115: 11
A116: =IF(C116="","",SUBTOTAL(3,$C$5:C116)) -> 112 | B116: 112 | C116: ياسمين محمد عبد العزيز محمد | D116: 14 | E116: 11 | F116: 19 | G116: 26 | H116: 29 | I116: 99 | J116: 98 | K116: 99 | L116: 97 | M116: 98 | N116: 18

Sheet الخامس
A1: إدارة قويسنا التعليمية0 الصف الخامس
A2: مدرسة عربالرمل الإبتدائية سكة حديد | F2: نتيجة نصف العام 2019/2018
A3: م | B3: جلوس | C3: الاســــــــــــــم | D3: لغة عربية | E3: رياضيات | F3: لغة إنجليزية | G3: دراسات | H3: علوم | I3: فنى | J3: رياضى | K3: حاسب آلى | L3: نشاط1 | M3: نشاط2 | N3: دين
D4: 30 | E4: 30 | F4: 30 | G4: 30 | H4: 30 | I4: 100 | J4: 100 | K4: 100 | L4: 100 | M4: 100 | N4: 30
A5: =IF(C5="","",SUBTOTAL(3,$C$5:C5)) -> 1 | B5: 201 | C5: ابراهيم السيد صبحى احمد الفارس | D5: 29 | E5: 25 | F5: 29 | G5: 28 | H5: 30 | I5: 95 | J5: 98 | K5: 99 | L5: 97 | M5: 98 | N5: 28
A6: =IF(C6="","",SUBTOTAL(3,$C$5:C6)) -> 2 | B6: 202 | C6: احمد السيد عباس مصلحى | D6: 19 | E6: 21 | F6: 26 | G6: 28 | H6: 30 | I6: 98 | J6: 98 | K6: 98 | L6: 97 | M6: 98 | N6: 19
A7: =IF(C7="","",SUBTOTAL(3,$C$5:C7)) -> 3 | B7: 203 | C7: أحمد أيمن السعيد المهدى العليمى | D7: 29 | E7: 30 | F7: 30 | G7: 30 | H7: 30 | I7: 99 | J7: 98 | K7: 98 | L7: 97 | M7: 98 | N7: 30
A8: =IF(C8="","",SUBTOTAL(3,$C$5:C8)) -> 4 | B8: 204 | C8: احمد حسين عبدالله مرسى المرادى | D8: 19 | E8: 25 | F8: 30 | G8: 29 | H8: 30 | I8: 97 | J8: 98 | K8: 98 | L8: 97 | M8: 98 | N8: 21
A9: =IF(C9="","",SUBTOTAL(3,$C$5:C9)) -> 5 | B9: 205 | C9: أحمد عادل محمد جلالة | D9: 28 | E9: 28 | F9: 29 | G9: 30 | H9: 30 | I9: 98 | J9: 99 | K9: 99 | L9: 97 | M9: 98 | N9: 30
A10: =IF(C10="","",SUBTOTAL(3,$C$5:C10)) -> 6 | B10: 206 | C10: أحمد عبد الرازق محمد الهادى عبد الرازق خليل | D10: 26 | E10: 30 | F10: 29 | G10: 30 | H10: 30 | I10: 99 | J10: 98 | K10: 98 | L10: 99 | M10: 98 | N10: 30
A11: =IF(C11="","",SUBTOTAL(3,$C$5:C11)) -> 7 | B11: 207 | C11: أحمد عبد المنعم محمد امام المرادى | D11: 27 | E11: 30 | F11: 28 | G11: 30 | H11: 30 | I11: 99 | J11: 98 | K11: 98 | L11: 99 | M11: 98 | N11: 28
A12: =IF(C12="","",SUBTOTAL(3,$C$5:C12)) -> 8 | B12: 208 | C12: أحمد كرم أحمد محمد عبد الله | D12: 19 | E12: 25 | F12: 24 | G12: 19 | H12: 28 | I12: 99 | J12: 98 | K12: 98 | L12: 99 | M12: 98 | N12: 17
A13: =IF(C13="","",SUBTOTAL(3,$C$5:C13)) -> 9 | B13: 209 | C13: احمد محمد حسن على الدهين | D13: 27 | E13: 26 | F13: 27 | G13: 29 | H13: 30 | I13: 99 | J13: 98 | K13: 98 | L13: 99 | M13: 97 | N13: 27
A14: =IF(C14="","",SUBTOTAL(3,$C$5:C14)) -> 10 | B14: 210 | C14: انس محروس عبد الرازق زايد | D14: 24 | E14: 23 | F14: 23 | G14: 30 | H14: 30 | I14: 99 | J14: 98 | K14: 98 | L14: 99 | M14: 98 | N14: 25
A15: =IF(C15="","",SUBTOTAL(3,$C$5:C15)) -> 11 | B15: 211 | C15: اياد احمد جبر احمد جبر | D15: 23 | E15: 27 | F15: 30 | G15: 30 | H15: 30 | I15: 100 | J15: 100 | K15: 100 | L15: 99 | M15: 99 | N15: 28
A16: =IF(C16="","",SUBTOTAL(3,$C$5:C16)) -> 12 | B16: 212 | C16: باسم السيد عبد المعطى السيد الشربينى | D16: 20 | E16: 25 | F16: 19 | G16: 26 | H16: 28 | I16: 99 | J16: 98 | K16: 98 | L16: 97 | M16: 98 | N16: 29
A17: =IF(C17="","",SUBTOTAL(3,$C$5:C17)) -> 13 | B17: 213 | C17: زياد عاطف محمد عبدالمنعم | D17: 29 | E17: 28 | F17: 30 | G17: 29 | H17: 30 | I17: 99 | J17: 98 | K17: 98 | L17: 99 | M17: 98 | N17: 30
A18: =IF(C18="","",SUBTOTAL(3,$C$5:C18)) -> 14 | B18: 214 | C18: زياد عبد المنعم السيد محمد زايد | D18: 29 | E18: 30 | F18: 30 | G18: 30 | H18: 29 | I18: 99 | J18: 98 | K18: 98 | L18: 99 | M18: 98 | N18: 30
A19: =IF(C19="","",SUBTOTAL(3,$C$5:C19)) -> 15 | B19: 215 | C19: زياد هانى محمد الهادى عبد الرازق خليل | D19: 30 | E19: 29 | F19: 28 | G19: 30 | H19: 30 | I19: 98 | J19: 99 | K19: 99 | L19: 97 | M19: 96 | N19: 30
A20: =IF(C20="","",SUBTOTAL(3,$C$5:C20)) -> 16 | B20: 216 | C20: عبد الرحمن أسامة محمود السيد داود | D20: 28 | E20: 28 | F20: 29 | G20: 30 | H20: 30 | I20: 99 | J20: 98 | K20: 98 | L20: 97 | M20: 98 | N20: 30
A21: =IF(C21="","",SUBTOTAL(3,$C$5:C21)) -> 17 | B21: 217 | C21: عبد الرحمن وجيه عبد الحليم عنتر السيد | D21: 24 | E21: 15 | F21: 29 | G21: 27 | H21: 28 | I21: 99 | J21: 98 | K21: 98 | L21: 99 | M21: 98 | N21: 23
A22: =IF(C22="","",SUBTOTAL(3,$C$5:C22)) -> 18 | B22: 218 | C22: عبد السميع خالد عبد السميع بكر | D22: 25 | E22: 19 | F22: 25 | G22: 29 | H22: 28 | I22: 100 | J22: 100 | K22: 100 | L22: 100 | M22: 100 | N22: 25
A23: =IF(C23="","",SUBTOTAL(3,$C$5:C23)) -> 19 | B23: 219 | C23: عبد العزيز السيد عبد العزيز محمد إبراهيم | D23: 30 | E23: 26 | F23: 29 | G23: 29 | H23: 30 | I23: 99 | J23: 99 | K23: 99 | L23: 99 | M23: 97 | N23: 30
A24: =IF(C24="","",SUBTOTAL(3,$C$5:C24)) -> 20 | B24: 220 | C24: عبدالرحمن محمد يوسف عبدالله المرادى | D24: 29 | E24: 22 | F24: 30 | G24: 29 | H24: 30 | I24: 99 | J24: 98 | K24: 98 | L24: 99 | M24: 98 | N24: 30
A25: =IF(C25="","",SUBTOTAL(3,$C$5:C25)) -> 21 | B25: 221 | C25: على محمد على موسى حسين | D25: 26 | E25: 25 | F25: 28 | G25: 28 | H25: 29 | I25: 100 | J25: 98 | K25: 98 | L25: 100 | M25: 98 | N25: 26
A26: =IF(C26="","",SUBTOTAL(3,$C$5:C26)) -> 22 | B26: 222 | C26: عمار سامح عبد الفتاح العونى | D26: 29 | E26: 27 | F26: 29 | G26: 29 | H26: 29 | I26: 99 | J26: 98 | K26: 98 | L26: 97 | M26: 98 | N26: 30
A27: =IF(C27="","",SUBTOTAL(3,$C$5:C27)) -> 23 | B27: 223 | C27: عمار محمد عفيفي محمد عيسي | D27: 21 | E27: 24 | F27: 28 | G27: 25 | H27: 29 | I27: 99 | J27: 98 | K27: 98 | L27: 99 | M27: 97 | N27: 28
A28: =IF(C28="","",SUBTOTAL(3,$C$5:C28)) -> 24 | B28: 224 | C28: عمر ايهاب محمود محمد يوسف | D28: 30 | E28: 29 | F28: 30 | G28: 30 | H28: 30 | I28: 99 | J28: 98 | K28: 98 | L28: 97 | M28: 98 | N28: 30
A29: =IF(C29="","",SUBTOTAL(3,$C$5:C29)) -> 25 | B29: 225 | C29: عمر عفيفى عفيفى قطب حسن | D29: 25 | E29: 27 | F29: 27 | G29: 30 | H29: 30 | I29: 99 | J29: 98 | K29: 98 | L29: 99 | M29: 98 | N29: 29
A30: =IF(C30="","",SUBTOTAL(3,$C$5:C30)) -> 26 | B30: 226 | C30: عمر محمد سمير عطية عفيفى الخولى | D30: 28 | E30: 26 | F30: 29 | G30: 28 | H30: 31 | I30: 99 | J30: 98 | K30: 98 | L30: 97 | M30: 98 | N30: 24
A31: =IF(C31="","",SUBTOTAL(3,$C$5:C31)) -> 27 | B31: 227 | C31: عمير محمد فهمى احمد الحنفى | D31: 25 | E31: 22 | F31: 28 | G31: 29 | H31: 29 | I31: 99 | J31: 98 | K31: 98 | L31: 99 | M31: 98 | N31: 20
A32: =IF(C32="","",SUBTOTAL(3,$C$5:C32)) -> 28 | B32: 228 | C32: فارس مجاهد على الليثى | D32: 29 | E32: 28 | F32: 29 | G32: 29 | H32: 30 | I32: 99 | J32: 98 | K32: 98 | L32: 97 | M32: 98 | N32: 30
A33: =IF(C33="","",SUBTOTAL(3,$C$5:C33)) -> 29 | B33: 229 | C33: كريم أحمد عبد الرحمن السيد يوسف | D33: 29 | E33: 26 | F33: 30 | G33: 25 | H33: 29 | I33: 99 | J33: 98 | K33: 98 | L33: 97 | M33: 98 | N33: 30
A34: =IF(C34="","",SUBTOTAL(3,$C$5:C34)) -> 30 | B34: 230 | C34: كريم شوقى السيد محمد محمد | D34: 23 | E34: 20 | F34: 22 | G34: 27 | H34: 30 | I34: 99 | J34: 98 | K34: 98 | L34: 99 | M34: 98 | N34: 25
A35: =IF(C35="","",SUBTOTAL(3,$C$5:C35)) -> 31 | B35: 231 | C35: ماجد محمد السيد بكر | D35: 30 | E35: 28 | F35: 29 | G35: 29 | H35: 30 | I35: 99 | J35: 98 | K35: 98 | L35: 97 | M35: 98 | N35: 27
A36: =IF(C36="","",SUBTOTAL(3,$C$5:C36)) -> 32 | B36: 232 | C36: مازن محمد حسين عبدالوهاب | D36: 29 | E36: 30 | F36: 27 | G36: 30 | H36: 28 | I36: 99 | J36: 98 | K36: 98 | L36: 97 | M36: 98 | N36: 30
A37: =IF(C37="","",SUBTOTAL(3,$C$5:C37)) -> 33 | B37: 233 | C37: محمد أسامه عبد العاطى عبد العزيز موسى | D37: 29 | E37: 30 | F37: 30 | G37: 30 | H37: 30 | I37: 99 | J37: 98 | K37: 98 | L37: 97 | M37: 98 | N37: 30
A38: =IF(C38="","",SUBTOTAL(3,$C$5:C38)) -> 34 | B38: 234 | C38: محمد السيد البيومى السيد | D38: 24 | E38: 21 | F38: 27 | G38: 27 | H38: 27 | I38: 99 | J38: 98 | K38: 98 | L38: 97 | M38: 98 | N38: 29
A39: =IF(C39="","",SUBTOTAL(3,$C$5:C39)) -> 35 | B39: 235 | C39: محمد ايمن ابراهيم امام سليمان | D39: 26 | E39: 28 | F39: 30 | G39: 29 | H39: 30 | I39: 99 | J39: 98 | K39: 98 | L39: 97 | M39: 98 | N39: 28
A40: =IF(C40="","",SUBTOTAL(3,$C$5:C40)) -> 36 | B40: 236 | C40: محمد طارق محمد السيد أبو الفتوح | D40: 21 | E40: 23 | F40: 28 | G40: 28 | H40: 30 | I40: 97 | J40: 96 | K40: 96 | L40: 95 | M40: 98 | N40: 30
A41: =IF(C41="","",SUBTOTAL(3,$C$5:C41)) -> 37 | B41: 237 | C41: محمد عادل نبيل فهيم | D41: 25 | E41: 24 | F41: 26 | G41: 28 | H41: 30 | I41: 97 | J41: 96 | K41: 96 | L41: 95 | M41: 98 | N41: 28
A42: =IF(C42="","",SUBTOTAL(3,$C$5:C42)) -> 38 | B42: 238 | C42: محمد عبد المنعم عبد الرازق عبد المنعم محمد | D42: 19 | E42: 30 | F42: 24 | G42: 28 | H42: 28 | I42: 99 | J42: 98 | K42: 98 | L42: 99 | M42: 98 | N42: 30
A43: =IF(C43="","",SUBTOTAL(3,$C$5:C43)) -> 39 | B43: 239 | C43: محمد علي محمد علي حسن | D43: 30 | E43: 28 | F43: 30 | G43: 29 | H43: 30 | I43: 99 | J43: 98 | K43: 98 | L43: 99 | M43: 98 | N43: 30
A44: =IF(C44="","",SUBTOTAL(3,$C$5:C44)) -> 40 | B44: 240 | C44: محمد عماد رمضان محمد عبد الحميد | D44: 30 | E44: 27 | F44: 30 | G44: 29 | H44: 30 | I44: 97 | J44: 98 | K44: 98 | L44: 97 | M44: 98 | N44: 29
A45: =IF(C45="","",SUBTOTAL(3,$C$5:C45)) -> 41 | B45: 241 | C45: محمد نبيل عبد العزيز بكر | D45: 28 | E45: 22 | F45: 29 | G45: 29 | H45: 30 | I45: 99 | J45: 98 | K45: 98 | L45: 99 | M45: 98 | N45: 29
A46: =IF(C46="","",SUBTOTAL(3,$C$5:C46)) -> 42 | B46: 242 | C46: محمود أحمد ابراهيم متولى السيد | D46: 26 | E46: 30 | F46: 24 | G46: 28 | H46: 26 | I46: 100 | J46: 100 | K46: 100 | L46: 100 | M46: 100 | N46: 30
A47: =IF(C47="","",SUBTOTAL(3,$C$5:C47)) -> 43 | B47: 243 | C47: محمود أحمد محروس السيد يكر | D47: 29 | E47: 30 | F47: 30 | G47: 29 | H47: 30 | I47: 99 | J47: 99 | K47: 99 | L47: 100 | M47: 98 | N47: 29
A48: =IF(C48="","",SUBTOTAL(3,$C$5:C48)) -> 44 | B48: 244 | C48: محمود زايد عبد المنعم زايد | D48: 22 | E48: 16 | F48: 24 | G48: 28 | H48: 27 | I48: 99 | J48: 98 | K48: 98 | L48: 99 | M48: 98 | N48: 25
A49: =IF(C49="","",SUBTOTAL(3,$C$5:C49)) -> 45 | B49: 245 | C49: محمود شوقي الحسيني عثمان | D49: 19 | E49: 26 | F49: 26 | G49: 28 | H49: 28 | I49: 99 | J49: 98 | K49: 98 | L49: 99 | M49: 98 | N49: 26
A50: =IF(C50="","",SUBTOTAL(3,$C$5:C50)) -> 46 | B50: 246 | C50: محمود عادل رزق عبد الهادى عطيه | D50: 29 | E50: 29 | F50: 30 | G50: 30 | H50: 30 | I50: 98 | J50: 98 | K50: 98 | L50: 99 | M50: 98 | N50: 29
A51: =IF(C51="","",SUBTOTAL(3,$C$5:C51)) -> 47 | B51: 247 | C51: محمود فوزى محمود سعيد سيد احمد | D51: 28 | E51: 29 | F51: 29 | G51: 29 | H51: 30 | I51: 99 | J51: 98 | K51: 98 | L51: 97 | M51: 98 | N51: 28
A52: =IF(C52="","",SUBTOTAL(3,$C$5:C52)) -> 48 | B52: 248 | C52: محمود وائل محمود حماد | D52: 27 | E52: 29 | F52: 27 | G52: 29 | H52: 30 | I52: 99 | J52: 98 | K52: 98 | L52: 99 | M52: 87 | N52: 30
A53: =IF(C53="","",SUBTOTAL(3,$C$5:C53)) -> 49 | B53: 249 | C53: مروان محمود على الليثى | D53: 26 | E53: 29 | F53: 28 | G53: 29 | H53: 29 | I53: 97 | J53: 96 | K53: 96 | L53: 95 | M53: 98 | N53: 29
A54: =IF(C54="","",SUBTOTAL(3,$C$5:C54)) -> 50 | B54: 250 | C54: يوسف احمد فايز عبدالمولى فرج | D54: 27 | E54: 28 | F54: 26 | G54: 29 | H54: 30 | I54: 99 | J54: 98 | K54: 98 | L54: 97 | M54: 98 | N54: 30
A55: =IF(C55="","",SUBTOTAL(3,$C$5:C55)) -> 51 | B55: 251 | C55: يوسف الخضرى محمد الخضرى العليمى | D55: 27 | E55: 30 | F55: 30 | G55: 30 | H55: 30 | I55: 99 | J55: 98 | K55: 98 | L55: 99 | M55: 98 | N55: 30
A56: =IF(C56="","",SUBTOTAL(3,$C$5:C56)) -> 52 | B56: 252 | C56: يوسف أمير عبدالرازق يوسف عبد الله | D56: 25 | E56: 22 | F56: 28 | G56: 29 | H56: 29 | I56: 97 | J56: 96 | K56: 96 | L56: 95 | M56: 98 | N56: 23
A57: =IF(C57="","",SUBTOTAL(3,$C$5:C57)) -> 53 | B57: 253 | C57: يوسف محمد عبد الراضى حسنين أحمد | D57: 20 | E57: 21 | F57: 28 | G57: 28 | H57: 29 | I57: 96 | J57: 97 | K57: 97 | L57: 98 | M57: 98 | N57: 20
A58: =IF(C58="","",SUBTOTAL(3,$C$5:C58)) -> 54 | B58: 254 | C58: أمنية عبد الحفيظ عبد الرازق مصطفى | D58: 29 | E58: 30 | F58: 29 | G58: 30 | H58: 30 | I58: 99 | J58: 98 | K58: 98 | L58: 97 | M58: 98 | N58: 26
A59: =IF(C59="","",SUBTOTAL(3,$C$5:C59)) -> 55 | B59: 255 | C59: أمنية عبد المنعم عبد المنعم زايد | D59: 30 | E59: 30 | F59: 30 | G59: 30 | H59: 30 | I59: 97 | J59: 96 | K59: 96 | L59: 95 | M59: 98 | N59: 30
A60: =IF(C60="","",SUBTOTAL(3,$C$5:C60)) -> 56 | B60: 256 | C60: انجى ايهاب يحيي عبدالحى على | D60: 30 | E60: 29 | F60: 30 | G60: 29 | H60: 30 | I60: 99 | J60: 98 | K60: 98 | L60: 97 | M60: 98 | N60: 30
A61: =IF(C61="","",SUBTOTAL(3,$C$5:C61)) -> 57 | B61: 257 | C61: أية ربيع عبد الحفيظ حسن علي | D61: 29 | E61: 28 | F61: 30 | G61: 28 | H61: 30 | I61: 98 | J61: 97 | K61: 97 | L61: 95 | M61: 96 | N61: 28
A62: =IF(C62="","",SUBTOTAL(3,$C$5:C62)) -> 58 | B62: 258 | C62: ايمان محمد جمال عبد الحليم المرادى | D62: 30 | E62: 29 | F62: 30 | G62: 28 | H62: 30 | I62: 96 | J62: 95 | K62: 95 | L62: 94 | M62: 95 | N62: 23
A63: =IF(C63="","",SUBTOTAL(3,$C$5:C63)) -> 59 | B63: 259 | C63: بسملة اشرف عبد الحليم عنتر عفيفى | D63: 21 | E63: 22 | F63: 30 | G63: 28 | H63: 27 | I63: 99 | J63: 98 | K63: 98 | L63: 97 | M63: 98 | N63: 25
A64: =IF(C64="","",SUBTOTAL(3,$C$5:C64)) -> 60 | B64: 260 | C64: تيسير ابراهيم عبدالعليم بيومى عابدين | D64: 25 | E64: 24 | F64: 30 | G64: 29 | H64: 29 | I64: 97 | J64: 96 | K64: 96 | L64: 95 | M64: 97 | N64: 29
A65: =IF(C65="","",SUBTOTAL(3,$C$5:C65)) -> 61 | B65: 261 | C65: جنه جمال امام محمد المرادى | D65: 28 | E65: 30 | F65: 29 | G65: 29 | H65: 29 | I65: 97 | J65: 96 | K65: 96 | L65: 95 | M65: 96 | N65: 29
A66: =IF(C66="","",SUBTOTAL(3,$C$5:C66)) -> 62 | B66: 262 | C66: جنى أحمد عبد العزيزمحمد عبد الغنى | D66: 30 | E66: 29 | F66: 30 | G66: 30 | H66: 30 | I66: 99 | J66: 98 | K66: 98 | L66: 97 | M66: 98 | N66: 30
A67: =IF(C67="","",SUBTOTAL(3,$C$5:C67)) -> 63 | B67: 263 | C67: جنى محمد حسن بازالشريف | D67: 30 | E67: 30 | F67: 30 | G67: 29 | H67: 30 | I67: 99 | J67: 98 | K67: 98 | L67: 97 | M67: 98 | N67: 30
A68: =IF(C68="","",SUBTOTAL(3,$C$5:C68)) -> 64 | B68: 264 | C68: جنى محمود جمال جوده على | D68: 30 | E68: 30 | F68: 30 | G68: 30 | H68: 30 | I68: 99 | J68: 98 | K68: 98 | L68: 99 | M68: 98 | N68: 30
A69: =IF(C69="","",SUBTOTAL(3,$C$5:C69)) -> 65 | B69: 265 | C69: جني الخضري وهبه الخضري | D69: 30 | E69: 29 | F69: 30 | G69: 29 | H69: 30 | I69: 99 | J69: 98 | K69: 98 | L69: 97 | M69: 98 | N69: 30
A70: =IF(C70="","",SUBTOTAL(3,$C$5:C70)) -> 66 | B70: 266 | C70: حبيبه محمد عبدالمنعم السيد عابدين | D70: 30 | E70: 29 | F70: 30 | G70: 29 | H70: 30 | I70: 99 | J70: 98 | K70: 98 | L70: 99 | M70: 98 | N70: 29
A71: =IF(C71="","",SUBTOTAL(3,$C$5:C71)) -> 67 | B71: 267 | C71: حبيبه هاني كرم عبد الرشيد عقل | D71: 30 | E71: 29 | F71: 30 | G71: 29 | H71: 30 | I71: 99 | J71: 98 | K71: 98 | L71: 97 | M71: 98 | N71: 30
A72: =IF(C72="","",SUBTOTAL(3,$C$5:C72)) -> 68 | B72: 268 | C72: حنان عبد الحميد إبراهيم على عبد العزيزبحر | D72: 30 | E72: 25 | F72: 30 | G72: 29 | H72: 30 | I72: 97 | J72: 98 | K72: 98 | L72: 97 | M72: 98 | N72: 30
A73: =IF(C73="","",SUBTOTAL(3,$C$5:C73)) -> 69 | B73: 269 | C73: حنين السيد البيومى السيد | D73: 28 | E73: 27 | F73: 28 | G73: 29 | H73: 30 | I73: 99 | J73: 98 | K73: 98 | L73: 99 | M73: 98 | N73: 28
A74: =IF(C74="","",SUBTOTAL(3,$C$5:C74)) -> 70 | B74: 270 | C74: دنيا وليد جمال السيد النجار | D74: 28 | E74: 30 | F74: 29 | G74: 27 | H74: 30 | I74: 99 | J74: 98 | K74: 98 | L74: 97 | M74: 98 | N74: 30
A75: =IF(C75="","",SUBTOTAL(3,$C$5:C75)) -> 71 | B75: 271 | C75: رحمة صلاح الدين احمد عبد الوهاب حماد | D75: 26 | E75: 25 | F75: 26 | G75: 30 | H75: 28 | I75: 99 | J75: 98 | K75: 98 | L75: 97 | M75: 98 | N75: 30
A76: =IF(C76="","",SUBTOTAL(3,$C$5:C76)) -> 72 | B76: 272 | C76: رحيل سعيد مسعد السعيد سيد احمد | D76: 30 | E76: 21 | F76: 24 | G76: 28 | H76: 25 | I76: 99 | J76: 98 | K76: 98 | L76: 97 | M76: 98 | N76: 24
A77: =IF(C77="","",SUBTOTAL(3,$C$5:C77)) -> 73 | B77: 273 | C77: رزان محمد عبد العاطى عبد العزيز محمد | D77: 30 | E77: 28 | F77: 30 | G77: 29 | H77: 30 | I77: 99 | J77: 98 | K77: 98 | L77: 99 | M77: 97 | N77: 30
A78: =IF(C78="","",SUBTOTAL(3,$C$5:C78)) -> 74 | B78: 274 | C78: روان السيد عبدالوهاب عبداللطيف متولى | D78: 30 | E78: 30 | F78: 30 | G78: 30 | H78: 29 | I78: 99 | J78: 98 | K78: 98 | L78: 99 | M78: 98 | N78: 30
A79: =IF(C79="","",SUBTOTAL(3,$C$5:C79)) -> 75 | B79: 275 | C79: رويدا احمد صبحى عبد الرازق | D79: 30 | E79: 28 | F79: 30 | G79: 30 | H79: 30 | I79: 99 | J79: 98 | K79: 98 | L79: 97 | M79: 98 | N79: 30
A80: =IF(C80="","",SUBTOTAL(3,$C$5:C80)) -> 76 | B80: 276 | C80: سارة ابراهيم محمد فتوح أحمد العونى | D80: 30 | E80: 29 | F80: 30 | G80: 29 | H80: 30 | I80: 97 | J80: 98 | K80: 98 | L80: 97 | M80: 97 | N80: 30
A81: =IF(C81="","",SUBTOTAL(3,$C$5:C81)) -> 77 | B81: 277 | C81: سلسبيل صالح عبد الحفيظ المرسى المرادى | D81: 26 | E81: 20 | F81: 29 | G81: 29 | H81: 30 | I81: 99 | J81: 98 | K81: 98 | L81: 97 | M81: 98 | N81: 28
A82: =IF(C82="","",SUBTOTAL(3,$C$5:C82)) -> 78 | B82: 278 | C82: سلمى أيمن محمود البحيرى | D82: 30 | E82: 29 | F82: 30 | G82: 29 | H82: 30 | I82: 99 | J82: 98 | K82: 98 | L82: 97 | M82: 98 | N82: 30
A83: =IF(C83="","",SUBTOTAL(3,$C$5:C83)) -> 79 | B83: 279 | C83: سما رامى فتحى عبد العزيز عبد الرحمن | D83: 26 | E83: 28 | F83: 30 | G83: 29 | H83: 30 | I83: 99 | J83: 98 | K83: 98 | L83: 97 | M83: 98 | N83: 30
A84: =IF(C84="","",SUBTOTAL(3,$C$5:C84)) -> 80 | B84: 280 | C84: شهد أحمد مكاوى أحمد | D84: 27 | E84: 25 | F84: 30 | G84: 28 | H84: 30 | I84: 99 | J84: 98 | K84: 98 | L84: 97 | M84: 98 | N84: 30
A85: =IF(C85="","",SUBTOTAL(3,$C$5:C85)) -> 81 | B85: 281 | C85: شهد شوقى محمد حلمى عبد العزيز | D85: 29 | E85: 28 | F85: 30 | G85: 29 | H85: 30 | I85: 97 | J85: 98 | K85: 98 | L85: 97 | M85: 98 | N85: 30
A86: =IF(C86="","",SUBTOTAL(3,$C$5:C86)) -> 82 | B86: 282 | C86: شيماء ابراهيم أحمد متولى | D86: 28 | E86: 28 | F86: 28 | G86: 27 | H86: 28 | I86: 99 | J86: 98 | K86: 98 | L86: 97 | M86: 98 | N86: 30
A87: =IF(C87="","",SUBTOTAL(3,$C$5:C87)) -> 83 | B87: 283 | C87: صفا يوسف السيد محمد يوسف | D87: 29 | E87: 28 | F87: 30 | G87: 29 | H87: 30 | I87: 99 | J87: 98 | K87: 98 | L87: 97 | M87: 98 | N87: 30
A88: =IF(C88="","",SUBTOTAL(3,$C$5:C88)) -> 84 | B88: 284 | C88: صفاء أيمن فتحى أحمد رضوان | D88: 28 | E88: 29 | F88: 30 | G88: 28 | H88: 30 | I88: 99 | J88: 98 | K88: 98 | L88: 97 | M88: 98 | N88: 25
A89: =IF(C89="","",SUBTOTAL(3,$C$5:C89)) -> 85 | B89: 285 | C89: فرح حسن عبدالحفيظ حسن اسماعيل | D89: 28 | E89: 29 | F89: 30 | G89: 28 | H89: 30 | I89: 99 | J89: 98 | K89: 98 | L89: 97 | M89: 98 | N89: 30
A90: =IF(C90="","",SUBTOTAL(3,$C$5:C90)) -> 86 | B90: 286 | C90: فرح عبد الله عبد المنعم يوسف عبد الله | D90: 25 | E90: 30 | F90: 30 | G90: 30 | H90: 30 | I90: 99 | J90: 98 | K90: 98 | L90: 97 | M90: 98 | N90: 26
A91: =IF(C91="","",SUBTOTAL(3,$C$5:C91)) -> 87 | B91: 287 | C91: مريم احمد مأمون السيد زايد | D91: 29 | E91: 29 | F91: 30 | G91: 30 | H91: 30 | I91: 99 | J91: 98 | K91: 98 | L91: 97 | M91: 98 | N91: 30
A92: =IF(C92="","",SUBTOTAL(3,$C$5:C92)) -> 88 | B92: 288 | C92: مريم بشير فتحي عبد الكريم يوسف | D92: 30 | E92: 30 | F92: 30 | G92: 30 | H92: 30 | I92: 99 | J92: 98 | K92: 98 | L92: 97 | M92: 98 | N92: 30
A93: =IF(C93="","",SUBTOTAL(3,$C$5:C93)) -> 89 | B93: 289 | C93: مريم محمد حسن عبد الحفيظ عابدين | D93: 30 | E93: 29 | F93: 30 | G93: 30 | H93: 30 | I93: 99 | J93: 97 | K93: 97 | L93: 97 | M93: 98 | N93: 30
A94: =IF(C94="","",SUBTOTAL(3,$C$5:C94)) -> 90 | B94: 290 | C94: مريم محمد حسين محمد عفيفى | D94: 30 | E94: 29 | F94: 30 | G94: 29 | H94: 30 | I94: 99 | J94: 98 | K94: 98 | L94: 99 | M94: 98 | N94: 30
A95: =IF(C95="","",SUBTOTAL(3,$C$5:C95)) -> 91 | B95: 291 | C95: ملك احمد عبدالرازق يوسف | D95: 30 | E95: 29 | F95: 30 | G95: 30 | H95: 30 | I95: 99 | J95: 98 | K95: 98 | L95: 97 | M95: 98 | N95: 30
A96: =IF(C96="","",SUBTOTAL(3,$C$5:C96)) -> 92 | B96: 292 | C96: ملك حاتم عبد الله بكر | D96: 30 | E96: 28 | F96: 30 | G96: 30 | H96: 30 | I96: 99 | J96: 98 | K96: 98 | L96: 97 | M96: 98 | N96: 29
A97: =IF(C97="","",SUBTOTAL(3,$C$5:C97)) -> 93 | B97: 293 | C97: ملك صالح السيد حسن عطية | D97: 19 | E97: 27 | F97: 18 | G97: 18 | H97: 30 | I97: 99 | J97: 97 | K97: 97 | L97: 99 | M97: 98 | N97: 28
A98: =IF(C98="","",SUBTOTAL(3,$C$5:C98)) -> 94 | B98: 294 | C98: ملك محمد على عبد الجواد | D98: 28 | E98: 22 | F98: 30 | G98: 26 | H98: 28 | I98: 99 | J98: 98 | K98: 98 | L98: 97 | M98: 98 | N98: 24
A99: =IF(C99="","",SUBTOTAL(3,$C$5:C99)) -> 95 | B99: 295 | C99: ملك مصطفي طه عبد الحميد إبراهيم | D99: 28 | E99: 30 | F99: 30 | G99: 29 | H99: 30 | I99: 99 | J99: 98 | K99: 98 | L99: 97 | M99: 98 | N99: 28
A100: =IF(C100="","",SUBTOTAL(3,$C$5:C100)) -> 96 | B100: 296 | C100: منه عصام عبد العال عبد الواحد زايد | D100: 30 | E100: 28 | F100: 27 | G100: 30 | H100: 30 | I100: 99 | J100: 98 | K100: 98 | L100: 97 | M100: 98 | N100: 30
A101: =IF(C101="","",SUBTOTAL(3,$C$5:C101)) -> 97 | B101: 297 | C101: منى صبحى السيد السيد خليل | D101: 26 | E101: 26 | F101: 28 | G101: 28 | H101: 29 | I101: 99 | J101: 98 | K101: 98 | L101: 97 | M101: 98 | N101: 26
A102: =IF(C102="","",SUBTOTAL(3,$C$5:C102)) -> 98 | B102: 298 | C102: ميار هشام محمود البحيرى | D102: 29 | E102: 26 | F102: 28 | G102: 28 | H102: 29 | I102: 99 | J102: 98 | K102: 98 | L102: 97 | M102: 98 | N102: 28
A103: =IF(C103="","",SUBTOTAL(3,$C$5:C103)) -> 99 | B103: 299 | C103: ندى محمد غريب عبد العال امام | D103: 30 | E103: 30 | F103: 30 | G103: 30 | H103: 30 | I103: 99 | J103: 98 | K103: 98 | L103: 97 | M103: 98 | N103: 30
A104: =IF(C104="","",SUBTOTAL(3,$C$5:C104)) -> 100 | B104: 300 | C104: نهى عبد الله حسن محمد عبد الله | D104: 28 | E104: 23 | F104: 28 | G104: 29 | H104: 30 | I104: 99 | J104: 98 | K104: 98 | L104: 97 | M104: 98 | N104: 30
A105: =IF(C105="","",SUBTOTAL(3,$C$5:C105)) -> 101 | B105: 301 | C105: نور مصطفى عبد الرازق عبد الغنى عمارة | D105: 25 | E105: 24 | F105: 28 | G105: 30 | H105: 30 | I105: 99 | J105: 98 | K105: 98 | L105: 97 | M105: 98 | N105: 28
A106: =IF(C106="","",SUBTOTAL(3,$C$5:C106)) -> 102 | B106: 302 | C106: هاجر طارق جلال أحمد السيد | D106: 30 | E106: 30 | F106: 28 | G106: 30 | H106: 30 | I106: 99 | J106: 98 | K106: 98 | L106: 97 | M106: 98 | N106: 28
A107: =IF(C107="","",SUBTOTAL(3,$C$5:C107)) -> 103 | B107: 303 | C107: هاجر محمد زكى محمد يوسف | D107: 30 | E107: 30 | F107: 30 | G107: 30 | H107: 30 | I107: 99 | J107: 98 | K107: 98 | L107: 97 | M107: 98 | N107: 30
A108: =IF(C108="","",SUBTOTAL(3,$C$5:C108)) -> 104 | B108: 304 | C108: هاجر محمود فتحى عواد فرج | D108: 30 | E108: 30 | F108: 30 | G108: 28 | H108: 30 | I108: 99 | J108: 98 | K108: 98 | L108: 97 | M108: 98 | N108: 30
A109: =IF(C109="","",SUBTOTAL(3,$C$5:C109)) -> 105 | B109: 305 | C109: هبه جمال ابراهيم محمد عبد الله | D109: 28 | E109: 28 | F109: 27 | G109: 28 | H109: 30 | I109: 99 | J109: 98 | K109: 98 | L109: 97 | M109: 98 | N109: 30
A110: =IF(C110="","",SUBTOTAL(3,$C$5:C110)) -> 106 | B110: 306 | C110: هبه خالد فراج أحمد فراج | D110: 24 | E110: 26 | F110: 30 | G110: 25 | H110: 30 | I110: 99 | J110: 98 | K110: 98 | L110: 97 | M110: 98 | N110: 24
A111: =IF(C111="","",SUBTOTAL(3,$C$5:C111)) -> 107 | B111: 307 | C111: هدير هانى عبد الخالق المهدى العليمى | D111: 25 | E111: 22 | F111: 30 | G111: 29 | H111: 30 | I111: 99 | J111: 98 | K111: 98 | L111: 97 | M111: 98 | N111: 24
A112: =IF(C112="","",SUBTOTAL(3,$C$5:C112)) -> 108 | B112: 308 | C112: هنا أحمد محمد عبد العليم فرج | D112: 30 | E112: 30 | F112: 30 | G112: 30 | H112: 30 | I112: 99 | J112: 98 | K112: 98 | L112: 97 | M112: 98 | N112: 30
A113: =IF(C113="","",SUBTOTAL(3,$C$5:C113)) -> 109 | B113: 309 | C113: ياسمين عبد الكريم عبد الله عبد الكريم يوسف | D113: 30 | E113: 29 | F113: 28 | G113: 30 | H113: 29 | I113: 99 | J113: 98 | K113: 98 | L113: 97 | M113: 98 | N113: 24
A114: =IF(C114="","",SUBTOTAL(3,$C$5:C114)) -> 110 | B114: 310 | C114: يمنى عادل على محمد مصطفى | D114: 30 | E114: 29 | F114: 30 | G114: 30 | H114: 30 | I114: 99 | J114: 98 | K114: 98 | L114: 97 | M114: 98 | N114: 30
A115: =IF(C115="","",SUBTOTAL(3,$C$5:C115)) -> 111 | B115: 311 | C115: سعيد محمد السعيد محمود | D115: 21 | E115: 25 | F115: 28 | G115: 26 | H115: 30 | I115: 99 | J115: 98 | K115: 98 | L115: 97 | M115: 98 | N115: 14
A116: =IF(C116="","",SUBTOTAL(3,$C$5:C116)) -> 112 | B116: 312 | C116: عبد الرحمن عمرو السيد عبد الغفار نوح | D116: 20 | E116: 15 | F116: 9 | G116: 30 | H116: 25 | I116: 97 | J116: 96 | K116: 96 | L116: 95 | M116: 98 | N116: 29
A117: =IF(C117="","",SUBTOTAL(3,$C$5:C117)) -> 113 | B117: 313 | C117: عبد الرحمن محمد كمال الصادق فرج | D117: 8 | E117: 24 | F117: 30 | G117: 21 | H117: 26 | I117: 97 | J117: 96 | K117: 96 | L117: 95 | M117: 98 | N117: 15
A118: =IF(C118="","",SUBTOTAL(3,$C$5:C118)) -> 114 | B118: 314 | C118: على أشرف عباس سعيد عجور | D118: 17 | E118: 19 | F118: 11 | G118: 28 | H118: 28 | I118: غ | J118: غ | K118: غ | L118: غ | M118: غ | N118: 27
A119: =IF(C119="","",SUBTOTAL(3,$C$5:C119)) -> 115 | B119: 315 | C119: فارس محمد عبد الله محمد هدهد | D119: 11 | E119: 15 | F119: 8 | G119: 20 | H119: 20 | I119: غ | J119: غ | K119: غ | L119: غ | M119: غ | N119: 8
A120: =IF(C120="","",SUBTOTAL(3,$C$5:C120)) -> 116 | B120: 316 | C120: فهد محمد عبد الحليم سيد المرادي | D120: غ | E120: غ | F120: غ | G120: غ | H120: غ | I120: غ | J120: غ | K120: غ | L120: غ | M120: غ | N120: غ
A121: =IF(C121="","",SUBTOTAL(3,$C$5:C121)) -> 117 | B121: 317 | C121: محمد ايهاب محمد عبد الغفار البرعي | D121: غ | E121: غ | F121: غ | G121: غ | H121: غ | I121: غ | J121: غ | K121: غ | L121: غ | M121: غ | N121: غ
A122: =IF(C122="","",SUBTOTAL(3,$C$5:C122)) -> 118 | B122: 318 | C122: محمد خالد محمد رشاد الجزار | D122: 22 | E122: 18 | F122: 10 | G122: 26 | H122: 29 | I122: 99 | J122: 98 | K122: 98 | L122: 99 | M122: 98 | N122: 7
A123: =IF(C123="","",SUBTOTAL(3,$C$5:C123)) -> 119 | B123: 319 | C123: مصطفى السيد محمود الحسينى | D123: 13 | E123: 14 | F123: 16 | G123: 12 | H123: 19 | I123: 97 | J123: 98 | K123: 98 | L123: 97 | M123: 98 | N123: 8
A124: =IF(C124="","",SUBTOTAL(3,$C$5:C124)) -> 120 | B124: 320 | C124: ملك أيمن صبحى حماد | D124: 20 | E124: 20 | F124: 22 | G124: 21 | H124: 25 | I124: 99 | J124: 98 | K124: 98 | L124: 97 | M124: 97 | N124: 12

Sheet السادس
A1: إدارة قويسنا التعليمية0 الصف السادس
A2: مدرسة عربالرمل الإبتدائية سكة حديد | F2: نتيجة نصف العام 2019/2018
A3: م | B3: جلوس | C3: الاســــــــــــــم | D3: لغة عربية | E3: رياضيات | F3: لغة إنجليزية | G3: دراسات | H3: علوم | I3: فنى | J3: رياضى | K3: حاسب ألى | L3: نشاط1 | M3: نشاط2 | N3: دين
D4: 30 | E4: 30 | F4: 30 | G4: 30 | H4: 30 | I4: 100 | J4: 100 | K4: 100 | L4: 100 | M4: 100 | N4: 30
A5: =IF(C5="","",SUBTOTAL(3,$C$5:C5)) -> 1 | B5: 201 | C5: ابراهيم موسى ابراهيم موسي المرادى | D5: 26 | E5: 26 | F5: 27 | G5: 30 | H5: 30 | I5: 95 | J5: 98 | K5: 98 | L5: 97 | M5: 98 | N5: 29
A6: =IF(C6="","",SUBTOTAL(3,$C$5:C6)) -> 2 | B6: 202 | C6: أحمد السيد عبد الوهاب محمد عرفه | D6: 28 | E6: 29 | F6: 29 | G6: 30 | H6: 30 | I6: 98 | J6: 98 | K6: 99 | L6: 97 | M6: 98 | N6: 30
A7: =IF(C7="","",SUBTOTAL(3,$C$5:C7)) -> 3 | B7: 203 | C7: أحمد ايهاب مسعد محمد سلطان | D7: 28 | E7: 25 | F7: 27 | G7: 30 | H7: 30 | I7: 99 | J7: 98 | K7: 99 | L7: 97 | M7: 98 | N7: 29
A8: =IF(C8="","",SUBTOTAL(3,$C$5:C8)) -> 4 | B8: 204 | C8: أحمد محمد منصور باز الشريف | D8: 30 | E8: 29 | F8: 30 | G8: 29 | H8: 29 | I8: 99 | J8: 98 | K8: 99 | L8: 99 | M8: 98 | N8: 30
A9: =IF(C9="","",SUBTOTAL(3,$C$5:C9)) -> 5 | B9: 205 | C9: أحمد هاني عبدالوهاب علي ابراهيم | D9: 21 | E9: 27 | F9: 27 | G9: 26 | H9: 30 | I9: 99 | J9: 98 | K9: 99 | L9: 99 | M9: 97 | N9: 25
A10: =IF(C10="","",SUBTOTAL(3,$C$5:C10)) -> 6 | B10: 206 | C10: احمد وجيه محمد الخضرى سيد احمد | D10: 16 | E10: 26 | F10: 21 | G10: 21 | H10: 30 | I10: 99 | J10: 98 | K10: 98 | L10: 99 | M10: 98 | N10: 18
A11: =IF(C11="","",SUBTOTAL(3,$C$5:C11)) -> 7 | B11: 207 | C11: أحمد وليد رمضان عبد العال متولي | D11: 26 | E11: 30 | F11: 29 | G11: 27 | H11: 30 | I11: 100 | J11: 100 | K11: 99 | L11: 99 | M11: 99 | N11: 25
A12: =IF(C12="","",SUBTOTAL(3,$C$5:C12)) -> 8 | B12: 208 | C12: أكرم محمد محمود محمد حسنين | D12: 30 | E12: 26 | F12: 29 | G12: 30 | H12: 30 | I12: 99 | J12: 98 | K12: 97 | L12: 99 | M12: 98 | N12: 30
A13: =IF(C13="","",SUBTOTAL(3,$C$5:C13)) -> 9 | B13: 209 | C13: السيد طارق سليمان شادي | D13: 30 | E13: 29 | F13: 28 | G13: 30 | H13: 30 | I13: 99 | J13: 98 | K13: 97 | L13: 99 | M13: 98 | N13: 30
A14: =IF(C14="","",SUBTOTAL(3,$C$5:C14)) -> 10 | B14: 210 | C14: امير مجدى ابراهيم الجزار | D14: 28 | E14: 28 | F14: 29 | G14: 26 | H14: 30 | I14: 98 | J14: 99 | K14: 99 | L14: 97 | M14: 96 | N14: 29
A15: =IF(C15="","",SUBTOTAL(3,$C$5:C15)) -> 11 | B15: 211 | C15: أنس إبراهيم محمد الحاج موسى | D15: 30 | E15: 28 | F15: 30 | G15: 30 | H15: 26 | I15: 99 | J15: 98 | K15: 98 | L15: 97 | M15: 98 | N15: 30
A16: =IF(C16="","",SUBTOTAL(3,$C$5:C16)) -> 12 | B16: 212 | C16: انس مجدى ابراهيم الجزار | D16: 30 | E16: 28 | F16: 27 | G16: 29 | H16: 28 | I16: 99 | J16: 98 | K16: 99 | L16: 97 | M16: 98 | N16: 25
A17: =IF(C17="","",SUBTOTAL(3,$C$5:C17)) -> 13 | B17: 213 | C17: جمال محمد جمال عبد الحليم المرادي | D17: 27 | E17: 17 | F17: 26 | G17: 26 | H17: 26 | I17: 97 | J17: 96 | K17: 99 | L17: 95 | M17: 98 | N17: 22
A18: =IF(C18="","",SUBTOTAL(3,$C$5:C18)) -> 14 | B18: 214 | C18: حسن أيمن حسن باز الشريف | D18: 24 | E18: 18 | F18: 23 | G18: 24 | H18: 24 | I18: 97 | J18: 96 | K18: 99 | L18: 95 | M18: 98 | N18: 21
A19: =IF(C19="","",SUBTOTAL(3,$C$5:C19)) -> 15 | B19: 215 | C19: زياد أسامه عبد العاطى عبد العزيز | D19: 30 | E19: 30 | F19: 30 | G19: 29 | H19: 30 | I19: 99 | J19: 98 | K19: 100 | L19: 99 | M19: 98 | N19: 30
A20: =IF(C20="","",SUBTOTAL(3,$C$5:C20)) -> 16 | B20: 216 | C20: سعد محمد سعد محمد سويلم | D20: 27 | E20: 20 | F20: 30 | G20: 29 | H20: 27 | I20: 99 | J20: 98 | K20: 99 | L20: 99 | M20: 98 | N20: 24
A21: =IF(C21="","",SUBTOTAL(3,$C$5:C21)) -> 17 | B21: 217 | C21: سيف ايمن موسى ابراهيم حسين | D21: 30 | E21: 21 | F21: 29 | G21: 28 | H21: 29 | I21: 99 | J21: 99 | K21: 99 | L21: 98 | M21: 98 | N21: 29
A22: =IF(C22="","",SUBTOTAL(3,$C$5:C22)) -> 18 | B22: 218 | C22: عاطف محمد الكيلاني عكاشه | D22: 24 | E22: 19 | F22: 23 | G22: 28 | H22: 28 | I22: 100 | J22: 98 | K22: 99 | L22: 100 | M22: 98 | N22: 23
A23: =IF(C23="","",SUBTOTAL(3,$C$5:C23)) -> 19 | B23: 219 | C23: عبد الرحمن أحمد عبد الله أحمد يوسف | D23: 19 | E23: 30 | F23: 27 | G23: 19 | H23: 30 | I23: 99 | J23: 98 | K23: 99 | L23: 97 | M23: 98 | N23: 30
A24: =IF(C24="","",SUBTOTAL(3,$C$5:C24)) -> 20 | B24: 220 | C24: عبد الرحمن جمال الشناوي الحسيني | D24: 25 | E24: 22 | F24: 23 | G24: 20 | H24: 22 | I24: 99 | J24: 98 | K24: 99 | L24: 99 | M24: 97 | N24: 23
A25: =IF(C25="","",SUBTOTAL(3,$C$5:C25)) -> 21 | B25: 221 | C25: عبد الرحمن عصام محمد بكر | D25: 29 | E25: 26 | F25: 29 | G25: 28 | H25: 29 | I25: 99 | J25: 98 | K25: 99 | L25: 97 | M25: 98 | N25: 26
A26: =IF(C26="","",SUBTOTAL(3,$C$5:C26)) -> 22 | B26: 222 | C26: عبد الرحمن عماد محمد عبدالعليم | D26: 29 | E26: 24 | F26: 30 | G26: 30 | H26: 29 | I26: 99 | J26: 98 | K26: 99 | L26: 99 | M26: 98 | N26: 29
A27: =IF(C27="","",SUBTOTAL(3,$C$5:C27)) -> 23 | B27: 223 | C27: عبد الرحمن محمد أحمد عثمان | D27: 30 | E27: 23 | F27: 26 | G27: 29 | H27: 30 | I27: 99 | J27: 98 | K27: 99 | L27: 97 | M27: 98 | N27: 28
A28: =IF(C28="","",SUBTOTAL(3,$C$5:C28)) -> 24 | B28: 224 | C28: عبد العزيز محمد زكى عبد العزيز | D28: 29 | E28: 25 | F28: 29 | G28: 30 | H28: 30 | I28: 99 | J28: 98 | K28: 99 | L28: 99 | M28: 98 | N28: 29
A29: =IF(C29="","",SUBTOTAL(3,$C$5:C29)) -> 25 | B29: 225 | C29: عبدالرحمن فتحي موسي عبد الدايم | D29: 30 | E29: 30 | F29: 29 | G29: 29 | H29: 30 | I29: 99 | J29: 98 | K29: 99 | L29: 97 | M29: 98 | N29: 28
A30: =IF(C30="","",SUBTOTAL(3,$C$5:C30)) -> 26 | B30: 226 | C30: عصام محمد سمير فرج | D30: 30 | E30: 28 | F30: 30 | G30: 30 | H30: 30 | I30: 99 | J30: 98 | K30: 99 | L30: 99 | M30: 97 | N30: 28
A31: =IF(C31="","",SUBTOTAL(3,$C$5:C31)) -> 27 | B31: 227 | C31: عمار حاتم محمد رياض عمر | D31: 30 | E31: 26 | F31: 28 | G31: 30 | H31: 28 | I31: 99 | J31: 98 | K31: 99 | L31: 97 | M31: 98 | N31: 29
A32: =IF(C32="","",SUBTOTAL(3,$C$5:C32)) -> 28 | B32: 228 | C32: عمار علي علي رضوان الشحري | D32: 29 | E32: 28 | F32: 30 | G32: 28 | H32: 26 | I32: 99 | J32: 98 | K32: 99 | L32: 99 | M32: 98 | N32: 28
A33: =IF(C33="","",SUBTOTAL(3,$C$5:C33)) -> 29 | B33: 229 | C33: عمر أمير عبد الحفيظ أحمد الطنطاوي | D33: 26 | E33: 29 | F33: 29 | G33: 28 | H33: 28 | I33: 99 | J33: 98 | K33: 99 | L33: 97 | M33: 98 | N33: 27
A34: =IF(C34="","",SUBTOTAL(3,$C$5:C34)) -> 30 | B34: 230 | C34: عمر محمد محمد عبد العزيز حماد | D34: 27 | E34: 28 | F34: 30 | G34: 30 | H34: 28 | I34: 99 | J34: 98 | K34: 99 | L34: 97 | M34: 98 | N34: 27
A35: =IF(C35="","",SUBTOTAL(3,$C$5:C35)) -> 31 | B35: 231 | C35: عمرو محمد إبراهيم محمد إبراهيم | D35: 24 | E35: 25 | F35: 27 | G35: 27 | H35: 27 | I35: 99 | J35: 98 | K35: 97 | L35: 97 | M35: 98 | N35: 26
A36: =IF(C36="","",SUBTOTAL(3,$C$5:C36)) -> 32 | B36: 232 | C36: فتحى عبد الكريم فتحى عبد الكريم يوسف | D36: 26 | E36: 22 | F36: 23 | G36: 26 | H36: 27 | I36: 99 | J36: 98 | K36: 97 | L36: 97 | M36: 98 | N36: 24
A37: =IF(C37="","",SUBTOTAL(3,$C$5:C37)) -> 33 | B37: 233 | C37: فتحي أيمن فتحي محمد إبراهيم | D37: 29 | E37: 24 | F37: 29 | G37: 30 | H37: 29 | I37: 99 | J37: 98 | K37: 99 | L37: 97 | M37: 98 | N37: 29
A38: =IF(C38="","",SUBTOTAL(3,$C$5:C38)) -> 34 | B38: 234 | C38: فرج محمود فرج مغاوري | D38: 26 | E38: 20 | F38: 25 | G38: 28 | H38: 26 | I38: 99 | J38: 98 | K38: 99 | L38: 97 | M38: 98 | N38: 21
A39: =IF(C39="","",SUBTOTAL(3,$C$5:C39)) -> 35 | B39: 235 | C39: فهيم ياسر فهيم احمد مروان | D39: 28 | E39: 23 | F39: 26 | G39: 26 | H39: 25 | I39: 99 | J39: 98 | K39: 97 | L39: 99 | M39: 98 | N39: 28
A40: =IF(C40="","",SUBTOTAL(3,$C$5:C40)) -> 36 | B40: 236 | C40: محمد ايهاب محمد الدسوقي | D40: 29 | E40: 28 | F40: 29 | G40: 30 | H40: 30 | I40: 97 | J40: 96 | K40: 99 | L40: 95 | M40: 98 | N40: 30
A41: =IF(C41="","",SUBTOTAL(3,$C$5:C41)) -> 37 | B41: 237 | C41: محمد حسام عبد المنعم السيد فرج | D41: 28 | E41: 27 | F41: 30 | G41: 26 | H41: 30 | I41: 99 | J41: 98 | K41: 99 | L41: 99 | M41: 98 | N41: 26
A42: =IF(C42="","",SUBTOTAL(3,$C$5:C42)) -> 38 | B42: 238 | C42: محمد ماهر إبراهيم المرادي | D42: 26 | E42: 29 | F42: 30 | G42: 28 | H42: 30 | I42: 99 | J42: 98 | K42: 99 | L42: 99 | M42: 98 | N42: 26
A43: =IF(C43="","",SUBTOTAL(3,$C$5:C43)) -> 39 | B43: 239 | C43: محمد ماهر محمد سعيد السيد | D43: 28 | E43: 27 | F43: 29 | G43: 27 | H43: 29 | I43: 97 | J43: 98 | K43: 99 | L43: 97 | M43: 98 | N43: 29
A44: =IF(C44="","",SUBTOTAL(3,$C$5:C44)) -> 40 | B44: 240 | C44: محمود ايمن خيري بيومي حماده | D44: 28 | E44: 27 | F44: 29 | G44: 24 | H44: 29 | I44: 99 | J44: 98 | K44: 98 | L44: 99 | M44: 98 | N44: 26
A45: =IF(C45="","",SUBTOTAL(3,$C$5:C45)) -> 41 | B45: 241 | C45: محمود رفعت عبدالرشيد السيد عامر | D45: 30 | E45: 26 | F45: 29 | G45: 25 | H45: 26 | I45: 100 | J45: 100 | K45: 99 | L45: 100 | M45: 100 | N45: 28
A46: =IF(C46="","",SUBTOTAL(3,$C$5:C46)) -> 42 | B46: 242 | C46: محمود عماد عبد الستار محمد ابراهيم | D46: 29 | E46: 27 | F46: 30 | G46: 29 | H46: 29 | I46: 99 | J46: 98 | K46: 97 | L46: 99 | M46: 98 | N46: 28
A47: =IF(C47="","",SUBTOTAL(3,$C$5:C47)) -> 43 | B47: 243 | C47: مصطفي عاطف محمد أحمد | D47: 30 | E47: 25 | F47: 27 | G47: 22 | H47: 28 | I47: 99 | J47: 98 | K47: 97 | L47: 99 | M47: 98 | N47: 29
A48: =IF(C48="","",SUBTOTAL(3,$C$5:C48)) -> 44 | B48: 244 | C48: مهند أمير سامي عبد المطلب درغام | D48: 28 | E48: 27 | F48: 29 | G48: 30 | H48: 27 | I48: 98 | J48: 98 | K48: 99 | L48: 99 | M48: 98 | N48: 26
A49: =IF(C49="","",SUBTOTAL(3,$C$5:C49)) -> 45 | B49: 245 | C49: يوسف ماهر محمود عبدالعاطي محمد | D49: 29 | E49: 28 | F49: 30 | G49: 28 | H49: 30 | I49: 99 | J49: 98 | K49: 99 | L49: 97 | M49: 98 | N49: 26
A50: =IF(C50="","",SUBTOTAL(3,$C$5:C50)) -> 46 | B50: 246 | C50: يوسف محمد جبر أحمد جبر | D50: 22 | E50: 25 | F50: 22 | G50: 24 | H50: 30 | I50: 99 | J50: 98 | K50: 97 | L50: 99 | M50: 87 | N50: 26
A51: =IF(C51="","",SUBTOTAL(3,$C$5:C51)) -> 47 | B51: 247 | C51: يوسف محمد عبد السميع بكر | D51: 25 | E51: 23 | F51: 25 | G51: 17 | H51: 23 | I51: 97 | J51: 98 | K51: 99 | L51: 97 | M51: 98 | N51: 25
A52: =IF(C52="","",SUBTOTAL(3,$C$5:C52)) -> 48 | B52: 248 | C52: يوسف محمد كمال الصادق فرج | D52: 28 | E52: 27 | F52: 30 | G52: 30 | H52: 22 | I52: 99 | J52: 98 | K52: 97 | L52: 97 | M52: 98 | N52: 30
A53: =IF(C53="","",SUBTOTAL(3,$C$5:C53)) -> 49 | B53: 249 | C53: اروى عزب عبد المولى عزب خليل | D53: 28 | E53: 27 | F53: 29 | G53: 26 | H53: 26 | I53: 97 | J53: 96 | K53: 98 | L53: 95 | M53: 98 | N53: 27
A54: =IF(C54="","",SUBTOTAL(3,$C$5:C54)) -> 50 | B54: 250 | C54: إسراء جمال محمد الخضري | D54: 25 | E54: 30 | F54: 29 | G54: 30 | H54: 28 | I54: 96 | J54: 97 | K54: 96 | L54: 98 | M54: 98 | N54: 29
A55: =IF(C55="","",SUBTOTAL(3,$C$5:C55)) -> 51 | B55: 251 | C55: آلاء أشرف محمود السيد عبد الرحمن | D55: 30 | E55: 30 | F55: 30 | G55: 28 | H55: 30 | I55: 99 | J55: 98 | K55: 99 | L55: 97 | M55: 98 | N55: 29
A56: =IF(C56="","",SUBTOTAL(3,$C$5:C56)) -> 52 | B56: 252 | C56: آلاء محمد عبد اللطيف السيد عطوه | D56: 28 | E56: 24 | F56: 27 | G56: 30 | H56: 24 | I56: 97 | J56: 96 | K56: 97 | L56: 95 | M56: 98 | N56: 30
A57: =IF(C57="","",SUBTOTAL(3,$C$5:C57)) -> 53 | B57: 253 | C57: آيه إيهاب عبد الله إبراهيم عامر | D57: 29 | E57: 30 | F57: 30 | G57: 28 | H57: 30 | I57: 98 | J57: 97 | K57: 99 | L57: 95 | M57: 96 | N57: 30
A58: =IF(C58="","",SUBTOTAL(3,$C$5:C58)) -> 54 | B58: 254 | C58: آيه عبد الحميد علي بكر | D58: 29 | E58: 28 | F58: 29 | G58: 30 | H58: 30 | I58: 96 | J58: 95 | K58: 99 | L58: 94 | M58: 95 | N58: 30
A59: =IF(C59="","",SUBTOTAL(3,$C$5:C59)) -> 55 | B59: 255 | C59: بسملة محمد فوزى صلاح الدين عامر | D59: 28 | E59: 28 | F59: 29 | G59: 27 | H59: 29 | I59: 99 | J59: 98 | K59: 99 | L59: 97 | M59: 98 | N59: 30
A60: =IF(C60="","",SUBTOTAL(3,$C$5:C60)) -> 56 | B60: 256 | C60: جنى عبد الله حسن عبد الله ابراهيم | D60: 28 | E60: 29 | F60: 30 | G60: 28 | H60: 30 | I60: 97 | J60: 96 | K60: 99 | L60: 95 | M60: 97 | N60: 30
A61: =IF(C61="","",SUBTOTAL(3,$C$5:C61)) -> 57 | B61: 257 | C61: حبيبة هشام ابراهيم علي | D61: 26 | E61: 30 | F61: 30 | G61: 28 | H61: 30 | I61: 97 | J61: 96 | K61: 99 | L61: 95 | M61: 96 | N61: 30
A62: =IF(C62="","",SUBTOTAL(3,$C$5:C62)) -> 58 | B62: 258 | C62: حبيبه جمال إمام محمد المرادي | D62: 27 | E62: 28 | F62: 30 | G62: 28 | H62: 30 | I62: 99 | J62: 98 | K62: 99 | L62: 97 | M62: 98 | N62: 30
A63: =IF(C63="","",SUBTOTAL(3,$C$5:C63)) -> 59 | B63: 259 | C63: حبيبه صلاح الدين أحمد عبد الوهاب حماد | D63: 29 | E63: 27 | F63: 28 | G63: 29 | H63: 29 | I63: 99 | J63: 98 | K63: 97 | L63: 97 | M63: 98 | N63: 24
A64: =IF(C64="","",SUBTOTAL(3,$C$5:C64)) -> 60 | B64: 260 | C64: حبيبه محمد عبد الله مرسي | D64: 26 | E64: 30 | F64: 29 | G64: 27 | H64: 25 | I64: 99 | J64: 98 | K64: 99 | L64: 99 | M64: 98 | N64: 29
A65: =IF(C65="","",SUBTOTAL(3,$C$5:C65)) -> 61 | B65: 261 | C65: دنيا عبد الكريم عبد الله عبد الكريم يوسف | D65: 30 | E65: 30 | F65: 30 | G65: 29 | H65: 29 | I65: 99 | J65: 98 | K65: 99 | L65: 99 | M65: 98 | N65: 29
A66: =IF(C66="","",SUBTOTAL(3,$C$5:C66)) -> 62 | B66: 262 | C66: روان باسم نعيم السيد محمود | D66: 29 | E66: 29 | F66: 29 | G66: 27 | H66: 28 | I66: 99 | J66: 98 | K66: 99 | L66: 97 | M66: 98 | N66: 29
A67: =IF(C67="","",SUBTOTAL(3,$C$5:C67)) -> 63 | B67: 263 | C67: رودينه محمود طه محمود عيد | D67: 20 | E67: 18 | F67: 22 | G67: 25 | H67: 23 | I67: 97 | J67: 98 | K67: 99 | L67: 97 | M67: 98 | N67: 28
A68: =IF(C68="","",SUBTOTAL(3,$C$5:C68)) -> 64 | B68: 264 | C68: رؤي سمير موسي أحمد عبد الدايم | D68: 29 | E68: 30 | F68: 30 | G68: 28 | H68: 28 | I68: 99 | J68: 98 | K68: 99 | L68: 99 | M68: 98 | N68: 29
A69: =IF(C69="","",SUBTOTAL(3,$C$5:C69)) -> 65 | B69: 265 | C69: سامية عبد العزيز محمد عبد العزيز حماد | D69: 30 | E69: 29 | F69: 30 | G69: 30 | H69: 29 | I69: 99 | J69: 98 | K69: 97 | L69: 97 | M69: 98 | N69: 30
A70: =IF(C70="","",SUBTOTAL(3,$C$5:C70)) -> 66 | B70: 266 | C70: سندس ماهر أمين محمد المرادي | D70: 29 | E70: 26 | F70: 30 | G70: 27 | H70: 25 | I70: 99 | J70: 98 | K70: 99 | L70: 97 | M70: 98 | N70: 28
A71: =IF(C71="","",SUBTOTAL(3,$C$5:C71)) -> 67 | B71: 267 | C71: شذا أنور أحمد التهامي حجاج | D71: 30 | E71: 28 | F71: 30 | G71: 29 | H71: 29 | I71: 99 | J71: 98 | K71: 99 | L71: 99 | M71: 97 | N71: 29
A72: =IF(C72="","",SUBTOTAL(3,$C$5:C72)) -> 68 | B72: 268 | C72: شهد عبد الله فراج أحمد فراج | D72: 30 | E72: 26 | F72: 30 | G72: 30 | H72: 29 | I72: 99 | J72: 98 | K72: 99 | L72: 99 | M72: 98 | N72: 29
A73: =IF(C73="","",SUBTOTAL(3,$C$5:C73)) -> 69 | B73: 269 | C73: شهد علي محمد مصلحي عوض | D73: 29 | E73: 29 | F73: 30 | G73: 30 | H73: 27 | I73: 99 | J73: 98 | K73: 99 | L73: 97 | M73: 98 | N73: 30
A74: =IF(C74="","",SUBTOTAL(3,$C$5:C74)) -> 70 | B74: 270 | C74: شهد محمد إبراهيم متولي اليبد | D74: 29 | E74: 29 | F74: 30 | G74: 19 | H74: 21 | I74: 97 | J74: 98 | K74: 97 | L74: 97 | M74: 97 | N74: 28
A75: =IF(C75="","",SUBTOTAL(3,$C$5:C75)) -> 71 | B75: 271 | C75: شهد نادر عقل محمد عقل | D75: 30 | E75: 28 | F75: 30 | G75: 28 | H75: 30 | I75: 99 | J75: 98 | K75: 99 | L75: 97 | M75: 98 | N75: 30
A76: =IF(C76="","",SUBTOTAL(3,$C$5:C76)) -> 72 | B76: 272 | C76: فاطمة أيمن محمد عبد الستارعطيه | D76: 30 | E76: 28 | F76: 28 | G76: 25 | H76: 29 | I76: 99 | J76: 98 | K76: 99 | L76: 97 | M76: 98 | N76: 29
A77: =IF(C77="","",SUBTOTAL(3,$C$5:C77)) -> 73 | B77: 273 | C77: مريم جلال إبراهيم الدسوقي النادي | D77: 28 | E77: 29 | F77: 30 | G77: 30 | H77: 29 | I77: 99 | J77: 98 | K77: 99 | L77: 97 | M77: 98 | N77: 27
A78: =IF(C78="","",SUBTOTAL(3,$C$5:C78)) -> 74 | B78: 274 | C78: مريم سعيد عبدالمنعم ابراهيم موسى | D78: 29 | E78: 30 | F78: 30 | G78: 29 | H78: 27 | I78: 99 | J78: 98 | K78: 99 | L78: 97 | M78: 98 | N78: 30
A79: =IF(C79="","",SUBTOTAL(3,$C$5:C79)) -> 75 | B79: 275 | C79: ملك جمال عبد الوهاب علي | D79: 29 | E79: 25 | F79: 30 | G79: 26 | H79: 27 | I79: 97 | J79: 98 | K79: 99 | L79: 97 | M79: 98 | N79: 26
A80: =IF(C80="","",SUBTOTAL(3,$C$5:C80)) -> 76 | B80: 276 | C80: ملك حسين موسي ابراهيم موسى | D80: 30 | E80: 29 | F80: 30 | G80: 29 | H80: 30 | I80: 99 | J80: 98 | K80: 99 | L80: 97 | M80: 98 | N80: 26
A81: =IF(C81="","",SUBTOTAL(3,$C$5:C81)) -> 77 | B81: 277 | C81: ملك عماد النادي موسي المرادي | D81: 20 | E81: 25 | F81: 29 | G81: 19 | H81: 25 | I81: 99 | J81: 98 | K81: 99 | L81: 97 | M81: 98 | N81: 21
A82: =IF(C82="","",SUBTOTAL(3,$C$5:C82)) -> 78 | B82: 278 | C82: ملك ماهر السيد حسين غلوش | D82: 30 | E82: 29 | F82: 29 | G82: 25 | H82: 26 | I82: 99 | J82: 98 | K82: 99 | L82: 97 | M82: 98 | N82: 30
A83: =IF(C83="","",SUBTOTAL(3,$C$5:C83)) -> 79 | B83: 279 | C83: ملك محمد السيد خضير | D83: 30 | E83: 30 | F83: 30 | G83: 30 | H83: 29 | I83: 99 | J83: 98 | K83: 99 | L83: 97 | M83: 98 | N83: 30
A84: =IF(C84="","",SUBTOTAL(3,$C$5:C84)) -> 80 | B84: 280 | C84: ملك محمد عبد الله حسن فرج | D84: 20 | E84: 19 | F84: 25 | G84: 16 | H84: 27 | I84: 99 | J84: 98 | K84: 99 | L84: 97 | M84: 98 | N84: 23
A85: =IF(C85="","",SUBTOTAL(3,$C$5:C85)) -> 81 | B85: 281 | C85: ملك محمد عبد الله محمود البكري | D85: 30 | E85: 28 | F85: 28 | G85: 29 | H85: 30 | I85: 99 | J85: 98 | K85: 99 | L85: 97 | M85: 98 | N85: 27
A86: =IF(C86="","",SUBTOTAL(3,$C$5:C86)) -> 82 | B86: 282 | C86: ملك نبيل أحمد أبو المجد أحمد | D86: 29 | E86: 19 | F86: 25 | G86: 20 | H86: 23 | I86: 99 | J86: 98 | K86: 99 | L86: 97 | M86: 98 | N86: 26
A87: =IF(C87="","",SUBTOTAL(3,$C$5:C87)) -> 83 | B87: 283 | C87: منه ماهر عبد المولي الصادق فرج | D87: 30 | E87: 28 | F87: 30 | G87: 30 | H87: 29 | I87: 99 | J87: 99 | K87: 99 | L87: 99 | M87: 99 | N87: 29
A88: =IF(C88="","",SUBTOTAL(3,$C$5:C88)) -> 84 | B88: 284 | C88: مني جمال ابراهيم محمد عبدالله | D88: 30 | E88: 29 | F88: 30 | G88: 29 | H88: 30 | I88: 99 | J88: 98 | K88: 99 | L88: 97 | M88: 98 | N88: 30
A89: =IF(C89="","",SUBTOTAL(3,$C$5:C89)) -> 85 | B89: 285 | C89: نادين أيمن عبد الله الصادق فرج | D89: 30 | E89: 30 | F89: 30 | G89: 28 | H89: 30 | I89: 99 | J89: 98 | K89: 99 | L89: 97 | M89: 97 | N89: 29
A90: =IF(C90="","",SUBTOTAL(3,$C$5:C90)) -> 86 | B90: 286 | C90: نور أحمد عبد الرازق يوسف عبد الله | D90: 30 | E90: 30 | F90: 30 | G90: 28 | H90: 30 | I90: 99 | J90: 98 | K90: 99 | L90: 97 | M90: 98 | N90: 30
A91: =IF(C91="","",SUBTOTAL(3,$C$5:C91)) -> 87 | B91: 287 | C91: نورا إبراهيم كمال الصادق فرج | D91: 30 | E91: 30 | F91: 30 | G91: 28 | H91: 30 | I91: 99 | J91: 97 | K91: 99 | L91: 99 | M91: 98 | N91: 30
A92: =IF(C92="","",SUBTOTAL(3,$C$5:C92)) -> 88 | B92: 288 | C92: هبة الله السيد فهمي محمد إبراهيم | D92: 30 | E92: 29 | F92: 30 | G92: 29 | H92: 28 | I92: 99 | J92: 98 | K92: 99 | L92: 97 | M92: 98 | N92: 30
A93: =IF(C93="","",SUBTOTAL(3,$C$5:C93)) -> 89 | B93: 289 | C93: أحمد سامح إبراهيم مصيلحى | D93: 18 | E93: 13 | F93: 16 | G93: 17 | H93: 19 | I93: 97 | J93: 98 | K93: 99 | L93: 97 | M93: 98 | N93: 21
A94: =IF(C94="","",SUBTOTAL(3,$C$5:C94)) -> 90 | B94: 290 | C94: أحمد عصام صبحي محمد المرادي | D94: 16 | E94: 17 | F94: 14 | G94: 13 | H94: 20 | I94: 98 | J94: 99 | K94: 99 | L94: 97 | M94: 98 | N94: 18
A95: =IF(C95="","",SUBTOTAL(3,$C$5:C95)) -> 91 | B95: 291 | C95: احمد محمد السيد محمد على | D95: 15 | E95: 13 | F95: 13 | G95: 13 | H95: 24 | I95: 99 | J95: 98 | K95: 100 | L95: 99 | M95: 98 | N95: 19
A96: =IF(C96="","",SUBTOTAL(3,$C$5:C96)) -> 92 | B96: 292 | C96: أحمد محمد سعيد سيد المرادي | D96: 2 | E96: 5 | F96: 9 | G96: 8 | H96: 15 | I96: 99 | J96: 98 | K96: 99 | L96: 99 | M96: 98 | N96: 8
A97: =IF(C97="","",SUBTOTAL(3,$C$5:C97)) -> 93 | B97: 293 | C97: آدم محمد السيد العوني | D97: غ | E97: غ | F97: غ | G97: غ | H97: غ | I97: غ | J97: غ | K97: غ | L97: غ | M97: غ | N97: غ
A98: =IF(C98="","",SUBTOTAL(3,$C$5:C98)) -> 94 | B98: 294 | C98: زياد أشرف عباس سعيد عجور | D98: 3 | E98: 17 | F98: 15 | G98: 11 | H98: 24 | I98: غ | J98: غ | K98: غ | L98: غ | M98: غ | N98: 13
A99: =IF(C99="","",SUBTOTAL(3,$C$5:C99)) -> 95 | B99: 295 | C99: زياد محمد زايد عبد الرازق عبد العال | D99: 20 | E99: 19 | F99: 16 | G99: 13 | H99: 23 | I99: 99 | J99: 99 | K99: 99 | L99: 99 | M99: 97 | N99: 25
A100: =IF(C100="","",SUBTOTAL(3,$C$5:C100)) -> 96 | B100: 296 | C100: على محمد على عبد الجواد | D100: 22 | E100: 23 | F100: 19 | G100: 13 | H100: 20 | I100: 99 | J100: 98 | K100: 99 | L100: 97 | M100: 98 | N100: 14
A101: =IF(C101="","",SUBTOTAL(3,$C$5:C101)) -> 97 | B101: 297 | C101: محمد جمعة عبدالغفار محمد هدهد | D101: 12 | E101: 11 | F101: 26 | G101: 21 | H101: 26 | I101: 97 | J101: 96 | K101: 100 | L101: 95 | M101: 98 | N101: 7
A102: =IF(C102="","",SUBTOTAL(3,$C$5:C102)) -> 98 | B102: 298 | C102: محمود عاطف عبدالرازق قطب | D102: 15 | E102: 11 | F102: 16 | G102: 28 | H102: 21 | I102: 99 | J102: 99 | K102: 99 | L102: 100 | M102: 98 | N102: 11
A103: =IF(C103="","",SUBTOTAL(3,$C$5:C103)) -> 99 | B103: 299 | C103: يوسف محمد عبد الحميد هدهد | D103: 26 | E103: 10 | F103: 25 | G103: 24 | H103: 23 | I103: 97 | J103: 96 | K103: 96 | L103: 95 | M103: 98 | N103: 24
A104: =IF(C104="","",SUBTOTAL(3,$C$5:C104)) -> 100 | B104: 300 | C104: يوسف محمود عبد الموجود السيد سيد أحمد | D104: 11 | E104: 19 | F104: 16 | G104: 20 | H104: 21 | I104: 99 | J104: 98 | K104: 99 | L104: 99 | M104: 98 | N104: 19
A105: =IF(C105="","",SUBTOTAL(3,$C$5:C105)) -> 101 | B105: 301 | C105: ايثار حمدي عبد الستار علي فرج | D105: 21 | E105: 11 | F105: 21 | G105: 23 | H105: 26 | I105: 99 | J105: 98 | K105: 97 | L105: 97 | M105: 98 | N105: 22
A106: =IF(C106="","",SUBTOTAL(3,$C$5:C106)) -> 102 | B106: 302 | C106: دعاء ياسر عبد الرحيم علي شعلان | D106: 30 | E106: 10 | F106: 30 | G106: 30 | H106: 29 | I106: 99 | J106: 98 | K106: 99 | L106: 97 | M106: 98 | N106: 30
A107: =IF(C107="","",SUBTOTAL(3,$C$5:C107)) -> 103 | B107: 303 | C107: ساره ماهر عبد الرازق حسن فراج | D107: غ | E107: غ | F107: غ | G107: غ | H107: غ | I107: غ | J107: غ | K107: غ | L107: غ | M107: غ | N107: غ
A108: =IF(C108="","",SUBTOTAL(3,$C$5:C108)) -> 104 | B108: 304 | C108: منه امير عبد الله ابراهيم عامر | D108: 26 | E108: 9 | F108: 20 | G108: 21 | H108: 20 | I108: 99 | J108: 97 | K108: 99 | L108: 97 | M108: 98 | N108: 28
A109: =IF(C109="","",SUBTOTAL(3,$C$5:C109)) -> 105 | B109: 305 | C109: هاجر ايمن محمود السيد المرادى | D109: 21 | E109: 12 | F109: 14 | G109: 17 | H109: 19 | I109: 99 | J109: 98 | K109: 99 | L109: 97 | M109: 98 | N109: 27

Sheet السابع
A1: إدارة قويسنا التعليمية0 الصف السادس
A2: مدرسة عربالرمل الإبتدائية سكة حديد | F2: نتيجة نصف العام 2019/2018
A3: م | B3: جلوس | C3: الاســــــــــــــم | D3: لغة عربية | E3: رياضيات | F3: لغة إنجليزية | G3: دراسات | H3: علوم | I3: فنى | J3: رياضى | K3: حاسب ألى | L3: نشاط1 | M3: نشاط2 | N3: دين
D4: 30 | E4: 30 | F4: 30 | G4: 30 | H4: 30 | I4: 100 | J4: 100 | K4: 100 | L4: 100 | M4: 100 | N4: 30
A5: =IF(C5="","",SUBTOTAL(3,$C$5:C5)) -> 1 | B5: 201 | C5: ابراهيم موسى ابراهيم موسي المرادى | D5: 26 | E5: 26 | F5: 27 | G5: 30 | H5: 30 | I5: 95 | J5: 98 | K5: 98 | L5: 97 | M5: 98 | N5: 29
A6: =IF(C6="","",SUBTOTAL(3,$C$5:C6)) -> 2 | B6: 202 | C6: أحمد السيد عبد الوهاب محمد عرفه | D6: 28 | E6: 29 | F6: 29 | G6: 30 | H6: 30 | I6: 98 | J6: 98 | K6: 99 | L6: 97 | M6: 98 | N6: 30
A7: =IF(C7="","",SUBTOTAL(3,$C$5:C7)) -> 3 | B7: 203 | C7: أحمد ايهاب مسعد محمد سلطان | D7: 28 | E7: 25 | F7: 27 | G7: 30 | H7: 30 | I7: 99 | J7: 98 | K7: 99 | L7: 97 | M7: 98 | N7: 29
A8: =IF(C8="","",SUBTOTAL(3,$C$5:C8)) -> 4 | B8: 204 | C8: أحمد محمد منصور باز الشريف | D8: 30 | E8: 29 | F8: 30 | G8: 29 | H8: 29 | I8: 99 | J8: 98 | K8: 99 | L8: 99 | M8: 98 | N8: 30
A9: =IF(C9="","",SUBTOTAL(3,$C$5:C9)) -> 5 | B9: 205 | C9: أحمد هاني عبدالوهاب علي ابراهيم | D9: 21 | E9: 27 | F9: 27 | G9: 26 | H9: 30 | I9: 99 | J9: 98 | K9: 99 | L9: 99 | M9: 97 | N9: 25
A10: =IF(C10="","",SUBTOTAL(3,$C$5:C10)) -> 6 | B10: 206 | C10: احمد وجيه محمد الخضرى سيد احمد | D10: 16 | E10: 26 | F10: 21 | G10: 21 | H10: 30 | I10: 99 | J10: 98 | K10: 98 | L10: 99 | M10: 98 | N10: 18
A11: =IF(C11="","",SUBTOTAL(3,$C$5:C11)) -> 7 | B11: 207 | C11: أحمد وليد رمضان عبد العال متولي | D11: 26 | E11: 30 | F11: 29 | G11: 27 | H11: 30 | I11: 100 | J11: 100 | K11: 99 | L11: 99 | M11: 99 | N11: 25
A12: =IF(C12="","",SUBTOTAL(3,$C$5:C12)) -> 8 | B12: 208 | C12: أكرم محمد محمود محمد حسنين | D12: 30 | E12: 26 | F12: 29 | G12: 30 | H12: 30 | I12: 99 | J12: 98 | K12: 97 | L12: 99 | M12: 98 | N12: 30
A13: =IF(C13="","",SUBTOTAL(3,$C$5:C13)) -> 9 | B13: 209 | C13: السيد طارق سليمان شادي | D13: 30 | E13: 29 | F13: 28 | G13: 30 | H13: 30 | I13: 99 | J13: 98 | K13: 97 | L13: 99 | M13: 98 | N13: 30
A14: =IF(C14="","",SUBTOTAL(3,$C$5:C14)) -> 10 | B14: 210 | C14: امير مجدى ابراهيم الجزار | D14: 28 | E14: 28 | F14: 29 | G14: 26 | H14: 30 | I14: 98 | J14: 99 | K14: 99 | L14: 97 | M14: 96 | N14: 29
A15: =IF(C15="","",SUBTOTAL(3,$C$5:C15)) -> 11 | B15: 211 | C15: أنس إبراهيم محمد الحاج موسى | D15: 30 | E15: 28 | F15: 30 | G15: 30 | H15: 26 | I15: 99 | J15: 98 | K15: 98 | L15: 97 | M15: 98 | N15: 30
A16: =IF(C16="","",SUBTOTAL(3,$C$5:C16)) -> 12 | B16: 212 | C16: انس مجدى ابراهيم الجزار | D16: 30 | E16: 28 | F16: 27 | G16: 29 | H16: 28 | I16: 99 | J16: 98 | K16: 99 | L16: 97 | M16: 98 | N16: 25
A17: =IF(C17="","",SUBTOTAL(3,$C$5:C17)) -> 13 | B17: 213 | C17: جمال محمد جمال عبد الحليم المرادي | D17: 27 | E17: 17 | F17: 26 | G17: 26 | H17: 26 | I17: 97 | J17: 96 | K17: 99 | L17: 95 | M17: 98 | N17: 22
A18: =IF(C18="","",SUBTOTAL(3,$C$5:C18)) -> 14 | B18: 214 | C18: حسن أيمن حسن باز الشريف | D18: 24 | E18: 18 | F18: 23 | G18: 24 | H18: 24 | I18: 97 | J18: 96 | K18: 99 | L18: 95 | M18: 98 | N18: 21
A19: =IF(C19="","",SUBTOTAL(3,$C$5:C19)) -> 15 | B19: 215 | C19: زياد أسامه عبد العاطى عبد العزيز | D19: 30 | E19: 30 | F19: 30 | G19: 29 | H19: 30 | I19: 99 | J19: 98 | K19: 100 | L19: 99 | M19: 98 | N19: 30
A20: =IF(C20="","",SUBTOTAL(3,$C$5:C20)) -> 16 | B20: 216 | C20: سعد محمد سعد محمد سويلم | D20: 27 | E20: 20 | F20: 30 | G20: 29 | H20: 27 | I20: 99 | J20: 98 | K20: 99 | L20: 99 | M20: 98 | N20: 24
A21: =IF(C21="","",SUBTOTAL(3,$C$5:C21)) -> 17 | B21: 217 | C21: سيف ايمن موسى ابراهيم حسين | D21: 30 | E21: 21 | F21: 29 | G21: 28 | H21: 29 | I21: 99 | J21: 99 | K21: 99 | L21: 98 | M21: 98 | N21: 29
A22: =IF(C22="","",SUBTOTAL(3,$C$5:C22)) -> 18 | B22: 218 | C22: عاطف محمد الكيلاني عكاشه | D22: 24 | E22: 19 | F22: 23 | G22: 28 | H22: 28 | I22: 100 | J22: 98 | K22: 99 | L22: 100 | M22: 98 | N22: 23
A23: =IF(C23="","",SUBTOTAL(3,$C$5:C23)) -> 19 | B23: 219 | C23: عبد الرحمن أحمد عبد الله أحمد يوسف | D23: 19 | E23: 30 | F23: 27 | G23: 19 | H23: 30 | I23: 99 | J23: 98 | K23: 99 | L23: 97 | M23: 98 | N23: 30
A24: =IF(C24="","",SUBTOTAL(3,$C$5:C24)) -> 20 | B24: 220 | C24: عبد الرحمن جمال الشناوي الحسيني | D24: 25 | E24: 22 | F24: 23 | G24: 20 | H24: 22 | I24: 99 | J24: 98 | K24: 99 | L24: 99 | M24: 97 | N24: 23
A25: =IF(C25="","",SUBTOTAL(3,$C$5:C25)) -> 21 | B25: 221 | C25: عبد الرحمن عصام محمد بكر | D25: 29 | E25: 26 | F25: 29 | G25: 28 | H25: 29 | I25: 99 | J25: 98 | K25: 99 | L25: 97 | M25: 98 | N25: 26
A26: =IF(C26="","",SUBTOTAL(3,$C$5:C26)) -> 22 | B26: 222 | C26: عبد الرحمن عماد محمد عبدالعليم | D26: 29 | E26: 24 | F26: 30 | G26: 30 | H26: 29 | I26: 99 | J26: 98 | K26: 99 | L26: 99 | M26: 98 | N26: 29
A27: =IF(C27="","",SUBTOTAL(3,$C$5:C27)) -> 23 | B27: 223 | C27: عبد الرحمن محمد أحمد عثمان | D27: 30 | E27: 23 | F27: 26 | G27: 29 | H27: 30 | I27: 99 | J27: 98 | K27: 99 | L27: 97 | M27: 98 | N27: 28
A28: =IF(C28="","",SUBTOTAL(3,$C$5:C28)) -> 24 | B28: 224 | C28: عبد العزيز محمد زكى عبد العزيز | D28: 29 | E28: 25 | F28: 29 | G28: 30 | H28: 30 | I28: 99 | J28: 98 | K28: 99 | L28: 99 | M28: 98 | N28: 29
A29: =IF(C29="","",SUBTOTAL(3,$C$5:C29)) -> 25 | B29: 225 | C29: عبدالرحمن فتحي موسي عبد الدايم | D29: 30 | E29: 30 | F29: 29 | G29: 29 | H29: 30 | I29: 99 | J29: 98 | K29: 99 | L29: 97 | M29: 98 | N29: 28
A30: =IF(C30="","",SUBTOTAL(3,$C$5:C30)) -> 26 | B30: 226 | C30: عصام محمد سمير فرج | D30: 30 | E30: 28 | F30: 30 | G30: 30 | H30: 30 | I30: 99 | J30: 98 | K30: 99 | L30: 99 | M30: 97 | N30: 28
A31: =IF(C31="","",SUBTOTAL(3,$C$5:C31)) -> 27 | B31: 227 | C31: عمار حاتم محمد رياض عمر | D31: 30 | E31: 26 | F31: 28 | G31: 30 | H31: 28 | I31: 99 | J31: 98 | K31: 99 | L31: 97 | M31: 98 | N31: 29
A32: =IF(C32="","",SUBTOTAL(3,$C$5:C32)) -> 28 | B32: 228 | C32: عمار علي علي رضوان الشحري | D32: 29 | E32: 28 | F32: 30 | G32: 28 | H32: 26 | I32: 99 | J32: 98 | K32: 99 | L32: 99 | M32: 98 | N32: 28
A33: =IF(C33="","",SUBTOTAL(3,$C$5:C33)) -> 29 | B33: 229 | C33: عمر أمير عبد الحفيظ أحمد الطنطاوي | D33: 26 | E33: 29 | F33: 29 | G33: 28 | H33: 28 | I33: 99 | J33: 98 | K33: 99 | L33: 97 | M33: 98 | N33: 27
A34: =IF(C34="","",SUBTOTAL(3,$C$5:C34)) -> 30 | B34: 230 | C34: عمر محمد محمد عبد العزيز حماد | D34: 27 | E34: 28 | F34: 30 | G34: 30 | H34: 28 | I34: 99 | J34: 98 | K34: 99 | L34: 97 | M34: 98 | N34: 27
A35: =IF(C35="","",SUBTOTAL(3,$C$5:C35)) -> 31 | B35: 231 | C35: عمرو محمد إبراهيم محمد إبراهيم | D35: 24 | E35: 25 | F35: 27 | G35: 27 | H35: 27 | I35: 99 | J35: 98 | K35: 97 | L35: 97 | M35: 98 | N35: 26
A36: =IF(C36="","",SUBTOTAL(3,$C$5:C36)) -> 32 | B36: 232 | C36: فتحى عبد الكريم فتحى عبد الكريم يوسف | D36: 26 | E36: 22 | F36: 23 | G36: 26 | H36: 27 | I36: 99 | J36: 98 | K36: 97 | L36: 97 | M36: 98 | N36: 24
A37: =IF(C37="","",SUBTOTAL(3,$C$5:C37)) -> 33 | B37: 233 | C37: فتحي أيمن فتحي محمد إبراهيم | D37: 29 | E37: 24 | F37: 29 | G37: 30 | H37: 29 | I37: 99 | J37: 98 | K37: 99 | L37: 97 | M37: 98 | N37: 29
A38: =IF(C38="","",SUBTOTAL(3,$C$5:C38)) -> 34 | B38: 234 | C38: فرج محمود فرج مغاوري | D38: 26 | E38: 20 | F38: 25 | G38: 28 | H38: 26 | I38: 99 | J38: 98 | K38: 99 | L38: 97 | M38: 98 | N38: 21
A39: =IF(C39="","",SUBTOTAL(3,$C$5:C39)) -> 35 | B39: 235 | C39: فهيم ياسر فهيم احمد مروان | D39: 28 | E39: 23 | F39: 26 | G39: 26 | H39: 25 | I39: 99 | J39: 98 | K39: 97 | L39: 99 | M39: 98 | N39: 28
A40: =IF(C40="","",SUBTOTAL(3,$C$5:C40)) -> 36 | B40: 236 | C40: محمد ايهاب محمد الدسوقي | D40: 29 | E40: 28 | F40: 29 | G40: 30 | H40: 30 | I40: 97 | J40: 96 | K40: 99 | L40: 95 | M40: 98 | N40: 30
A41: =IF(C41="","",SUBTOTAL(3,$C$5:C41)) -> 37 | B41: 237 | C41: محمد حسام عبد المنعم السيد فرج | D41: 28 | E41: 27 | F41: 30 | G41: 26 | H41: 30 | I41: 99 | J41: 98 | K41: 99 | L41: 99 | M41: 98 | N41: 26
A42: =IF(C42="","",SUBTOTAL(3,$C$5:C42)) -> 38 | B42: 238 | C42: محمد ماهر إبراهيم المرادي | D42: 26 | E42: 29 | F42: 30 | G42: 28 | H42: 30 | I42: 99 | J42: 98 | K42: 99 | L42: 99 | M42: 98 | N42: 26
A43: =IF(C43="","",SUBTOTAL(3,$C$5:C43)) -> 39 | B43: 239 | C43: محمد ماهر محمد سعيد السيد | D43: 28 | E43: 27 | F43: 29 | G43: 27 | H43: 29 | I43: 97 | J43: 98 | K43: 99 | L43: 97 | M43: 98 | N43: 29
A44: =IF(C44="","",SUBTOTAL(3,$C$5:C44)) -> 40 | B44: 240 | C44: محمود ايمن خيري بيومي حماده | D44: 28 | E44: 27 | F44: 29 | G44: 24 | H44: 29 | I44: 99 | J44: 98 | K44: 98 | L44: 99 | M44: 98 | N44: 26
A45: =IF(C45="","",SUBTOTAL(3,$C$5:C45)) -> 41 | B45: 241 | C45: محمود رفعت عبدالرشيد السيد عامر | D45: 30 | E45: 26 | F45: 29 | G45: 25 | H45: 26 | I45: 100 | J45: 100 | K45: 99 | L45: 100 | M45: 100 | N45: 28
A46: =IF(C46="","",SUBTOTAL(3,$C$5:C46)) -> 42 | B46: 242 | C46: محمود عماد عبد الستار محمد ابراهيم | D46: 29 | E46: 27 | F46: 30 | G46: 29 | H46: 29 | I46: 99 | J46: 98 | K46: 97 | L46: 99 | M46: 98 | N46: 28
A47: =IF(C47="","",SUBTOTAL(3,$C$5:C47)) -> 43 | B47: 243 | C47: مصطفي عاطف محمد أحمد | D47: 30 | E47: 25 | F47: 27 | G47: 22 | H47: 28 | I47: 99 | J47: 98 | K47: 97 | L47: 99 | M47: 98 | N47: 29
A48: =IF(C48="","",SUBTOTAL(3,$C$5:C48)) -> 44 | B48: 244 | C48: مهند أمير سامي عبد المطلب درغام | D48: 28 | E48: 27 | F48: 29 | G48: 30 | H48: 27 | I48: 98 | J48: 98 | K48: 99 | L48: 99 | M48: 98 | N48: 26
A49: =IF(C49="","",SUBTOTAL(3,$C$5:C49)) -> 45 | B49: 245 | C49: يوسف ماهر محمود عبدالعاطي محمد | D49: 29 | E49: 28 | F49: 30 | G49: 28 | H49: 30 | I49: 99 | J49: 98 | K49: 99 | L49: 97 | M49: 98 | N49: 26
A50: =IF(C50="","",SUBTOTAL(3,$C$5:C50)) -> 46 | B50: 246 | C50: يوسف محمد جبر أحمد جبر | D50: 22 | E50: 25 | F50: 22 | G50: 24 | H50: 30 | I50: 99 | J50: 98 | K50: 97 | L50: 99 | M50: 87 | N50: 26
A51: =IF(C51="","",SUBTOTAL(3,$C$5:C51)) -> 47 | B51: 247 | C51: يوسف محمد عبد السميع بكر | D51: 25 | E51: 23 | F51: 25 | G51: 17 | H51: 23 | I51: 97 | J51: 98 | K51: 99 | L51: 97 | M51: 98 | N51: 25
A52: =IF(C52="","",SUBTOTAL(3,$C$5:C52)) -> 48 | B52: 248 | C52: يوسف محمد كمال الصادق فرج | D52: 28 | E52: 27 | F52: 30 | G52: 30 | H52: 22 | I52: 99 | J52: 98 | K52: 97 | L52: 97 | M52: 98 | N52: 30
A53: =IF(C53="","",SUBTOTAL(3,$C$5:C53)) -> 49 | B53: 249 | C53: اروى عزب عبد المولى عزب خليل | D53: 28 | E53: 27 | F53: 29 | G53: 26 | H53: 26 | I53: 97 | J53: 96 | K53: 98 | L53: 95 | M53: 98 | N53: 27
A54: =IF(C54="","",SUBTOTAL(3,$C$5:C54)) -> 50 | B54: 250 | C54: إسراء جمال محمد الخضري | D54: 25 | E54: 30 | F54: 29 | G54: 30 | H54: 28 | I54: 96 | J54: 97 | K54: 96 | L54: 98 | M54: 98 | N54: 29
A55: =IF(C55="","",SUBTOTAL(3,$C$5:C55)) -> 51 | B55: 251 | C55: آلاء أشرف محمود السيد عبد الرحمن | D55: 30 | E55: 30 | F55: 30 | G55: 28 | H55: 30 | I55: 99 | J55: 98 | K55: 99 | L55: 97 | M55: 98 | N55: 29
A56: =IF(C56="","",SUBTOTAL(3,$C$5:C56)) -> 52 | B56: 252 | C56: آلاء محمد عبد اللطيف السيد عطوه | D56: 28 | E56: 24 | F56: 27 | G56: 30 | H56: 24 | I56: 97 | J56: 96 | K56: 97 | L56: 95 | M56: 98 | N56: 30
A57: =IF(C57="","",SUBTOTAL(3,$C$5:C57)) -> 53 | B57: 253 | C57: آيه إيهاب عبد الله إبراهيم عامر | D57: 29 | E57: 30 | F57: 30 | G57: 28 | H57: 30 | I57: 98 | J57: 97 | K57: 99 | L57: 95 | M57: 96 | N57: 30
A58: =IF(C58="","",SUBTOTAL(3,$C$5:C58)) -> 54 | B58: 254 | C58: آيه عبد الحميد علي بكر | D58: 29 | E58: 28 | F58: 29 | G58: 30 | H58: 30 | I58: 96 | J58: 95 | K58: 99 | L58: 94 | M58: 95 | N58: 30
A59: =IF(C59="","",SUBTOTAL(3,$C$5:C59)) -> 55 | B59: 255 | C59: بسملة محمد فوزى صلاح الدين عامر | D59: 28 | E59: 28 | F59: 29 | G59: 27 | H59: 29 | I59: 99 | J59: 98 | K59: 99 | L59: 97 | M59: 98 | N59: 30
A60: =IF(C60="","",SUBTOTAL(3,$C$5:C60)) -> 56 | B60: 256 | C60: جنى عبد الله حسن عبد الله ابراهيم | D60: 28 | E60: 29 | F60: 30 | G60: 28 | H60: 30 | I60: 97 | J60: 96 | K60: 99 | L60: 95 | M60: 97 | N60: 30
A61: =IF(C61="","",SUBTOTAL(3,$C$5:C61)) -> 57 | B61: 257 | C61: حبيبة هشام ابراهيم علي | D61: 26 | E61: 30 | F61: 30 | G61: 28 | H61: 30 | I61: 97 | J61: 96 | K61: 99 | L61: 95 | M61: 96 | N61: 30
A62: =IF(C62="","",SUBTOTAL(3,$C$5:C62)) -> 58 | B62: 258 | C62: حبيبه جمال إمام محمد المرادي | D62: 27 | E62: 28 | F62: 30 | G62: 28 | H62: 30 | I62: 99 | J62: 98 | K62: 99 | L62: 97 | M62: 98 | N62: 30
A63: =IF(C63="","",SUBTOTAL(3,$C$5:C63)) -> 59 | B63: 259 | C63: حبيبه صلاح الدين أحمد عبد الوهاب حماد | D63: 29 | E63: 27 | F63: 28 | G63: 29 | H63: 29 | I63: 99 | J63: 98 | K63: 97 | L63: 97 | M63: 98 | N63: 24
A64: =IF(C64="","",SUBTOTAL(3,$C$5:C64)) -> 60 | B64: 260 | C64: حبيبه محمد عبد الله مرسي | D64: 26 | E64: 30 | F64: 29 | G64: 27 | H64: 25 | I64: 99 | J64: 98 | K64: 99 | L64: 99 | M64: 98 | N64: 29
A65: =IF(C65="","",SUBTOTAL(3,$C$5:C65)) -> 61 | B65: 261 | C65: دنيا عبد الكريم عبد الله عبد الكريم يوسف | D65: 30 | E65: 30 | F65: 30 | G65: 29 | H65: 29 | I65: 99 | J65: 98 | K65: 99 | L65: 99 | M65: 98 | N65: 29
A66: =IF(C66="","",SUBTOTAL(3,$C$5:C66)) -> 62 | B66: 262 | C66: روان باسم نعيم السيد محمود | D66: 29 | E66: 29 | F66: 29 | G66: 27 | H66: 28 | I66: 99 | J66: 98 | K66: 99 | L66: 97 | M66: 98 | N66: 29
A67: =IF(C67="","",SUBTOTAL(3,$C$5:C67)) -> 63 | B67: 263 | C67: رودينه محمود طه محمود عيد | D67: 20 | E67: 18 | F67: 22 | G67: 25 | H67: 23 | I67: 97 | J67: 98 | K67: 99 | L67: 97 | M67: 98 | N67: 28
A68: =IF(C68="","",SUBTOTAL(3,$C$5:C68)) -> 64 | B68: 264 | C68: رؤي سمير موسي أحمد عبد الدايم | D68: 29 | E68: 30 | F68: 30 | G68: 28 | H68: 28 | I68: 99 | J68: 98 | K68: 99 | L68: 99 | M68: 98 | N68: 29
A69: =IF(C69="","",SUBTOTAL(3,$C$5:C69)) -> 65 | B69: 265 | C69: سامية عبد العزيز محمد عبد العزيز حماد | D69: 30 | E69: 29 | F69: 30 | G69: 30 | H69: 29 | I69: 99 | J69: 98 | K69: 97 | L69: 97 | M69: 98 | N69: 30
A70: =IF(C70="","",SUBTOTAL(3,$C$5:C70)) -> 66 | B70: 266 | C70: سندس ماهر أمين محمد المرادي | D70: 29 | E70: 26 | F70: 30 | G70: 27 | H70: 25 | I70: 99 | J70: 98 | K70: 99 | L70: 97 | M70: 98 | N70: 28
A71: =IF(C71="","",SUBTOTAL(3,$C$5:C71)) -> 67 | B71: 267 | C71: شذا أنور أحمد التهامي حجاج | D71: 30 | E71: 28 | F71: 30 | G71: 29 | H71: 29 | I71: 99 | J71: 98 | K71: 99 | L71: 99 | M71: 97 | N71: 29
A72: =IF(C72="","",SUBTOTAL(3,$C$5:C72)) -> 68 | B72: 268 | C72: شهد عبد الله فراج أحمد فراج | D72: 30 | E72: 26 | F72: 30 | G72: 30 | H72: 29 | I72: 99 | J72: 98 | K72: 99 | L72: 99 | M72: 98 | N72: 29
A73: =IF(C73="","",SUBTOTAL(3,$C$5:C73)) -> 69 | B73: 269 | C73: شهد علي محمد مصلحي عوض | D73: 29 | E73: 29 | F73: 30 | G73: 30 | H73: 27 | I73: 99 | J73: 98 | K73: 99 | L73: 97 | M73: 98 | N73: 30
A74: =IF(C74="","",SUBTOTAL(3,$C$5:C74)) -> 70 | B74: 270 | C74: شهد محمد إبراهيم متولي اليبد | D74: 29 | E74: 29 | F74: 30 | G74: 19 | H74: 21 | I74: 97 | J74: 98 | K74: 97 | L74: 97 | M74: 97 | N74: 28
A75: =IF(C75="","",SUBTOTAL(3,$C$5:C75)) -> 71 | B75: 271 | C75: شهد نادر عقل محمد عقل | D75: 30 | E75: 28 | F75: 30 | G75: 28 | H75: 30 | I75: 99 | J75: 98 | K75: 99 | L75: 97 | M75: 98 | N75: 30
A76: =IF(C76="","",SUBTOTAL(3,$C$5:C76)) -> 72 | B76: 272 | C76: فاطمة أيمن محمد عبد الستارعطيه | D76: 30 | E76: 28 | F76: 28 | G76: 25 | H76: 29 | I76: 99 | J76: 98 | K76: 99 | L76: 97 | M76: 98 | N76: 29
A77: =IF(C77="","",SUBTOTAL(3,$C$5:C77)) -> 73 | B77: 273 | C77: مريم جلال إبراهيم الدسوقي النادي | D77: 28 | E77: 29 | F77: 30 | G77: 30 | H77: 29 | I77: 99 | J77: 98 | K77: 99 | L77: 97 | M77: 98 | N77: 27
A78: =IF(C78="","",SUBTOTAL(3,$C$5:C78)) -> 74 | B78: 274 | C78: مريم سعيد عبدالمنعم ابراهيم موسى | D78: 29 | E78: 30 | F78: 30 | G78: 29 | H78: 27 | I78: 99 | J78: 98 | K78: 99 | L78: 97 | M78: 98 | N78: 30
A79: =IF(C79="","",SUBTOTAL(3,$C$5:C79)) -> 75 | B79: 275 | C79: ملك جمال عبد الوهاب علي | D79: 29 | E79: 25 | F79: 30 | G79: 26 | H79: 27 | I79: 97 | J79: 98 | K79: 99 | L79: 97 | M79: 98 | N79: 26
A80: =IF(C80="","",SUBTOTAL(3,$C$5:C80)) -> 76 | B80: 276 | C80: ملك حسين موسي ابراهيم موسى | D80: 30 | E80: 29 | F80: 30 | G80: 29 | H80: 30 | I80: 99 | J80: 98 | K80: 99 | L80: 97 | M80: 98 | N80: 26
A81: =IF(C81="","",SUBTOTAL(3,$C$5:C81)) -> 77 | B81: 277 | C81: ملك عماد النادي موسي المرادي | D81: 20 | E81: 25 | F81: 29 | G81: 19 | H81: 25 | I81: 99 | J81: 98 | K81: 99 | L81: 97 | M81: 98 | N81: 21
A82: =IF(C82="","",SUBTOTAL(3,$C$5:C82)) -> 78 | B82: 278 | C82: ملك ماهر السيد حسين غلوش | D82: 30 | E82: 29 | F82: 29 | G82: 25 | H82: 26 | I82: 99 | J82: 98 | K82: 99 | L82: 97 | M82: 98 | N82: 30
A83: =IF(C83="","",SUBTOTAL(3,$C$5:C83)) -> 79 | B83: 279 | C83: ملك محمد السيد خضير | D83: 30 | E83: 30 | F83: 30 | G83: 30 | H83: 29 | I83: 99 | J83: 98 | K83: 99 | L83: 97 | M83: 98 | N83: 30
A84: =IF(C84="","",SUBTOTAL(3,$C$5:C84)) -> 80 | B84: 280 | C84: ملك محمد عبد الله حسن فرج | D84: 20 | E84: 19 | F84: 25 | G84: 16 | H84: 27 | I84: 99 | J84: 98 | K84: 99 | L84: 97 | M84: 98 | N84: 23
A85: =IF(C85="","",SUBTOTAL(3,$C$5:C85)) -> 81 | B85: 281 | C85: ملك محمد عبد الله محمود البكري | D85: 30 | E85: 28 | F85: 28 | G85: 29 | H85: 30 | I85: 99 | J85: 98 | K85: 99 | L85: 97 | M85: 98 | N85: 27
A86: =IF(C86="","",SUBTOTAL(3,$C$5:C86)) -> 82 | B86: 282 | C86: ملك نبيل أحمد أبو المجد أحمد | D86: 29 | E86: 19 | F86: 25 | G86: 20 | H86: 23 | I86: 99 | J86: 98 | K86: 99 | L86: 97 | M86: 98 | N86: 26
A87: =IF(C87="","",SUBTOTAL(3,$C$5:C87)) -> 83 | B87: 283 | C87: منه ماهر عبد المولي الصادق فرج | D87: 30 | E87: 28 | F87: 30 | G87: 30 | H87: 29 | I87: 99 | J87: 99 | K87: 99 | L87: 99 | M87: 99 | N87: 29
A88: =IF(C88="","",SUBTOTAL(3,$C$5:C88)) -> 84 | B88: 284 | C88: مني جمال ابراهيم محمد عبدالله | D88: 30 | E88: 29 | F88: 30 | G88: 29 | H88: 30 | I88: 99 | J88: 98 | K88: 99 | L88: 97 | M88: 98 | N88: 30
A89: =IF(C89="","",SUBTOTAL(3,$C$5:C89)) -> 85 | B89: 285 | C89: نادين أيمن عبد الله الصادق فرج | D89: 30 | E89: 30 | F89: 30 | G89: 28 | H89: 30 | I89: 99 | J89: 98 | K89: 99 | L89: 97 | M89: 97 | N89: 29
A90: =IF(C90="","",SUBTOTAL(3,$C$5:C90)) -> 86 | B90: 286 | C90: نور أحمد عبد الرازق يوسف عبد الله | D90: 30 | E90: 30 | F90: 30 | G90: 28 | H90: 30 | I90: 99 | J90: 98 | K90: 99 | L90: 97 | M90: 98 | N90: 30
A91: =IF(C91="","",SUBTOTAL(3,$C$5:C91)) -> 87 | B91: 287 | C91: نورا إبراهيم كمال الصادق فرج | D91: 30 | E91: 30 | F91: 30 | G91: 28 | H91: 30 | I91: 99 | J91: 97 | K91: 99 | L91: 99 | M91: 98 | N91: 30
A92: =IF(C92="","",SUBTOTAL(3,$C$5:C92)) -> 88 | B92: 288 | C92: هبة الله السيد فهمي محمد إبراهيم | D92: 30 | E92: 29 | F92: 30 | G92: 29 | H92: 28 | I92: 99 | J92: 98 | K92: 99 | L92: 97 | M92: 98 | N92: 30
A93: =IF(C93="","",SUBTOTAL(3,$C$5:C93)) -> 89 | B93: 289 | C93: أحمد سامح إبراهيم مصيلحى | D93: 18 | E93: 13 | F93: 16 | G93: 17 | H93: 19 | I93: 97 | J93: 98 | K93: 99 | L93: 97 | M93: 98 | N93: 21
A94: =IF(C94="","",SUBTOTAL(3,$C$5:C94)) -> 90 | B94: 290 | C94: أحمد عصام صبحي محمد المرادي | D94: 16 | E94: 17 | F94: 14 | G94: 13 | H94: 20 | I94: 98 | J94: 99 | K94: 99 | L94: 97 | M94: 98 | N94: 18
A95: =IF(C95="","",SUBTOTAL(3,$C$5:C95)) -> 91 | B95: 291 | C95: احمد محمد السيد محمد على | D95: 15 | E95: 13 | F95: 13 | G95: 13 | H95: 24 | I95: 99 | J95: 98 | K95: 100 | L95: 99 | M95: 98 | N95: 19
A96: =IF(C96="","",SUBTOTAL(3,$C$5:C96)) -> 92 | B96: 292 | C96: أحمد محمد سعيد سيد المرادي | D96: 2 | E96: 5 | F96: 9 | G96: 8 | H96: 15 | I96: 99 | J96: 98 | K96: 99 | L96: 99 | M96: 98 | N96: 8
A97: =IF(C97="","",SUBTOTAL(3,$C$5:C97)) -> 93 | B97: 293 | C97: آدم محمد السيد العوني | D97: غ | E97: غ | F97: غ | G97: غ | H97: غ | I97: غ | J97: غ | K97: غ | L97: غ | M97: غ | N97: غ
A98: =IF(C98="","",SUBTOTAL(3,$C$5:C98)) -> 94 | B98: 294 | C98: زياد أشرف عباس سعيد عجور | D98: 3 | E98: 17 | F98: 15 | G98: 11 | H98: 24 | I98: غ | J98: غ | K98: غ | L98: غ | M98: غ | N98: 13
A99: =IF(C99="","",SUBTOTAL(3,$C$5:C99)) -> 95 | B99: 295 | C99: زياد محمد زايد عبد الرازق عبد العال | D99: 20 | E99: 19 | F99: 16 | G99: 13 | H99: 23 | I99: 99 | J99: 99 | K99: 99 | L99: 99 | M99: 97 | N99: 25
A100: =IF(C100="","",SUBTOTAL(3,$C$5:C100)) -> 96 | B100: 296 | C100: على محمد على عبد الجواد | D100: 22 | E100: 23 | F100: 19 | G100: 13 | H100: 20 | I100: 99 | J100: 98 | K100: 99 | L100: 97 | M100: 98 | N100: 14
A101: =IF(C101="","",SUBTOTAL(3,$C$5:C101)) -> 97 | B101: 297 | C101: محمد جمعة عبدالغفار محمد هدهد | D101: 12 | E101: 11 | F101: 26 | G101: 21 | H101: 26 | I101: 97 | J101: 96 | K101: 100 | L101: 95 | M101: 98 | N101: 7
A102: =IF(C102="","",SUBTOTAL(3,$C$5:C102)) -> 98 | B102: 298 | C102: محمود عاطف عبدالرازق قطب | D102: 15 | E102: 11 | F102: 16 | G102: 28 | H102: 21 | I102: 99 | J102: 99 | K102: 99 | L102: 100 | M102: 98 | N102: 11
A103: =IF(C103="","",SUBTOTAL(3,$C$5:C103)) -> 99 | B103: 299 | C103: يوسف محمد عبد الحميد هدهد | D103: 26 | E103: 10 | F103: 25 | G103: 24 | H103: 23 | I103: 97 | J103: 96 | K103: 96 | L103: 95 | M103: 98 | N103: 24
A104: =IF(C104="","",SUBTOTAL(3,$C$5:C104)) -> 100 | B104: 300 | C104: يوسف محمود عبد الموجود السيد سيد أحمد | D104: 11 | E104: 19 | F104: 16 | G104: 20 | H104: 21 | I104: 99 | J104: 98 | K104: 99 | L104: 99 | M104: 98 | N104: 19
A105: =IF(C105="","",SUBTOTAL(3,$C$5:C105)) -> 101 | B105: 301 | C105: ايثار حمدي عبد الستار علي فرج | D105: 21 | E105: 11 | F105: 21 | G105: 23 | H105: 26 | I105: 99 | J105: 98 | K105: 97 | L105: 97 | M105: 98 | N105: 22
A106: =IF(C106="","",SUBTOTAL(3,$C$5:C106)) -> 102 | B106: 302 | C106: دعاء ياسر عبد الرحيم علي شعلان | D106: 30 | E106: 10 | F106: 30 | G106: 30 | H106: 29 | I106: 99 | J106: 98 | K106: 99 | L106: 97 | M106: 98 | N106: 30
A107: =IF(C107="","",SUBTOTAL(3,$C$5:C107)) -> 103 | B107: 303 | C107: ساره ماهر عبد الرازق حسن فراج | D107: غ | E107: غ | F107: غ | G107: غ | H107: غ | I107: غ | J107: غ | K107: غ | L107: غ | M107: غ | N107: غ
A108: =IF(C108="","",SUBTOTAL(3,$C$5:C108)) -> 104 | B108: 304 | C108: منه امير عبد الله ابراهيم عامر | D108: 26 | E108: 9 | F108: 20 | G108: 21 | H108: 20 | I108: 99 | J108: 97 | K108: 99 | L108: 97 | M108: 98 | N108: 28
A109: =IF(C109="","",SUBTOTAL(3,$C$5:C109)) -> 105 | B109: 305 | C109: هاجر ايمن محمود السيد المرادى | D109: 21 | E109: 12 | F109: 14 | G109: 17 | H109: 19 | I109: 99 | J109: 98 | K109: 99 | L109: 97 | M109: 98 | N109: 27

Sheet الثامن
A1: إدارة قويسنا التعليمية0 الصف السادس
A2: مدرسة عربالرمل الإبتدائية سكة حديد | F2: نتيجة نصف العام 2019/2018
A3: م | B3: جلوس | C3: الاســــــــــــــم | D3: لغة عربية | E3: رياضيات | F3: لغة إنجليزية | G3: دراسات | H3: علوم | I3: فنى | J3: رياضى | K3: حاسب ألى | L3: نشاط1 | M3: نشاط2 | N3: دين
D4: 30 | E4: 30 | F4: 30 | G4: 30 | H4: 30 | I4: 100 | J4: 100 | K4: 100 | L4: 100 | M4: 100 | N4: 30
A5: =IF(C5="","",SUBTOTAL(3,$C$5:C5)) -> 1 | B5: 201 | C5: محمد 1 | D5: 2 | E5: 26 | F5: 27 | G5: 30 | H5: 30 | I5: 95 | J5: 98 | K5: 98 | L5: 97 | M5: 98 | N5: 29
A6: =IF(C6="","",SUBTOTAL(3,$C$5:C6)) -> 2 | B6: 202 | C6: محمد 2 | D6: 28 | E6: 29 | F6: 29 | G6: 30 | H6: 30 | I6: 98 | J6: 98 | K6: 99 | L6: 97 | M6: 98 | N6: 30
A7: =IF(C7="","",SUBTOTAL(3,$C$5:C7)) -> 3 | B7: 203 | C7: محمد 3 | D7: 28 | E7: 25 | F7: 27 | G7: 30 | H7: 30 | I7: 99 | J7: 98 | K7: 99 | L7: 97 | M7: 98 | N7: 29
A8: =IF(C8="","",SUBTOTAL(3,$C$5:C8)) -> 4 | B8: 204 | C8: محمد 4 | D8: 30 | E8: 29 | F8: 30 | G8: 29 | H8: 29 | I8: 99 | J8: 98 | K8: 99 | L8: 99 | M8: 98 | N8: 30
A9: =IF(C9="","",SUBTOTAL(3,$C$5:C9)) -> 5 | B9: 205 | C9: محمد 5 | D9: 21 | E9: 27 | F9: 27 | G9: 26 | H9: 30 | I9: 99 | J9: 98 | K9: 99 | L9: 99 | M9: 97 | N9: 25
A10: =IF(C10="","",SUBTOTAL(3,$C$5:C10)) -> 6 | B10: 206 | C10: محمد 6 | D10: 16 | E10: 26 | F10: 21 | G10: 21 | H10: 30 | I10: 99 | J10: 98 | K10: 98 | L10: 99 | M10: 98 | N10: 18
A11: =IF(C11="","",SUBTOTAL(3,$C$5:C11)) -> 7 | B11: 207 | C11: محمد 7 | D11: 26 | E11: 30 | F11: 29 | G11: 27 | H11: 30 | I11: 100 | J11: 100 | K11: 99 | L11: 99 | M11: 99 | N11: 25
A12: =IF(C12="","",SUBTOTAL(3,$C$5:C12)) -> 8 | B12: 208 | C12: محمد 8 | D12: 30 | E12: 26 | F12: 29 | G12: 30 | H12: 30 | I12: 99 | J12: 98 | K12: 97 | L12: 99 | M12: 98 | N12: 30
A13: =IF(C13="","",SUBTOTAL(3,$C$5:C13)) -> 9 | B13: 209 | C13: محمد 9 | D13: 30 | E13: 29 | F13: 28 | G13: 30 | H13: 30 | I13: 99 | J13: 98 | K13: 97 | L13: 99 | M13: 98 | N13: 30
A14: =IF(C14="","",SUBTOTAL(3,$C$5:C14)) -> 10 | B14: 210 | C14: محمد 10 | D14: 28 | E14: 28 | F14: 29 | G14: 26 | H14: 30 | I14: 98 | J14: 99 | K14: 99 | L14: 97 | M14: 96 | N14: 29
A15: =IF(C15="","",SUBTOTAL(3,$C$5:C15)) -> 11 | B15: 211 | C15: محمد 11 | D15: 30 | E15: 28 | F15: 30 | G15: 30 | H15: 26 | I15: 99 | J15: 98 | K15: 98 | L15: 97 | M15: 98 | N15: 30
A16: =IF(C16="","",SUBTOTAL(3,$C$5:C16)) -> 12 | B16: 212 | C16: محمد 12 | D16: 30 | E16: 28 | F16: 27 | G16: 29 | H16: 28 | I16: 99 | J16: 98 | K16: 99 | L16: 97 | M16: 98 | N16: 25
A17: =IF(C17="","",SUBTOTAL(3,$C$5:C17)) -> 13 | B17: 213 | C17: محمد 13 | D17: 27 | E17: 17 | F17: 26 | G17: 26 | H17: 26 | I17: 97 | J17: 96 | K17: 99 | L17: 95 | M17: 98 | N17: 22
A18: =IF(C18="","",SUBTOTAL(3,$C$5:C18)) -> 14 | B18: 214 | C18: محمد 14 | D18: 24 | E18: 18 | F18: 23 | G18: 24 | H18: 24 | I18: 97 | J18: 96 | K18: 99 | L18: 95 | M18: 98 | N18: 21
A19: =IF(C19="","",SUBTOTAL(3,$C$5:C19)) -> 15 | B19: 215 | C19: محمد 15 | D19: 30 | E19: 30 | F19: 30 | G19: 29 | H19: 30 | I19: 99 | J19: 98 | K19: 100 | L19: 99 | M19: 98 | N19: 30
A20: =IF(C20="","",SUBTOTAL(3,$C$5:C20)) -> 16 | B20: 216 | C20: محمد 16 | D20: 27 | E20: 20 | F20: 30 | G20: 29 | H20: 27 | I20: 99 | J20: 98 | K20: 99 | L20: 99 | M20: 98 | N20: 24
A21: =IF(C21="","",SUBTOTAL(3,$C$5:C21)) -> 17 | B21: 217 | C21: محمد 17 | D21: 30 | E21: 21 | F21: 29 | G21: 28 | H21: 29 | I21: 99 | J21: 99 | K21: 99 | L21: 98 | M21: 98 | N21: 29
A22: =IF(C22="","",SUBTOTAL(3,$C$5:C22)) -> 18 | B22: 218 | C22: محمد 18 | D22: 24 | E22: 19 | F22: 23 | G22: 28 | H22: 28 | I22: 100 | J22: 98 | K22: 99 | L22: 100 | M22: 98 | N22: 23
A23: =IF(C23="","",SUBTOTAL(3,$C$5:C23)) -> 19 | B23: 219 | C23: محمد 19 | D23: 19 | E23: 30 | F23: 27 | G23: 19 | H23: 30 | I23: 99 | J23: 98 | K23: 99 | L23: 97 | M23: 98 | N23: 30
A24: =IF(C24="","",SUBTOTAL(3,$C$5:C24)) -> 20 | B24: 220 | C24: محمد 20 | D24: 25 | E24: 22 | F24: 23 | G24: 20 | H24: 22 | I24: 99 | J24: 98 | K24: 99 | L24: 99 | M24: 97 | N24: 23
A25: =IF(C25="","",SUBTOTAL(3,$C$5:C25)) -> 21 | B25: 221 | C25: محمد 21 | D25: 29 | E25: 26 | F25: 29 | G25: 28 | H25: 29 | I25: 99 | J25: 98 | K25: 99 | L25: 97 | M25: 98 | N25: 26
A26: =IF(C26="","",SUBTOTAL(3,$C$5:C26)) -> 22 | B26: 222 | C26: محمد 22 | D26: 29 | E26: 24 | F26: 30 | G26: 30 | H26: 29 | I26: 99 | J26: 98 | K26: 99 | L26: 99 | M26: 98 | N26: 29
A27: =IF(C27="","",SUBTOTAL(3,$C$5:C27)) -> 23 | B27: 223 | C27: محمد 23 | D27: 30 | E27: 23 | F27: 26 | G27: 29 | H27: 30 | I27: 99 | J27: 98 | K27: 99 | L27: 97 | M27: 98 | N27: 28
A28: =IF(C28="","",SUBTOTAL(3,$C$5:C28)) -> 24 | B28: 224 | C28: محمد 24 | D28: 29 | E28: 25 | F28: 29 | G28: 30 | H28: 30 | I28: 99 | J28: 98 | K28: 99 | L28: 99 | M28: 98 | N28: 29
A29: =IF(C29="","",SUBTOTAL(3,$C$5:C29)) -> 25 | B29: 225 | C29: محمد 25 | D29: 30 | E29: 30 | F29: 29 | G29: 29 | H29: 30 | I29: 99 | J29: 98 | K29: 99 | L29: 97 | M29: 98 | N29: 28
A30: =IF(C30="","",SUBTOTAL(3,$C$5:C30)) -> 26 | B30: 226 | C30: محمد 26 | D30: 30 | E30: 28 | F30: 30 | G30: 30 | H30: 30 | I30: 99 | J30: 98 | K30: 99 | L30: 99 | M30: 97 | N30: 28
A31: =IF(C31="","",SUBTOTAL(3,$C$5:C31)) -> 27 | B31: 227 | C31: محمد 27 | D31: 30 | E31: 26 | F31: 28 | G31: 30 | H31: 28 | I31: 99 | J31: 98 | K31: 99 | L31: 97 | M31: 98 | N31: 29
A32: =IF(C32="","",SUBTOTAL(3,$C$5:C32)) -> 28 | B32: 228 | C32: محمد 28 | D32: 29 | E32: 28 | F32: 30 | G32: 28 | H32: 26 | I32: 99 | J32: 98 | K32: 99 | L32: 99 | M32: 98 | N32: 28
A33: =IF(C33="","",SUBTOTAL(3,$C$5:C33)) -> 29 | B33: 229 | C33: محمد 29 | D33: 26 | E33: 29 | F33: 29 | G33: 28 | H33: 28 | I33: 99 | J33: 98 | K33: 99 | L33: 97 | M33: 98 | N33: 27
A34: =IF(C34="","",SUBTOTAL(3,$C$5:C34)) -> 30 | B34: 230 | C34: محمد 30 | D34: 27 | E34: 28 | F34: 30 | G34: 30 | H34: 28 | I34: 99 | J34: 98 | K34: 99 | L34: 97 | M34: 98 | N34: 27
A35: =IF(C35="","",SUBTOTAL(3,$C$5:C35)) -> 31 | B35: 231 | C35: محمد 31 | D35: 24 | E35: 25 | F35: 27 | G35: 27 | H35: 27 | I35: 99 | J35: 98 | K35: 97 | L35: 97 | M35: 98 | N35: 26
A36: =IF(C36="","",SUBTOTAL(3,$C$5:C36)) -> 32 | B36: 232 | C36: محمد 32 | D36: 26 | E36: 22 | F36: 23 | G36: 26 | H36: 27 | I36: 99 | J36: 98 | K36: 97 | L36: 97 | M36: 98 | N36: 24
A37: =IF(C37="","",SUBTOTAL(3,$C$5:C37)) -> 33 | B37: 233 | C37: محمد 33 | D37: 29 | E37: 24 | F37: 29 | G37: 30 | H37: 29 | I37: 99 | J37: 98 | K37: 99 | L37: 97 | M37: 98 | N37: 29
A38: =IF(C38="","",SUBTOTAL(3,$C$5:C38)) -> 34 | B38: 234 | C38: محمد 34 | D38: 26 | E38: 20 | F38: 25 | G38: 28 | H38: 26 | I38: 99 | J38: 98 | K38: 99 | L38: 97 | M38: 98 | N38: 21
A39: =IF(C39="","",SUBTOTAL(3,$C$5:C39)) -> 35 | B39: 235 | C39: محمد 35 | D39: 28 | E39: 23 | F39: 26 | G39: 26 | H39: 25 | I39: 99 | J39: 98 | K39: 97 | L39: 99 | M39: 98 | N39: 28
A40: =IF(C40="","",SUBTOTAL(3,$C$5:C40)) -> 36 | B40: 236 | C40: محمد 36 | D40: 29 | E40: 28 | F40: 29 | G40: 30 | H40: 30 | I40: 97 | J40: 96 | K40: 99 | L40: 95 | M40: 98 | N40: 30
A41: =IF(C41="","",SUBTOTAL(3,$C$5:C41)) -> 37 | B41: 237 | C41: محمد 37 | D41: 28 | E41: 27 | F41: 30 | G41: 26 | H41: 30 | I41: 99 | J41: 98 | K41: 99 | L41: 99 | M41: 98 | N41: 26
A42: =IF(C42="","",SUBTOTAL(3,$C$5:C42)) -> 38 | B42: 238 | C42: محمد 38 | D42: 26 | E42: 29 | F42: 30 | G42: 28 | H42: 30 | I42: 99 | J42: 98 | K42: 99 | L42: 99 | M42: 98 | N42: 26
A43: =IF(C43="","",SUBTOTAL(3,$C$5:C43)) -> 39 | B43: 239 | C43: محمد 39 | D43: 28 | E43: 27 | F43: 29 | G43: 27 | H43: 29 | I43: 97 | J43: 98 | K43: 99 | L43: 97 | M43: 98 | N43: 29
A44: =IF(C44="","",SUBTOTAL(3,$C$5:C44)) -> 40 | B44: 240 | C44: محمد 40 | D44: 28 | E44: 27 | F44: 29 | G44: 24 | H44: 29 | I44: 99 | J44: 98 | K44: 98 | L44: 99 | M44: 98 | N44: 26
A45: =IF(C45="","",SUBTOTAL(3,$C$5:C45)) -> 41 | B45: 241 | C45: محمد 41 | D45: 30 | E45: 26 | F45: 29 | G45: 25 | H45: 26 | I45: 100 | J45: 100 | K45: 99 | L45: 100 | M45: 100 | N45: 28
A46: =IF(C46="","",SUBTOTAL(3,$C$5:C46)) -> 42 | B46: 242 | C46: محمد 42 | D46: 29 | E46: 27 | F46: 30 | G46: 29 | H46: 29 | I46: 99 | J46: 98 | K46: 97 | L46: 99 | M46: 98 | N46: 28
A47: =IF(C47="","",SUBTOTAL(3,$C$5:C47)) -> 43 | B47: 243 | C47: محمد 43 | D47: 30 | E47: 25 | F47: 27 | G47: 22 | H47: 28 | I47: 99 | J47: 98 | K47: 97 | L47: 99 | M47: 98 | N47: 29
A48: =IF(C48="","",SUBTOTAL(3,$C$5:C48)) -> 44 | B48: 244 | C48: محمد 44 | D48: 28 | E48: 27 | F48: 29 | G48: 30 | H48: 27 | I48: 98 | J48: 98 | K48: 99 | L48: 99 | M48: 98 | N48: 26
A49: =IF(C49="","",SUBTOTAL(3,$C$5:C49)) -> 45 | B49: 245 | C49: محمد 45 | D49: 29 | E49: 28 | F49: 30 | G49: 28 | H49: 30 | I49: 99 | J49: 98 | K49: 99 | L49: 97 | M49: 98 | N49: 26
A50: =IF(C50="","",SUBTOTAL(3,$C$5:C50)) -> 46 | B50: 246 | C50: محمد 46 | D50: 22 | E50: 25 | F50: 22 | G50: 24 | H50: 30 | I50: 99 | J50: 98 | K50: 97 | L50: 99 | M50: 87 | N50: 26
A51: =IF(C51="","",SUBTOTAL(3,$C$5:C51)) -> 47 | B51: 247 | C51: محمد 47 | D51: 25 | E51: 23 | F51: 25 | G51: 17 | H51: 23 | I51: 97 | J51: 98 | K51: 99 | L51: 97 | M51: 98 | N51: 25
A52: =IF(C52="","",SUBTOTAL(3,$C$5:C52)) -> 48 | B52: 248 | C52: محمد 48 | D52: 28 | E52: 27 | F52: 30 | G52: 30 | H52: 22 | I52: 99 | J52: 98 | K52: 97 | L52: 97 | M52: 98 | N52: 30
A53: =IF(C53="","",SUBTOTAL(3,$C$5:C53)) -> 49 | B53: 249 | C53: محمد 49 | D53: 28 | E53: 27 | F53: 29 | G53: 26 | H53: 26 | I53: 97 | J53: 96 | K53: 98 | L53: 95 | M53: 98 | N53: 27
A54: =IF(C54="","",SUBTOTAL(3,$C$5:C54)) -> 50 | B54: 250 | C54: محمد 50 | D54: 25 | E54: 30 | F54: 29 | G54: 30 | H54: 28 | I54: 96 | J54: 97 | K54: 96 | L54: 98 | M54: 98 | N54: 29
A55: =IF(C55="","",SUBTOTAL(3,$C$5:C55)) -> 51 | B55: 251 | C55: محمد 51 | D55: 30 | E55: 30 | F55: 30 | G55: 28 | H55: 30 | I55: 99 | J55: 98 | K55: 99 | L55: 97 | M55: 98 | N55: 29
A56: =IF(C56="","",SUBTOTAL(3,$C$5:C56)) -> 52 | B56: 252 | C56: محمد 52 | D56: 28 | E56: 24 | F56: 27 | G56: 30 | H56: 24 | I56: 97 | J56: 96 | K56: 97 | L56: 95 | M56: 98 | N56: 30
A57: =IF(C57="","",SUBTOTAL(3,$C$5:C57)) -> 53 | B57: 253 | C57: محمد 53 | D57: 29 | E57: 30 | F57: 30 | G57: 28 | H57: 30 | I57: 98 | J57: 97 | K57: 99 | L57: 95 | M57: 96 | N57: 30
A58: =IF(C58="","",SUBTOTAL(3,$C$5:C58)) -> 54 | B58: 254 | C58: محمد 54 | D58: 29 | E58: 28 | F58: 29 | G58: 30 | H58: 30 | I58: 96 | J58: 95 | K58: 99 | L58: 94 | M58: 95 | N58: 30
A59: =IF(C59="","",SUBTOTAL(3,$C$5:C59)) -> 55 | B59: 255 | C59: محمد 55 | D59: 28 | E59: 28 | F59: 29 | G59: 27 | H59: 29 | I59: 99 | J59: 98 | K59: 99 | L59: 97 | M59: 98 | N59: 30
A60: =IF(C60="","",SUBTOTAL(3,$C$5:C60)) -> 56 | B60: 256 | C60: محمد 56 | D60: 28 | E60: 29 | F60: 30 | G60: 28 | H60: 30 | I60: 97 | J60: 96 | K60: 99 | L60: 95 | M60: 97 | N60: 30
A61: =IF(C61="","",SUBTOTAL(3,$C$5:C61)) -> 57 | B61: 257 | C61: محمد 57 | D61: 26 | E61: 30 | F61: 30 | G61: 28 | H61: 30 | I61: 97 | J61: 96 | K61: 99 | L61: 95 | M61: 96 | N61: 30
A62: =IF(C62="","",SUBTOTAL(3,$C$5:C62)) -> 58 | B62: 258 | C62: محمد 58 | D62: 27 | E62: 28 | F62: 30 | G62: 28 | H62: 30 | I62: 99 | J62: 98 | K62: 99 | L62: 97 | M62: 98 | N62: 30
A63: =IF(C63="","",SUBTOTAL(3,$C$5:C63)) -> 59 | B63: 259 | C63: محمد 59 | D63: 29 | E63: 27 | F63: 28 | G63: 29 | H63: 29 | I63: 99 | J63: 98 | K63: 97 | L63: 97 | M63: 98 | N63: 24
A64: =IF(C64="","",SUBTOTAL(3,$C$5:C64)) -> 60 | B64: 260 | C64: محمد 60 | D64: 26 | E64: 30 | F64: 29 | G64: 27 | H64: 25 | I64: 99 | J64: 98 | K64: 99 | L64: 99 | M64: 98 | N64: 29
A65: =IF(C65="","",SUBTOTAL(3,$C$5:C65)) -> 61 | B65: 261 | C65: محمد 61 | D65: 30 | E65: 30 | F65: 30 | G65: 29 | H65: 29 | I65: 99 | J65: 98 | K65: 99 | L65: 99 | M65: 98 | N65: 29
A66: =IF(C66="","",SUBTOTAL(3,$C$5:C66)) -> 62 | B66: 262 | C66: محمد 62 | D66: 29 | E66: 29 | F66: 29 | G66: 27 | H66: 28 | I66: 99 | J66: 98 | K66: 99 | L66: 97 | M66: 98 | N66: 29
A67: =IF(C67="","",SUBTOTAL(3,$C$5:C67)) -> 63 | B67: 263 | C67: محمد 63 | D67: 20 | E67: 18 | F67: 22 | G67: 25 | H67: 23 | I67: 97 | J67: 98 | K67: 99 | L67: 97 | M67: 98 | N67: 28
A68: =IF(C68="","",SUBTOTAL(3,$C$5:C68)) -> 64 | B68: 264 | C68: محمد 64 | D68: 29 | E68: 30 | F68: 30 | G68: 28 | H68: 28 | I68: 99 | J68: 98 | K68: 99 | L68: 99 | M68: 98 | N68: 29
A69: =IF(C69="","",SUBTOTAL(3,$C$5:C69)) -> 65 | B69: 265 | C69: محمد 65 | D69: 30 | E69: 29 | F69: 30 | G69: 30 | H69: 29 | I69: 99 | J69: 98 | K69: 97 | L69: 97 | M69: 98 | N69: 30
A70: =IF(C70="","",SUBTOTAL(3,$C$5:C70)) -> 66 | B70: 266 | C70: محمد 66 | D70: 29 | E70: 26 | F70: 30 | G70: 27 | H70: 25 | I70: 99 | J70: 98 | K70: 99 | L70: 97 | M70: 98 | N70: 28
A71: =IF(C71="","",SUBTOTAL(3,$C$5:C71)) -> 67 | B71: 267 | C71: محمد 67 | D71: 30 | E71: 28 | F71: 30 | G71: 29 | H71: 29 | I71: 99 | J71: 98 | K71: 99 | L71: 99 | M71: 97 | N71: 29
A72: =IF(C72="","",SUBTOTAL(3,$C$5:C72)) -> 68 | B72: 268 | C72: محمد 68 | D72: 30 | E72: 26 | F72: 30 | G72: 30 | H72: 29 | I72: 99 | J72: 98 | K72: 99 | L72: 99 | M72: 98 | N72: 29
A73: =IF(C73="","",SUBTOTAL(3,$C$5:C73)) -> 69 | B73: 269 | C73: محمد 69 | D73: 29 | E73: 29 | F73: 30 | G73: 30 | H73: 27 | I73: 99 | J73: 98 | K73: 99 | L73: 97 | M73: 98 | N73: 30
A74: =IF(C74="","",SUBTOTAL(3,$C$5:C74)) -> 70 | B74: 270 | C74: محمد 70 | D74: 29 | E74: 29 | F74: 30 | G74: 19 | H74: 21 | I74: 97 | J74: 98 | K74: 97 | L74: 97 | M74: 97 | N74: 28
A75: =IF(C75="","",SUBTOTAL(3,$C$5:C75)) -> 71 | B75: 271 | C75: محمد 71 | D75: 30 | E75: 28 | F75: 30 | G75: 28 | H75: 30 | I75: 99 | J75: 98 | K75: 99 | L75: 97 | M75: 98 | N75: 30
A76: =IF(C76="","",SUBTOTAL(3,$C$5:C76)) -> 72 | B76: 272 | C76: محمد 72 | D76: 30 | E76: 28 | F76: 28 | G76: 25 | H76: 29 | I76: 99 | J76: 98 | K76: 99 | L76: 97 | M76: 98 | N76: 29
A77: =IF(C77="","",SUBTOTAL(3,$C$5:C77)) -> 73 | B77: 273 | C77: محمد 73 | D77: 28 | E77: 29 | F77: 30 | G77: 30 | H77: 29 | I77: 99 | J77: 98 | K77: 99 | L77: 97 | M77: 98 | N77: 27
A78: =IF(C78="","",SUBTOTAL(3,$C$5:C78)) -> 74 | B78: 274 | C78: محمد 74 | D78: 29 | E78: 30 | F78: 30 | G78: 29 | H78: 27 | I78: 99 | J78: 98 | K78: 99 | L78: 97 | M78: 98 | N78: 30
A79: =IF(C79="","",SUBTOTAL(3,$C$5:C79)) -> 75 | B79: 275 | C79: محمد 75 | D79: 29 | E79: 25 | F79: 30 | G79: 26 | H79: 27 | I79: 97 | J79: 98 | K79: 99 | L79: 97 | M79: 98 | N79: 26
A80: =IF(C80="","",SUBTOTAL(3,$C$5:C80)) -> 76 | B80: 276 | C80: محمد 76 | D80: 30 | E80: 29 | F80: 30 | G80: 29 | H80: 30 | I80: 99 | J80: 98 | K80: 99 | L80: 97 | M80: 98 | N80: 26
A81: =IF(C81="","",SUBTOTAL(3,$C$5:C81)) -> 77 | B81: 277 | C81: محمد 77 | D81: 20 | E81: 25 | F81: 29 | G81: 19 | H81: 25 | I81: 99 | J81: 98 | K81: 99 | L81: 97 | M81: 98 | N81: 21
A82: =IF(C82="","",SUBTOTAL(3,$C$5:C82)) -> 78 | B82: 278 | C82: محمد 78 | D82: 30 | E82: 29 | F82: 29 | G82: 25 | H82: 26 | I82: 99 | J82: 98 | K82: 99 | L82: 97 | M82: 98 | N82: 30
A83: =IF(C83="","",SUBTOTAL(3,$C$5:C83)) -> 79 | B83: 279 | C83: محمد 79 | D83: 30 | E83: 30 | F83: 30 | G83: 30 | H83: 29 | I83: 99 | J83: 98 | K83: 99 | L83: 97 | M83: 98 | N83: 30
A84: =IF(C84="","",SUBTOTAL(3,$C$5:C84)) -> 80 | B84: 280 | C84: محمد 80 | D84: 20 | E84: 19 | F84: 25 | G84: 16 | H84: 27 | I84: 99 | J84: 98 | K84: 99 | L84: 97 | M84: 98 | N84: 23
A85: =IF(C85="","",SUBTOTAL(3,$C$5:C85)) -> 81 | B85: 281 | C85: محمد 81 | D85: 30 | E85: 28 | F85: 28 | G85: 29 | H85: 30 | I85: 99 | J85: 98 | K85: 99 | L85: 97 | M85: 98 | N85: 27
A86: =IF(C86="","",SUBTOTAL(3,$C$5:C86)) -> 82 | B86: 282 | C86: محمد 82 | D86: 29 | E86: 19 | F86: 25 | G86: 20 | H86: 23 | I86: 99 | J86: 98 | K86: 99 | L86: 97 | M86: 98 | N86: 26
A87: =IF(C87="","",SUBTOTAL(3,$C$5:C87)) -> 83 | B87: 283 | C87: محمد 83 | D87: 30 | E87: 28 | F87: 30 | G87: 30 | H87: 29 | I87: 99 | J87: 99 | K87: 99 | L87: 99 | M87: 99 | N87: 29
A88: =IF(C88="","",SUBTOTAL(3,$C$5:C88)) -> 84 | B88: 284 | C88: محمد 84 | D88: 30 | E88: 29 | F88: 30 | G88: 29 | H88: 30 | I88: 99 | J88: 98 | K88: 99 | L88: 97 | M88: 98 | N88: 30
A89: =IF(C89="","",SUBTOTAL(3,$C$5:C89)) -> 85 | B89: 285 | C89: محمد 85 | D89: 30 | E89: 30 | F89: 30 | G89: 28 | H89: 30 | I89: 99 | J89: 98 | K89: 99 | L89: 97 | M89: 97 | N89: 29
A90: =IF(C90="","",SUBTOTAL(3,$C$5:C90)) -> 86 | B90: 286 | C90: محمد 86 | D90: 30 | E90: 30 | F90: 30 | G90: 28 | H90: 30 | I90: 99 | J90: 98 | K90: 99 | L90: 97 | M90: 98 | N90: 30
A91: =IF(C91="","",SUBTOTAL(3,$C$5:C91)) -> 87 | B91: 287 | C91: محمد 87 | D91: 30 | E91: 30 | F91: 30 | G91: 28 | H91: 30 | I91: 99 | J91: 97 | K91: 99 | L91: 99 | M91: 98 | N91: 30
A92: =IF(C92="","",SUBTOTAL(3,$C$5:C92)) -> 88 | B92: 288 | C92: محمد 88 | D92: 30 | E92: 29 | F92: 30 | G92: 29 | H92: 28 | I92: 99 | J92: 98 | K92: 99 | L92: 97 | M92: 98 | N92: 30
A93: =IF(C93="","",SUBTOTAL(3,$C$5:C93)) -> 89 | B93: 289 | C93: محمد 89 | D93: 18 | E93: 13 | F93: 16 | G93: 17 | H93: 19 | I93: 97 | J93: 98 | K93: 99 | L93: 97 | M93: 98 | N93: 21
A94: =IF(C94="","",SUBTOTAL(3,$C$5:C94)) -> 90 | B94: 290 | C94: محمد 90 | D94: 16 | E94: 17 | F94: 14 | G94: 13 | H94: 20 | I94: 98 | J94: 99 | K94: 99 | L94: 97 | M94: 98 | N94: 18
A95: =IF(C95="","",SUBTOTAL(3,$C$5:C95)) -> 91 | B95: 291 | C95: محمد 91 | D95: 15 | E95: 13 | F95: 13 | G95: 13 | H95: 24 | I95: 99 | J95: 98 | K95: 100 | L95: 99 | M95: 98 | N95: 19
A96: =IF(C96="","",SUBTOTAL(3,$C$5:C96)) -> 92 | B96: 292 | C96: محمد 92 | D96: 2 | E96: 5 | F96: 9 | G96: 8 | H96: 15 | I96: 99 | J96: 98 | K96: 99 | L96: 99 | M96: 98 | N96: 8
A97: =IF(C97="","",SUBTOTAL(3,$C$5:C97)) -> 93 | B97: 293 | C97: محمد 93 | D97: غ | E97: غ | F97: غ | G97: غ | H97: غ | I97: غ | J97: غ | K97: غ | L97: غ | M97: غ | N97: غ
A98: =IF(C98="","",SUBTOTAL(3,$C$5:C98)) -> 94 | B98: 294 | C98: محمد 94 | D98: 3 | E98: 17 | F98: 15 | G98: 11 | H98: 24 | I98: غ | J98: غ | K98: غ | L98: غ | M98: غ | N98: 13
A99: =IF(C99="","",SUBTOTAL(3,$C$5:C99)) -> 95 | B99: 295 | C99: محمد 95 | D99: 20 | E99: 19 | F99: 16 | G99: 13 | H99: 23 | I99: 99 | J99: 99 | K99: 99 | L99: 99 | M99: 97 | N99: 25
A100: =IF(C100="","",SUBTOTAL(3,$C$5:C100)) -> 96 | B100: 296 | C100: محمد 96 | D100: 22 | E100: 23 | F100: 19 | G100: 13 | H100: 20 | I100: 99 | J100: 98 | K100: 99 | L100: 97 | M100: 98 | N100: 14
A101: =IF(C101="","",SUBTOTAL(3,$C$5:C101)) -> 97 | B101: 297 | C101: محمد 97 | D101: 12 | E101: 11 | F101: 26 | G101: 21 | H101: 26 | I101: 97 | J101: 96 | K101: 100 | L101: 95 | M101: 98 | N101: 7
A102: =IF(C102="","",SUBTOTAL(3,$C$5:C102)) -> 98 | B102: 298 | C102: محمد 98 | D102: 15 | E102: 11 | F102: 16 | G102: 28 | H102: 21 | I102: 99 | J102: 99 | K102: 99 | L102: 100 | M102: 98 | N102: 11
A103: =IF(C103="","",SUBTOTAL(3,$C$5:C103)) -> 99 | B103: 299 | C103: محمد 99 | D103: 26 | E103: 10 | F103: 25 | G103: 24 | H103: 23 | I103: 97 | J103: 96 | K103: 96 | L103: 95 | M103: 98 | N103: 24
A104: =IF(C104="","",SUBTOTAL(3,$C$5:C104)) -> 100 | B104: 300 | C104: محمد 100 | D104: 11 | E104: 19 | F104: 16 | G104: 20 | H104: 21 | I104: 99 | J104: 98 | K104: 99 | L104: 99 | M104: 98 | N104: 19
A105: =IF(C105="","",SUBTOTAL(3,$C$5:C105)) -> 101 | B105: 301 | C105: محمد 101 | D105: 21 | E105: 11 | F105: 21 | G105: 23 | H105: 26 | I105: 99 | J105: 98 | K105: 97 | L105: 97 | M105: 98 | N105: 22
A106: =IF(C106="","",SUBTOTAL(3,$C$5:C106)) -> 102 | B106: 302 | C106: محمد 102 | D106: 30 | E106: 10 | F106: 30 | G106: 30 | H106: 29 | I106: 99 | J106: 98 | K106: 99 | L106: 97 | M106: 98 | N106: 30
A107: =IF(C107="","",SUBTOTAL(3,$C$5:C107)) -> 103 | B107: 303 | C107: محمد 103 | D107: غ | E107: غ | F107: غ | G107: غ | H107: غ | I107: غ | J107: غ | K107: غ | L107: غ | M107: غ | N107: غ
A108: =IF(C108="","",SUBTOTAL(3,$C$5:C108)) -> 104 | B108: 304 | C108: محمد 104 | D108: 26 | E108: 9 | F108: 20 | G108: 21 | H108: 20 | I108: 99 | J108: 97 | K108: 99 | L108: 97 | M108: 98 | N108: 28
A109: =IF(C109="","",SUBTOTAL(3,$C$5:C109)) -> 105 | B109: 305 | C109: محمد 105 | D109: 21 | E109: 12 | F109: 14 | G109: 17 | H109: 19 | I109: 99 | J109: 98 | K109: 99 | L109: 97 | M109: 98 | N109: 27

Sheet التاسع
A1: إدارة قويسنا التعليمية0 الصف السادس
A2: مدرسة عربالرمل الإبتدائية سكة حديد | F2: نتيجة نصف العام 2019/2018
A3: م | B3: جلوس | C3: الاســــــــــــــم | D3: لغة عربية | E3: رياضيات | F3: لغة إنجليزية | G3: دراسات | H3: علوم | I3: فنى | J3: رياضى | K3: حاسب ألى | L3: نشاط1 | M3: نشاط2 | N3: دين
D4: 30 | E4: 30 | F4: 30 | G4: 30 | H4: 30 | I4: 100 | J4: 100 | K4: 100 | L4: 100 | M4: 100 | N4: 30
A5: =IF(C5="","",SUBTOTAL(3,$C$5:C5)) -> 1 | B5: 201 | C5: ابراهيم 1 | D5: 26 | E5: 26 | F5: 27 | G5: 30 | H5: 30 | I5: 95 | J5: 98 | K5: 98 | L5: 97 | M5: 98 | N5: 29
A6: =IF(C6="","",SUBTOTAL(3,$C$5:C6)) -> 2 | B6: 202 | C6: ابراهيم 2 | D6: 28 | E6: 29 | F6: 29 | G6: 30 | H6: 30 | I6: 98 | J6: 98 | K6: 99 | L6: 97 | M6: 98 | N6: 30
A7: =IF(C7="","",SUBTOTAL(3,$C$5:C7)) -> 3 | B7: 203 | C7: ابراهيم 3 | D7: 28 | E7: 25 | F7: 27 | G7: 30 | H7: 30 | I7: 99 | J7: 98 | K7: 99 | L7: 97 | M7: 98 | N7: 29
A8: =IF(C8="","",SUBTOTAL(3,$C$5:C8)) -> 4 | B8: 204 | C8: ابراهيم 4 | D8: 30 | E8: 29 | F8: 30 | G8: 29 | H8: 29 | I8: 99 | J8: 98 | K8: 99 | L8: 99 | M8: 98 | N8: 30
A9: =IF(C9="","",SUBTOTAL(3,$C$5:C9)) -> 5 | B9: 205 | C9: ابراهيم 5 | D9: 21 | E9: 27 | F9: 27 | G9: 26 | H9: 30 | I9: 99 | J9: 98 | K9: 99 | L9: 99 | M9: 97 | N9: 25
A10: =IF(C10="","",SUBTOTAL(3,$C$5:C10)) -> 6 | B10: 206 | C10: ابراهيم 6 | D10: 16 | E10: 26 | F10: 21 | G10: 21 | H10: 30 | I10: 99 | J10: 98 | K10: 98 | L10: 99 | M10: 98 | N10: 18
A11: =IF(C11="","",SUBTOTAL(3,$C$5:C11)) -> 7 | B11: 207 | C11: ابراهيم 7 | D11: 26 | E11: 30 | F11: 29 | G11: 27 | H11: 30 | I11: 100 | J11: 100 | K11: 99 | L11: 99 | M11: 99 | N11: 25
A12: =IF(C12="","",SUBTOTAL(3,$C$5:C12)) -> 8 | B12: 208 | C12: ابراهيم 8 | D12: 30 | E12: 26 | F12: 29 | G12: 30 | H12: 30 | I12: 99 | J12: 98 | K12: 97 | L12: 99 | M12: 98 | N12: 30
A13: =IF(C13="","",SUBTOTAL(3,$C$5:C13)) -> 9 | B13: 209 | C13: ابراهيم 9 | D13: 30 | E13: 29 | F13: 28 | G13: 30 | H13: 30 | I13: 99 | J13: 98 | K13: 97 | L13: 99 | M13: 98 | N13: 30
A14: =IF(C14="","",SUBTOTAL(3,$C$5:C14)) -> 10 | B14: 210 | C14: ابراهيم 10 | D14: 28 | E14: 28 | F14: 29 | G14: 26 | H14: 30 | I14: 98 | J14: 99 | K14: 99 | L14: 97 | M14: 96 | N14: 29
A15: =IF(C15="","",SUBTOTAL(3,$C$5:C15)) -> 11 | B15: 211 | C15: ابراهيم 11 | D15: 30 | E15: 28 | F15: 30 | G15: 30 | H15: 26 | I15: 99 | J15: 98 | K15: 98 | L15: 97 | M15: 98 | N15: 30
A16: =IF(C16="","",SUBTOTAL(3,$C$5:C16)) -> 12 | B16: 212 | C16: ابراهيم 12 | D16: 30 | E16: 28 | F16: 27 | G16: 29 | H16: 28 | I16: 99 | J16: 98 | K16: 99 | L16: 97 | M16: 98 | N16: 25
A17: =IF(C17="","",SUBTOTAL(3,$C$5:C17)) -> 13 | B17: 213 | C17: ابراهيم 13 | D17: 27 | E17: 17 | F17: 26 | G17: 26 | H17: 26 | I17: 97 | J17: 96 | K17: 99 | L17: 95 | M17: 98 | N17: 22
A18: =IF(C18="","",SUBTOTAL(3,$C$5:C18)) -> 14 | B18: 214 | C18: ابراهيم 14 | D18: 24 | E18: 18 | F18: 23 | G18: 24 | H18: 24 | I18: 97 | J18: 96 | K18: 99 | L18: 95 | M18: 98 | N18: 21
A19: =IF(C19="","",SUBTOTAL(3,$C$5:C19)) -> 15 | B19: 215 | C19: ابراهيم 15 | D19: 30 | E19: 30 | F19: 30 | G19: 29 | H19: 30 | I19: 99 | J19: 98 | K19: 100 | L19: 99 | M19: 98 | N19: 30
A20: =IF(C20="","",SUBTOTAL(3,$C$5:C20)) -> 16 | B20: 216 | C20: ابراهيم 16 | D20: 27 | E20: 20 | F20: 30 | G20: 29 | H20: 27 | I20: 99 | J20: 98 | K20: 99 | L20: 99 | M20: 98 | N20: 24
A21: =IF(C21="","",SUBTOTAL(3,$C$5:C21)) -> 17 | B21: 217 | C21: ابراهيم 17 | D21: 30 | E21: 21 | F21: 29 | G21: 28 | H21: 29 | I21: 99 | J21: 99 | K21: 99 | L21: 98 | M21: 98 | N21: 29
A22: =IF(C22="","",SUBTOTAL(3,$C$5:C22)) -> 18 | B22: 218 | C22: ابراهيم 18 | D22: 24 | E22: 19 | F22: 23 | G22: 28 | H22: 28 | I22: 100 | J22: 98 | K22: 99 | L22: 100 | M22: 98 | N22: 23
A23: =IF(C23="","",SUBTOTAL(3,$C$5:C23)) -> 19 | B23: 219 | C23: ابراهيم 19 | D23: 19 | E23: 30 | F23: 27 | G23: 19 | H23: 30 | I23: 99 | J23: 98 | K23: 99 | L23: 97 | M23: 98 | N23: 30
A24: =IF(C24="","",SUBTOTAL(3,$C$5:C24)) -> 20 | B24: 220 | C24: ابراهيم 20 | D24: 25 | E24: 22 | F24: 23 | G24: 20 | H24: 22 | I24: 99 | J24: 98 | K24: 99 | L24: 99 | M24: 97 | N24: 23
A25: =IF(C25="","",SUBTOTAL(3,$C$5:C25)) -> 21 | B25: 221 | C25: ابراهيم 21 | D25: 29 | E25: 26 | F25: 29 | G25: 28 | H25: 29 | I25: 99 | J25: 98 | K25: 99 | L25: 97 | M25: 98 | N25: 26
A26: =IF(C26="","",SUBTOTAL(3,$C$5:C26)) -> 22 | B26: 222 | C26: ابراهيم 22 | D26: 29 | E26: 24 | F26: 30 | G26: 30 | H26: 29 | I26: 99 | J26: 98 | K26: 99 | L26: 99 | M26: 98 | N26: 29
A27: =IF(C27="","",SUBTOTAL(3,$C$5:C27)) -> 23 | B27: 223 | C27: ابراهيم 23 | D27: 30 | E27: 23 | F27: 26 | G27: 29 | H27: 30 | I27: 99 | J27: 98 | K27: 99 | L27: 97 | M27: 98 | N27: 28
A28: =IF(C28="","",SUBTOTAL(3,$C$5:C28)) -> 24 | B28: 224 | C28: ابراهيم 24 | D28: 29 | E28: 25 | F28: 29 | G28: 30 | H28: 30 | I28: 99 | J28: 98 | K28: 99 | L28: 99 | M28: 98 | N28: 29
A29: =IF(C29="","",SUBTOTAL(3,$C$5:C29)) -> 25 | B29: 225 | C29: ابراهيم 25 | D29: 30 | E29: 30 | F29: 29 | G29: 29 | H29: 30 | I29: 99 | J29: 98 | K29: 99 | L29: 97 | M29: 98 | N29: 28
A30: =IF(C30="","",SUBTOTAL(3,$C$5:C30)) -> 26 | B30: 226 | C30: ابراهيم 26 | D30: 30 | E30: 28 | F30: 30 | G30: 30 | H30: 30 | I30: 99 | J30: 98 | K30: 99 | L30: 99 | M30: 97 | N30: 28
A31: =IF(C31="","",SUBTOTAL(3,$C$5:C31)) -> 27 | B31: 227 | C31: ابراهيم 27 | D31: 30 | E31: 26 | F31: 28 | G31: 30 | H31: 28 | I31: 99 | J31: 98 | K31: 99 | L31: 97 | M31: 98 | N31: 29
A32: =IF(C32="","",SUBTOTAL(3,$C$5:C32)) -> 28 | B32: 228 | C32: ابراهيم 28 | D32: 29 | E32: 28 | F32: 30 | G32: 28 | H32: 26 | I32: 99 | J32: 98 | K32: 99 | L32: 99 | M32: 98 | N32: 28
A33: =IF(C33="","",SUBTOTAL(3,$C$5:C33)) -> 29 | B33: 229 | C33: ابراهيم 29 | D33: 26 | E33: 29 | F33: 29 | G33: 28 | H33: 28 | I33: 99 | J33: 98 | K33: 99 | L33: 97 | M33: 98 | N33: 27
A34: =IF(C34="","",SUBTOTAL(3,$C$5:C34)) -> 30 | B34: 230 | C34: ابراهيم 30 | D34: 27 | E34: 28 | F34: 30 | G34: 30 | H34: 28 | I34: 99 | J34: 98 | K34: 99 | L34: 97 | M34: 98 | N34: 27
A35: =IF(C35="","",SUBTOTAL(3,$C$5:C35)) -> 31 | B35: 231 | C35: ابراهيم 31 | D35: 24 | E35: 25 | F35: 27 | G35: 27 | H35: 27 | I35: 99 | J35: 98 | K35: 97 | L35: 97 | M35: 98 | N35: 26
A36: =IF(C36="","",SUBTOTAL(3,$C$5:C36)) -> 32 | B36: 232 | C36: ابراهيم 32 | D36: 26 | E36: 22 | F36: 23 | G36: 26 | H36: 27 | I36: 99 | J36: 98 | K36: 97 | L36: 97 | M36: 98 | N36: 24
A37: =IF(C37="","",SUBTOTAL(3,$C$5:C37)) -> 33 | B37: 233 | C37: ابراهيم 33 | D37: 29 | E37: 24 | F37: 29 | G37: 30 | H37: 29 | I37: 99 | J37: 98 | K37: 99 | L37: 97 | M37: 98 | N37: 29
A38: =IF(C38="","",SUBTOTAL(3,$C$5:C38)) -> 34 | B38: 234 | C38: ابراهيم 34 | D38: 26 | E38: 20 | F38: 25 | G38: 28 | H38: 26 | I38: 99 | J38: 98 | K38: 99 | L38: 97 | M38: 98 | N38: 21
A39: =IF(C39="","",SUBTOTAL(3,$C$5:C39)) -> 35 | B39: 235 | C39: ابراهيم 35 | D39: 28 | E39: 23 | F39: 26 | G39: 26 | H39: 25 | I39: 99 | J39: 98 | K39: 97 | L39: 99 | M39: 98 | N39: 28
A40: =IF(C40="","",SUBTOTAL(3,$C$5:C40)) -> 36 | B40: 236 | C40: ابراهيم 36 | D40: 29 | E40: 28 | F40: 29 | G40: 30 | H40: 30 | I40: 97 | J40: 96 | K40: 99 | L40: 95 | M40: 98 | N40: 30
A41: =IF(C41="","",SUBTOTAL(3,$C$5:C41)) -> 37 | B41: 237 | C41: ابراهيم 37 | D41: 28 | E41: 27 | F41: 30 | G41: 26 | H41: 30 | I41: 99 | J41: 98 | K41: 99 | L41: 99 | M41: 98 | N41: 26
A42: =IF(C42="","",SUBTOTAL(3,$C$5:C42)) -> 38 | B42: 238 | C42: ابراهيم 38 | D42: 26 | E42: 29 | F42: 30 | G42: 28 | H42: 30 | I42: 99 | J42: 98 | K42: 99 | L42: 99 | M42: 98 | N42: 26
A43: =IF(C43="","",SUBTOTAL(3,$C$5:C43)) -> 39 | B43: 239 | C43: ابراهيم 39 | D43: 28 | E43: 27 | F43: 29 | G43: 27 | H43: 29 | I43: 97 | J43: 98 | K43: 99 | L43: 97 | M43: 98 | N43: 29
A44: =IF(C44="","",SUBTOTAL(3,$C$5:C44)) -> 40 | B44: 240 | C44: ابراهيم 40 | D44: 28 | E44: 27 | F44: 29 | G44: 24 | H44: 29 | I44: 99 | J44: 98 | K44: 98 | L44: 99 | M44: 98 | N44: 26
A45: =IF(C45="","",SUBTOTAL(3,$C$5:C45)) -> 41 | B45: 241 | C45: ابراهيم 41 | D45: 30 | E45: 26 | F45: 29 | G45: 25 | H45: 26 | I45: 100 | J45: 100 | K45: 99 | L45: 100 | M45: 100 | N45: 28
A46: =IF(C46="","",SUBTOTAL(3,$C$5:C46)) -> 42 | B46: 242 | C46: ابراهيم 42 | D46: 29 | E46: 27 | F46: 30 | G46: 29 | H46: 29 | I46: 99 | J46: 98 | K46: 97 | L46: 99 | M46: 98 | N46: 28
A47: =IF(C47="","",SUBTOTAL(3,$C$5:C47)) -> 43 | B47: 243 | C47: ابراهيم 43 | D47: 30 | E47: 25 | F47: 27 | G47: 22 | H47: 28 | I47: 99 | J47: 98 | K47: 97 | L47: 99 | M47: 98 | N47: 29
A48: =IF(C48="","",SUBTOTAL(3,$C$5:C48)) -> 44 | B48: 244 | C48: ابراهيم 44 | D48: 28 | E48: 27 | F48: 29 | G48: 30 | H48: 27 | I48: 98 | J48: 98 | K48: 99 | L48: 99 | M48: 98 | N48: 26
A49: =IF(C49="","",SUBTOTAL(3,$C$5:C49)) -> 45 | B49: 245 | C49: ابراهيم 45 | D49: 29 | E49: 28 | F49: 30 | G49: 28 | H49: 30 | I49: 99 | J49: 98 | K49: 99 | L49: 97 | M49: 98 | N49: 26
A50: =IF(C50="","",SUBTOTAL(3,$C$5:C50)) -> 46 | B50: 246 | C50: ابراهيم 46 | D50: 22 | E50: 25 | F50: 22 | G50: 24 | H50: 30 | I50: 99 | J50: 98 | K50: 97 | L50: 99 | M50: 87 | N50: 26
A51: =IF(C51="","",SUBTOTAL(3,$C$5:C51)) -> 47 | B51: 247 | C51: ابراهيم 47 | D51: 25 | E51: 23 | F51: 25 | G51: 17 | H51: 23 | I51: 97 | J51: 98 | K51: 99 | L51: 97 | M51: 98 | N51: 25
A52: =IF(C52="","",SUBTOTAL(3,$C$5:C52)) -> 48 | B52: 248 | C52: ابراهيم 48 | D52: 28 | E52: 27 | F52: 30 | G52: 30 | H52: 22 | I52: 99 | J52: 98 | K52: 97 | L52: 97 | M52: 98 | N52: 30
A53: =IF(C53="","",SUBTOTAL(3,$C$5:C53)) -> 49 | B53: 249 | C53: ابراهيم 49 | D53: 28 | E53: 27 | F53: 29 | G53: 26 | H53: 26 | I53: 97 | J53: 96 | K53: 98 | L53: 95 | M53: 98 | N53: 27
A54: =IF(C54="","",SUBTOTAL(3,$C$5:C54)) -> 50 | B54: 250 | C54: ابراهيم 50 | D54: 25 | E54: 30 | F54: 29 | G54: 30 | H54: 28 | I54: 96 | J54: 97 | K54: 96 | L54: 98 | M54: 98 | N54: 29
A55: =IF(C55="","",SUBTOTAL(3,$C$5:C55)) -> 51 | B55: 251 | C55: ابراهيم 51 | D55: 30 | E55: 30 | F55: 30 | G55: 28 | H55: 30 | I55: 99 | J55: 98 | K55: 99 | L55: 97 | M55: 98 | N55: 29
A56: =IF(C56="","",SUBTOTAL(3,$C$5:C56)) -> 52 | B56: 252 | C56: ابراهيم 52 | D56: 28 | E56: 24 | F56: 27 | G56: 30 | H56: 24 | I56: 97 | J56: 96 | K56: 97 | L56: 95 | M56: 98 | N56: 30
A57: =IF(C57="","",SUBTOTAL(3,$C$5:C57)) -> 53 | B57: 253 | C57: ابراهيم 53 | D57: 29 | E57: 30 | F57: 30 | G57: 28 | H57: 30 | I57: 98 | J57: 97 | K57: 99 | L57: 95 | M57: 96 | N57: 30
A58: =IF(C58="","",SUBTOTAL(3,$C$5:C58)) -> 54 | B58: 254 | C58: ابراهيم 54 | D58: 29 | E58: 28 | F58: 29 | G58: 30 | H58: 30 | I58: 96 | J58: 95 | K58: 99 | L58: 94 | M58: 95 | N58: 30
A59: =IF(C59="","",SUBTOTAL(3,$C$5:C59)) -> 55 | B59: 255 | C59: ابراهيم 55 | D59: 28 | E59: 28 | F59: 29 | G59: 27 | H59: 29 | I59: 99 | J59: 98 | K59: 99 | L59: 97 | M59: 98 | N59: 30
A60: =IF(C60="","",SUBTOTAL(3,$C$5:C60)) -> 56 | B60: 256 | C60: ابراهيم 56 | D60: 28 | E60: 29 | F60: 30 | G60: 28 | H60: 30 | I60: 97 | J60: 96 | K60: 99 | L60: 95 | M60: 97 | N60: 30
A61: =IF(C61="","",SUBTOTAL(3,$C$5:C61)) -> 57 | B61: 257 | C61: ابراهيم 57 | D61: 26 | E61: 30 | F61: 30 | G61: 28 | H61: 30 | I61: 97 | J61: 96 | K61: 99 | L61: 95 | M61: 96 | N61: 30
A62: =IF(C62="","",SUBTOTAL(3,$C$5:C62)) -> 58 | B62: 258 | C62: ابراهيم 58 | D62: 27 | E62: 28 | F62: 30 | G62: 28 | H62: 30 | I62: 99 | J62: 98 | K62: 99 | L62: 97 | M62: 98 | N62: 30
A63: =IF(C63="","",SUBTOTAL(3,$C$5:C63)) -> 59 | B63: 259 | C63: ابراهيم 59 | D63: 29 | E63: 27 | F63: 28 | G63: 29 | H63: 29 | I63: 99 | J63: 98 | K63: 97 | L63: 97 | M63: 98 | N63: 24
A64: =IF(C64="","",SUBTOTAL(3,$C$5:C64)) -> 60 | B64: 260 | C64: ابراهيم 60 | D64: 26 | E64: 30 | F64: 29 | G64: 27 | H64: 25 | I64: 99 | J64: 98 | K64: 99 | L64: 99 | M64: 98 | N64: 29
A65: =IF(C65="","",SUBTOTAL(3,$C$5:C65)) -> 61 | B65: 261 | C65: ابراهيم 61 | D65: 30 | E65: 30 | F65: 30 | G65: 29 | H65: 29 | I65: 99 | J65: 98 | K65: 99 | L65: 99 | M65: 98 | N65: 29
A66: =IF(C66="","",SUBTOTAL(3,$C$5:C66)) -> 62 | B66: 262 | C66: ابراهيم 62 | D66: 29 | E66: 29 | F66: 29 | G66: 27 | H66: 28 | I66: 99 | J66: 98 | K66: 99 | L66: 97 | M66: 98 | N66: 29
A67: =IF(C67="","",SUBTOTAL(3,$C$5:C67)) -> 63 | B67: 263 | C67: ابراهيم 63 | D67: 20 | E67: 18 | F67: 22 | G67: 25 | H67: 23 | I67: 97 | J67: 98 | K67: 99 | L67: 97 | M67: 98 | N67: 28
A68: =IF(C68="","",SUBTOTAL(3,$C$5:C68)) -> 64 | B68: 264 | C68: ابراهيم 64 | D68: 29 | E68: 30 | F68: 30 | G68: 28 | H68: 28 | I68: 99 | J68: 98 | K68: 99 | L68: 99 | M68: 98 | N68: 29
A69: =IF(C69="","",SUBTOTAL(3,$C$5:C69)) -> 65 | B69: 265 | C69: ابراهيم 65 | D69: 30 | E69: 29 | F69: 30 | G69: 30 | H69: 29 | I69: 99 | J69: 98 | K69: 97 | L69: 97 | M69: 98 | N69: 30
A70: =IF(C70="","",SUBTOTAL(3,$C$5:C70)) -> 66 | B70: 266 | C70: ابراهيم 66 | D70: 29 | E70: 26 | F70: 30 | G70: 27 | H70: 25 | I70: 99 | J70: 98 | K70: 99 | L70: 97 | M70: 98 | N70: 28
A71: =IF(C71="","",SUBTOTAL(3,$C$5:C71)) -> 67 | B71: 267 | C71: ابراهيم 67 | D71: 30 | E71: 28 | F71: 30 | G71: 29 | H71: 29 | I71: 99 | J71: 98 | K71: 99 | L71: 99 | M71: 97 | N71: 29
A72: =IF(C72="","",SUBTOTAL(3,$C$5:C72)) -> 68 | B72: 268 | C72: ابراهيم 68 | D72: 30 | E72: 26 | F72: 30 | G72: 30 | H72: 29 | I72: 99 | J72: 98 | K72: 99 | L72: 99 | M72: 98 | N72: 29
A73: =IF(C73="","",SUBTOTAL(3,$C$5:C73)) -> 69 | B73: 269 | C73: ابراهيم 69 | D73: 29 | E73: 29 | F73: 30 | G73: 30 | H73: 27 | I73: 99 | J73: 98 | K73: 99 | L73: 97 | M73: 98 | N73: 30
A74: =IF(C74="","",SUBTOTAL(3,$C$5:C74)) -> 70 | B74: 270 | C74: ابراهيم 70 | D74: 29 | E74: 29 | F74: 30 | G74: 19 | H74: 21 | I74: 97 | J74: 98 | K74: 97 | L74: 97 | M74: 97 | N74: 28
A75: =IF(C75="","",SUBTOTAL(3,$C$5:C75)) -> 71 | B75: 271 | C75: ابراهيم 71 | D75: 30 | E75: 28 | F75: 30 | G75: 28 | H75: 30 | I75: 99 | J75: 98 | K75: 99 | L75: 97 | M75: 98 | N75: 30
A76: =IF(C76="","",SUBTOTAL(3,$C$5:C76)) -> 72 | B76: 272 | C76: ابراهيم 72 | D76: 30 | E76: 28 | F76: 28 | G76: 25 | H76: 29 | I76: 99 | J76: 98 | K76: 99 | L76: 97 | M76: 98 | N76: 29
A77: =IF(C77="","",SUBTOTAL(3,$C$5:C77)) -> 73 | B77: 273 | C77: ابراهيم 73 | D77: 28 | E77: 29 | F77: 30 | G77: 30 | H77: 29 | I77: 99 | J77: 98 | K77: 99 | L77: 97 | M77: 98 | N77: 27
A78: =IF(C78="","",SUBTOTAL(3,$C$5:C78)) -> 74 | B78: 274 | C78: ابراهيم 74 | D78: 29 | E78: 30 | F78: 30 | G78: 29 | H78: 27 | I78: 99 | J78: 98 | K78: 99 | L78: 97 | M78: 98 | N78: 30
A79: =IF(C79="","",SUBTOTAL(3,$C$5:C79)) -> 75 | B79: 275 | C79: ابراهيم 75 | D79: 29 | E79: 25 | F79: 30 | G79: 26 | H79: 27 | I79: 97 | J79: 98 | K79: 99 | L79: 97 | M79: 98 | N79: 26
A80: =IF(C80="","",SUBTOTAL(3,$C$5:C80)) -> 76 | B80: 276 | C80: ابراهيم 76 | D80: 30 | E80: 29 | F80: 30 | G80: 29 | H80: 30 | I80: 99 | J80: 98 | K80: 99 | L80: 97 | M80: 98 | N80: 26
A81: =IF(C81="","",SUBTOTAL(3,$C$5:C81)) -> 77 | B81: 277 | C81: ابراهيم 77 | D81: 20 | E81: 25 | F81: 29 | G81: 19 | H81: 25 | I81: 99 | J81: 98 | K81: 99 | L81: 97 | M81: 98 | N81: 21
A82: =IF(C82="","",SUBTOTAL(3,$C$5:C82)) -> 78 | B82: 278 | C82: ابراهيم 78 | D82: 30 | E82: 29 | F82: 29 | G82: 25 | H82: 26 | I82: 99 | J82: 98 | K82: 99 | L82: 97 | M82: 98 | N82: 30
A83: =IF(C83="","",SUBTOTAL(3,$C$5:C83)) -> 79 | B83: 279 | C83: ابراهيم 79 | D83: 30 | E83: 30 | F83: 30 | G83: 30 | H83: 29 | I83: 99 | J83: 98 | K83: 99 | L83: 97 | M83: 98 | N83: 30
A84: =IF(C84="","",SUBTOTAL(3,$C$5:C84)) -> 80 | B84: 280 | C84: ابراهيم 80 | D84: 20 | E84: 19 | F84: 25 | G84: 16 | H84: 27 | I84: 99 | J84: 98 | K84: 99 | L84: 97 | M84: 98 | N84: 23
A85: =IF(C85="","",SUBTOTAL(3,$C$5:C85)) -> 81 | B85: 281 | C85: ابراهيم 81 | D85: 30 | E85: 28 | F85: 28 | G85: 29 | H85: 30 | I85: 99 | J85: 98 | K85: 99 | L85: 97 | M85: 98 | N85: 27
A86: =IF(C86="","",SUBTOTAL(3,$C$5:C86)) -> 82 | B86: 282 | C86: ابراهيم 82 | D86: 29 | E86: 19 | F86: 25 | G86: 20 | H86: 23 | I86: 99 | J86: 98 | K86: 99 | L86: 97 | M86: 98 | N86: 26
A87: =IF(C87="","",SUBTOTAL(3,$C$5:C87)) -> 83 | B87: 283 | C87: ابراهيم 83 | D87: 30 | E87: 28 | F87: 30 | G87: 30 | H87: 29 | I87: 99 | J87: 99 | K87: 99 | L87: 99 | M87: 99 | N87: 29
A88: =IF(C88="","",SUBTOTAL(3,$C$5:C88)) -> 84 | B88: 284 | C88: ابراهيم 84 | D88: 30 | E88: 29 | F88: 30 | G88: 29 | H88: 30 | I88: 99 | J88: 98 | K88: 99 | L88: 97 | M88: 98 | N88: 30
A89: =IF(C89="","",SUBTOTAL(3,$C$5:C89)) -> 85 | B89: 285 | C89: ابراهيم 85 | D89: 30 | E89: 30 | F89: 30 | G89: 28 | H89: 30 | I89: 99 | J89: 98 | K89: 99 | L89: 97 | M89: 97 | N89: 29
A90: =IF(C90="","",SUBTOTAL(3,$C$5:C90)) -> 86 | B90: 286 | C90: ابراهيم 86 | D90: 30 | E90: 30 | F90: 30 | G90: 28 | H90: 30 | I90: 99 | J90: 98 | K90: 99 | L90: 97 | M90: 98 | N90: 30
A91: =IF(C91="","",SUBTOTAL(3,$C$5:C91)) -> 87 | B91: 287 | C91: ابراهيم 87 | D91: 30 | E91: 30 | F91: 30 | G91: 28 | H91: 30 | I91: 99 | J91: 97 | K91: 99 | L91: 99 | M91: 98 | N91: 30
A92: =IF(C92="","",SUBTOTAL(3,$C$5:C92)) -> 88 | B92: 288 | C92: ابراهيم 88 | D92: 30 | E92: 29 | F92: 30 | G92: 29 | H92: 28 | I92: 99 | J92: 98 | K92: 99 | L92: 97 | M92: 98 | N92: 30
A93: =IF(C93="","",SUBTOTAL(3,$C$5:C93)) -> 89 | B93: 289 | C93: ابراهيم 89 | D93: 18 | E93: 13 | F93: 16 | G93: 17 | H93: 19 | I93: 97 | J93: 98 | K93: 99 | L93: 97 | M93: 98 | N93: 21
A94: =IF(C94="","",SUBTOTAL(3,$C$5:C94)) -> 90 | B94: 290 | C94: ابراهيم 90 | D94: 16 | E94: 17 | F94: 14 | G94: 13 | H94: 20 | I94: 98 | J94: 99 | K94: 99 | L94: 97 | M94: 98 | N94: 18
A95: =IF(C95="","",SUBTOTAL(3,$C$5:C95)) -> 91 | B95: 291 | C95: ابراهيم 91 | D95: 15 | E95: 13 | F95: 13 | G95: 13 | H95: 24 | I95: 99 | J95: 98 | K95: 100 | L95: 99 | M95: 98 | N95: 19
A96: =IF(C96="","",SUBTOTAL(3,$C$5:C96)) -> 92 | B96: 292 | C96: ابراهيم 92 | D96: 2 | E96: 5 | F96: 9 | G96: 8 | H96: 15 | I96: 99 | J96: 98 | K96: 99 | L96: 99 | M96: 98 | N96: 8
A97: =IF(C97="","",SUBTOTAL(3,$C$5:C97)) -> 93 | B97: 293 | C97: ابراهيم 93 | D97: غ | E97: غ | F97: غ | G97: غ | H97: غ | I97: غ | J97: غ | K97: غ | L97: غ | M97: غ | N97: غ
A98: =IF(C98="","",SUBTOTAL(3,$C$5:C98)) -> 94 | B98: 294 | C98: ابراهيم 94 | D98: 3 | E98: 17 | F98: 15 | G98: 11 | H98: 24 | I98: غ | J98: غ | K98: غ | L98: غ | M98: غ | N98: 13
A99: =IF(C99="","",SUBTOTAL(3,$C$5:C99)) -> 95 | B99: 295 | C99: ابراهيم 95 | D99: 20 | E99: 19 | F99: 16 | G99: 13 | H99: 23 | I99: 99 | J99: 99 | K99: 99 | L99: 99 | M99: 97 | N99: 25
A100: =IF(C100="","",SUBTOTAL(3,$C$5:C100)) -> 96 | B100: 296 | C100: ابراهيم 96 | D100: 22 | E100: 23 | F100: 19 | G100: 13 | H100: 20 | I100: 99 | J100: 98 | K100: 99 | L100: 97 | M100: 98 | N100: 14
A101: =IF(C101="","",SUBTOTAL(3,$C$5:C101)) -> 97 | B101: 297 | C101: ابراهيم 97 | D101: 12 | E101: 11 | F101: 26 | G101: 21 | H101: 26 | I101: 97 | J101: 96 | K101: 100 | L101: 95 | M101: 98 | N101: 7
A102: =IF(C102="","",SUBTOTAL(3,$C$5:C102)) -> 98 | B102: 298 | C102: ابراهيم 98 | D102: 15 | E102: 11 | F102: 16 | G102: 28 | H102: 21 | I102: 99 | J102: 99 | K102: 99 | L102: 100 | M102: 98 | N102: 11
A103: =IF(C103="","",SUBTOTAL(3,$C$5:C103)) -> 99 | B103: 299 | C103: ابراهيم 99 | D103: 26 | E103: 10 | F103: 25 | G103: 24 | H103: 23 | I103: 97 | J103: 96 | K103: 96 | L103: 95 | M103: 98 | N103: 24
A104: =IF(C104="","",SUBTOTAL(3,$C$5:C104)) -> 100 | B104: 300 | C104: ابراهيم 100 | D104: 11 | E104: 19 | F104: 16 | G104: 20 | H104: 21 | I104: 99 | J104: 98 | K104: 99 | L104: 99 | M104: 98 | N104: 19
A105: =IF(C105="","",SUBTOTAL(3,$C$5:C105)) -> 101 | B105: 301 | C105: ابراهيم 101 | D105: 21 | E105: 11 | F105: 21 | G105: 23 | H105: 26 | I105: 99 | J105: 98 | K105: 97 | L105: 97 | M105: 98 | N105: 22
A106: =IF(C106="","",SUBTOTAL(3,$C$5:C106)) -> 102 | B106: 302 | C106: ابراهيم 102 | D106: 30 | E106: 10 | F106: 30 | G106: 30 | H106: 29 | I106: 99 | J106: 98 | K106: 99 | L106: 97 | M106: 98 | N106: 30
A107: =IF(C107="","",SUBTOTAL(3,$C$5:C107)) -> 103 | B107: 303 | C107: ابراهيم 103 | D107: غ | E107: غ | F107: غ | G107: غ | H107: غ | I107: غ | J107: غ | K107: غ | L107: غ | M107: غ | N107: غ
A108: =IF(C108="","",SUBTOTAL(3,$C$5:C108)) -> 104 | B108: 304 | C108: ابراهيم 104 | D108: 26 | E108: 9 | F108: 20 | G108: 21 | H108: 20 | I108: 99 | J108: 97 | K108: 99 | L108: 97 | M108: 98 | N108: 28
A109: =IF(C109="","",SUBTOTAL(3,$C$5:C109)) -> 105 | B109: 305 | C109: ابراهيم 105 | D109: 21 | E109: 12 | F109: 14 | G109: 17 | H109: 19 | I109: 99 | J109: 98 | K109: 99 | L109: 97 | M109: 98 | N109: 27

Sheet الشهادات
A1: إدارة / قويسنا التعليمة0 | N1: =IF($R$7<=Nbre,$R$7,"") -> 1 | X1: الرابع
A2: مدرسة / عرب الرمل الإبتدائية سكة حديد0 | F2: رقم الجلوس | H2: =IF($N1="","",VLOOKUP($N1,Liste,2)) -> 201 | J2: =IF(OR(M4<90%,M4=""),"","بارك الله لك") ->  | X2: الخامس
A3: الاسم/ | B3: =IF($N1="","",VLOOKUP($N1,Liste,3)) -> محمد 1 | M3: النسبة | X3: السادس
A4: الصف / | B4: =IF($X$10="","",INDEX($X$1:$X$6,$X$10)) -> الثامن | M4: =IF($N1="","",G8/G6) -> 0.3833333333 | R4: اختيار الصف من القائمة | X4: السابع
A5: النهاية | B5: عربي | C5: حساب | D5: انجليزي | E5: علوم | F5: دراسات | G5: المجموع | H5: نشاط1 | I5: نشاط2 | J5: فنى | K5: رياضى | L5: حاسب آلى | M5: دين | X5: الثامن
A6: الكبرى | B6: 100 | C6: 80 | D6: 40 | E6: 40 | F6: 40 | G6: =SUM(B6:F6) -> 300 | H6: 20 | I6: 20 | J6: 20 | K6: 20 | L6: 20 | M6: 40 | X6: التاسع
A7: الصغرى | B7: 50 | C7: 40 | D7: 20 | E7: 20 | F7: 20 | G7: =SUM(B7:F7) -> 150 | H7: 10 | I7: 10 | J7: 10 | K7: 10 | L7: 10 | M7: 20 | R7: 1
A8: الدرجة | B8: =IF($N1="","",VLOOKUP($N1,Liste,4)) -> 2 | C8: =IF($N1="","",VLOOKUP($N1,Liste,5)) -> 26 | D8: =IF($N1="","",VLOOKUP($N1,Liste,6)) -> 27 | E8: =IF($N1="","",VLOOKUP($N1,Liste,8)) -> 30 | F8: =IF($N1="","",VLOOKUP($N1,Liste,7)) -> 30 | G8: =IF($N1="","",SUM(B8:F8)) -> 115 | H8: =IF($N1="","",VLOOKUP($N1,Liste,12)) -> 97 | I8: =IF($N1="","",VLOOKUP($N1,Liste,13)) -> 98 | J8: =IF($N1="","",VLOOKUP($N1,Liste,9)) -> 95 | K8: =IF($N1="","",VLOOKUP($N1,Liste,10)) -> 98 | L8: =IF($N1="","",VLOOKUP($N1,Liste,11)) -> 98 | M8: =IF($N1="","",VLOOKUP($N1,Liste,14)) -> 29 | R8: للبحث وطباعة شهادة واحدة
A9: المستوى
B10: =IF(H10="","ناجح ومنقول إلى الصف الأول الإعدادى","مواد الدور الثانى") ->  | X10: 5
A13: إدارة / قويسنا التعليمة0 | N13: =IF($R$7+1<=Nbre,$R$7+1,"") -> 2
A14: مدرسة / عرب الرمل الإبتدائية سكة حديد0 | F14: رقم الجلوس | H14: =IF($N13="","",VLOOKUP($N13,Liste,2)) -> 202 | J14: =IF(OR(M16<90%,M16=""),"","بارك الله لك") -> 
A15: الاسم/ | B15: =IF($N13="","",VLOOKUP($N13,Liste,3)) -> محمد 2 | M15: النسبة
A16: الصف / | B16: =B4 -> الثامن | M16: =IF($N13="","",G20/G18) -> 0.4866666667
A17: النهاية | B17: عربي | C17: حساب | D17: انجليزي | E17: علوم | F17: دراسات | G17: المجموع | H17: نشاط1 | I17: نشاط2 | J17: فنى | K17: رياضى | L17: حاسب آلى | M17: دين
A18: الكبرى | B18: 100 | C18: 80 | D18: 40 | E18: 40 | F18: 40 | G18: =SUM(B18:F18) -> 300 | H18: 20 | I18: 20 | J18: 20 | K18: 20 | L18: 20 | M18: 40
A19: الصغرى | B19: 50 | C19: 40 | D19: 20 | E19: 20 | F19: 20 | G19: =SUM(B19:F19) -> 150 | H19: 10 | I19: 10 | J19: 10 | K19: 10 | L19: 10 | M19: 20
A20: الدرجة | B20: =IF($N13="","",VLOOKUP($N13,Liste,4)) -> 28 | C20: =IF($N13="","",VLOOKUP($N13,Liste,5)) -> 29 | D20: =IF($N13="","",VLOOKUP($N13,Liste,6)) -> 29 | E20: =IF($N13="","",VLOOKUP($N13,Liste,8)) -> 30 | F20: =IF($N13="","",VLOOKUP($N13,Liste,7)) -> 30 | G20: =IF($N13="","",SUM(B20:F20)) -> 146 | H20: =IF($N13="","",VLOOKUP($N13,Liste,12)) -> 97 | I20: =IF($N13="","",VLOOKUP($N13,Liste,13)) -> 98 | J20: =IF($N13="","",VLOOKUP($N13,Liste,9)) -> 98 | K20: =IF($N13="","",VLOOKUP($N13,Liste,10)) -> 98 | L20: =IF($N13="","",VLOOKUP($N13,Liste,11)) -> 99 | M20: =IF($N13="","",VLOOKUP($N13,Liste,14)) -> 30
A21: المستوى
B22: =IF(H22="","ناجح ومنقول إلى الصف الأول الإعدادى","مواد الدور الثانى") -> 
A25: إدارة / قويسنا التعليمة0 | N25: =IF($R$7+2<=Nbre,$R$7+2,"") -> 3
A26: مدرسة / عرب الرمل الإبتدائية سكة حديد0 | F26: رقم الجلوس | H26: =IF($N25="","",VLOOKUP($N25,Liste,2)) -> 203 | J26: =IF(OR(M28<90%,M28=""),"","بارك الله لك") -> 
A27: الاسم/ | B27: =IF($N25="","",VLOOKUP($N25,Liste,3)) -> محمد 3 | M27: النسبة
A28: الصف / | B28: =B16 -> الثامن | M28: =IF($N25="","",G32/G30) -> 0.4666666667
A29: النهاية | B29: عربي | C29: حساب | D29: انجليزي | E29: علوم | F29: دراسات | G29: المجموع | H29: نشاط1 | I29: نشاط2 | J29: فنى | K29: رياضى | L29: حاسب آلى | M29: دين
A30: الكبرى | B30: 100 | C30: 80 | D30: 40 | E30: 40 | F30: 40 | G30: =SUM(B30:F30) -> 300 | H30: 20 | I30: 20 | J30: 20 | K30: 20 | L30: 20 | M30: 40
A31: الصغرى | B31: 50 | C31: 40 | D31: 20 | E31: 20 | F31: 20 | G31: =SUM(B31:F31) -> 150 | H31: 10 | I31: 10 | J31: 10 | K31: 10 | L31: 10 | M31: 20
A32: الدرجة | B32: =IF($N25="","",VLOOKUP($N25,Liste,4)) -> 28 | C32: =IF($N25="","",VLOOKUP($N25,Liste,5)) -> 25 | D32: =IF($N25="","",VLOOKUP($N25,Liste,6)) -> 27 | E32: =IF($N25="","",VLOOKUP($N25,Liste,8)) -> 30 | F32: =IF($N25="","",VLOOKUP($N25,Liste,7)) -> 30 | G32: =IF($N25="","",SUM(B32:F32)) -> 140 | H32: =IF($N25="","",VLOOKUP($N25,Liste,12)) -> 97 | I32: =IF($N25="","",VLOOKUP($N25,Liste,13)) -> 98 | J32: =IF($N25="","",VLOOKUP($N25,Liste,9)) -> 99 | K32: =IF($N25="","",VLOOKUP($N25,Liste,10)) -> 98 | L32: =IF($N25="","",VLOOKUP($N25,Liste,11)) -> 99 | M32: =IF($N25="","",VLOOKUP($N25,Liste,14)) -> 29
A33: المستوى
B34: =IF(H34="","ناجح ومنقول إلى الصف الأول الإعدادى","مواد الدور الثانى") -> 
